Workbook

Sheet GM-9Doc6-Annexe Q-4.2Modèle DaQ
A1: Projet Drummondville
A2: (En dollars)
B4: Paramètres 2016-2017
B6: Amortissement comptable - Conduites | E6: 44.4 ans
B7: Amortissement comptable - Branchements | E7: 21.0 ans
B8: Amortissement fiscal - Conduites | E8: 6.0%
B9: Amortissement fiscal - Branchements | E9: 6.0%
B10: Frais à l'Union des municipalités | E10: 0.0%
B11: Frais généraux | E11: 14.53%
B12: Taxe sur les services publics | E12: 1.5%
B13: Taux de redevance à la Régie de l'énergie ($/103m3) | E13: 0.60455
B14: Taux de redevance à la Régie du bâtiment ($/103m3) | E14: 0.45600
B15: Taux d'imposition (féd. + prov.) | E15: 26.9%
B16: Coût d'opération statutaire | E16: 157 | F16: $/client
B17: Coût de la dette | E17: 2.820%
B18: Coût de l'équité (ord. + priv.) | E18: 8.168%
B19: Proportion de dette | E19: 54.0%
B20: Proportion d'équité (ord. + priv.) | E20: 46.0%
B21: Coût en capital prospectif pondéré | E21: =$E19*E17+$E20*E18 -> 5.28%
A25: Section 1 - Intrants | G25: 0 | H25: 1 | I25: 2 | J25: 3 | K25: 4 | L25: 5 | M25: 6 | N25: 7 | O25: 8 | P25: 9 | Q25: 10 | R25: 11 | S25: 12 | T25: 13 | U25: 14 | V25: 15 | W25: 16 | X25: 17 | Y25: 18 | Z25: 19 | AA25: 20 | AB25: 21 | AC25: 22 | AD25: 23 | AE25: 24 | AF25: 25 | AG25: 26 | AH25: 27 | AI25: 28 | AJ25: 29 | AK25: 30 | AL25: 31 | AM25: 32 | AN25: 33 | AO25: 34 | AP25: 35 | AQ25: 36 | AR25: 37 | AS25: 38 | AT25: 39 | AU25: 40
A27: 1.1 | B27: Clients - Volumes de vente - Tarifs - Revenus | H27: 2018 | I27: =H27+1 -> 2019 | J27: =I27+1 -> 2020 | K27: 2021 | L27: 2022 | M27: 2023 | N27: 2024 | O27: 2025 | P27: 2026 | Q27: 2027 | R27: 2028 | S27: 2029 | T27: 2030 | U27: 2031 | V27: 2032 | W27: 2033 | X27: 2034 | Y27: 2035 | Z27: 2036 | AA27: 2037 | AB27: 2038 | AC27: 2039 | AD27: 2040 | AE27: 2041 | AF27: 2042 | AG27: 2043 | AH27: 2044 | AI27: 2045 | AJ27: 2046 | AK27: 2047 | AL27: 2048 | AM27: 2049 | AN27: 2050 | AO27: 2051 | AP27: 2052 | AQ27: 2053 | AR27: 2054 | AS27: 2055 | AT27: 2056 | AU27: 2057
B29: Nombre de clients | H29: 1 | I29: =H29 -> 1 | J29: =I29 -> 1 | K29: 1 | L29: 1 | M29: 1 | N29: 1 | O29: 1 | P29: 1 | Q29: 1 | R29: 1 | S29: 1 | T29: 1 | U29: 1 | V29: 1 | W29: 1 | X29: 1 | Y29: 1 | Z29: 1 | AA29: 1 | AB29: 1 | AC29: 1 | AD29: 1 | AE29: 1 | AF29: 1 | AG29: 1 | AH29: 1 | AI29: 1 | AJ29: 1 | AK29: 1 | AL29: 1 | AM29: 1 | AN29: 1 | AO29: 1 | AP29: 1 | AQ29: 1 | AR29: 1 | AS29: 1 | AT29: 1 | AU29: 1
B30: Volume de vente en m3 | H30: 2,020,000 | I30: =H30 -> 2,020,000 | J30: 2,020,000 | K30: 2,020,000 | L30: 2,020,000 | M30: 2,020,000 | N30: 2,020,000 | O30: 2,020,000 | P30: 2,020,000 | Q30: 2,020,000 | R30: 2,020,000 | S30: 2,020,000 | T30: 2,020,000 | U30: 2,020,000 | V30: 2,020,000 | W30: 2,020,000 | X30: 2,020,000 | Y30: 2,020,000 | Z30: 2,020,000 | AA30: 2,020,000 | AB30: 2,020,000 | AC30: 2,020,000 | AD30: 2,020,000 | AE30: 2,020,000 | AF30: 2,020,000 | AG30: 2,020,000 | AH30: 2,020,000 | AI30: 2,020,000 | AJ30: 2,020,000 | AK30: 2,020,000 | AL30: 2,020,000 | AM30: 2,020,000 | AN30: 2,020,000 | AO30: 2,020,000 | AP30: 2,020,000 | AQ30: 2,020,000 | AR30: 2,020,000 | AS30: 2,020,000 | AT30: 2,020,000 | AU30: 2,020,000
B31: Taux de distribution (en ¢ par m3) | H31: 8.2380 | I31: 8.2380 | J31: 8.2380 | K31: 8.2380 | L31: 8.2380 | M31: 8.2380 | N31: 8.2380 | O31: 8.2380 | P31: 8.2380 | Q31: 8.2380 | R31: 8.2380 | S31: 8.2380 | T31: 8.2380 | U31: 8.2380 | V31: 8.2380 | W31: 8.2380 | X31: 8.2380 | Y31: 8.2380 | Z31: 8.2380 | AA31: 8.2380 | AB31: 8.2380 | AC31: 8.2380 | AD31: 8.2380 | AE31: 8.2380 | AF31: 8.2380 | AG31: 8.2380 | AH31: 8.2380 | AI31: 8.2380 | AJ31: 8.2380 | AK31: 8.2380 | AL31: 8.2380 | AM31: 8.2380 | AN31: 8.2380 | AO31: 8.2380 | AP31: 8.2380 | AQ31: 8.2380 | AR31: 8.2380 | AS31: 8.2380 | AT31: 8.2380 | AU31: 8.2380
B32: Revenu de distribution | H32: =H31*H30/100 -> 166,408 | I32: 166,408 | J32: 166,408 | K32: 166,408 | L32: 166,408 | M32: 166,408 | N32: 166,408 | O32: 166,408 | P32: 166,408 | Q32: 166,408 | R32: 166,408 | S32: 166,408 | T32: 166,408 | U32: 166,408 | V32: 166,408 | W32: 166,408 | X32: 166,408 | Y32: 166,408 | Z32: 166,408 | AA32: 166,408 | AB32: 166,408 | AC32: 166,408 | AD32: 166,408 | AE32: 166,408 | AF32: 166,408 | AG32: 166,408 | AH32: 166,408 | AI32: 166,408 | AJ32: 166,408 | AK32: 166,408 | AL32: 166,408 | AM32: 166,408 | AN32: 166,408 | AO32: 166,408 | AP32: 166,408 | AQ32: 166,408 | AR32: 166,408 | AS32: 166,408 | AT32: 166,408 | AU32: 166,408
A34: 1.2 | B34: Coûts d'investissement (capitalisables) | G34: =H34-1 -> 2017 | H34: =$H$27 -> 2018 | I34: =H34+1 -> 2019 | J34: =I34+1 -> 2020 | K34: 2021 | L34: 2022 | M34: 2023 | N34: 2024 | O34: 2025 | P34: 2026 | Q34: 2027 | R34: 2028 | S34: 2029 | T34: 2030 | U34: 2031 | V34: 2032 | W34: 2033 | X34: 2034 | Y34: 2035 | Z34: 2036 | AA34: 2037 | AB34: 2038 | AC34: 2039 | AD34: 2040 | AE34: 2041 | AF34: 2042 | AG34: 2043 | AH34: 2044 | AI34: 2045 | AJ34: 2046 | AK34: 2047 | AL34: 2048 | AM34: 2049 | AN34: 2050 | AO34: 2051 | AP34: 2052 | AQ34: 2053 | AR34: 2054 | AS34: 2055 | AT34: 2056 | AU34: 2057
B36: Frais de conduite - Base | G36: 908,900 | H36: 0 | I36: 0 | J36: 0 | K36: 0
B37: Frais de conduite - Frais entrepreneurs | G37: 148,622 | H37: 0 | I37: 0 | J37: 0 | K37: 0
B38: Frais de conduites - Total | G38: =G36+G37 -> 1,057,522 | H38: =H36+H37 -> 0 | I38: 0 | J38: 0 | K38: 0 | L38: =L36+L37 -> 0 | M38: 0 | N38: 0 | O38: 0 | P38: 0 | Q38: 0 | R38: 0 | S38: 0 | T38: 0 | U38: 0 | V38: 0 | W38: 0 | X38: 0 | Y38: 0 | Z38: 0 | AA38: 0 | AB38: 0 | AC38: 0 | AD38: 0 | AE38: 0 | AF38: 0 | AG38: 0 | AH38: 0 | AI38: 0 | AJ38: 0 | AK38: 0 | AL38: 0 | AM38: 0 | AN38: 0 | AO38: 0 | AP38: 0 | AQ38: 0 | AR38: 0 | AS38: 0 | AT38: 0 | AU38: 0
B40: Frais de branchements - Base | G40: 471,834 | H40: 0 | I40: 0 | J40: 0 | K40: 0
B41: Frais de branchements - Frais entrepreneurs | G41: 85,845 | H41: 0 | I41: 0 | J41: 0 | K41: 0
B42: Frais de branchements - Coûts de compteur(s) | G42: 5,202 | H42: 0 | I42: 0 | J42: 0 | K42: 0
B43: Frais de branchements - Total | G43: =G40+G41+G42 -> 562,881 | H43: =H40+H41+H42 -> 0 | I43: 0 | J43: 0 | K43: 0 | L43: =L40+L41+L42 -> 0 | M43: 0 | N43: 0 | O43: 0 | P43: 0 | Q43: 0 | R43: 0 | S43: 0 | T43: 0 | U43: 0 | V43: 0 | W43: 0 | X43: 0 | Y43: 0 | Z43: 0 | AA43: 0 | AB43: 0 | AC43: 0 | AD43: 0 | AE43: 0 | AF43: 0 | AG43: 0 | AH43: 0 | AI43: 0 | AJ43: 0 | AK43: 0 | AL43: 0 | AM43: 0 | AN43: 0 | AO43: 0 | AP43: 0 | AQ43: 0 | AR43: 0 | AS43: 0 | AT43: 0 | AU43: 0
B44: Actif non amortissable (terrain) excluant frais généraux | G44: 0 | H44: 0 | I44: 0 | J44: 0 | K44: 0 | L44: 0 | M44: 0 | N44: 0 | O44: 0 | P44: 0 | Q44: 0 | R44: 0 | S44: 0 | T44: 0 | U44: 0 | V44: 0 | W44: 0 | X44: 0 | Y44: 0 | Z44: 0 | AA44: 0 | AB44: 0 | AC44: 0 | AD44: 0 | AE44: 0 | AF44: 0 | AG44: 0 | AH44: 0 | AI44: 0 | AJ44: 0 | AK44: 0 | AL44: 0 | AM44: 0 | AN44: 0 | AO44: 0 | AP44: 0 | AQ44: 0 | AR44: 0 | AS44: 0 | AT44: 0 | AU44: 0
B45: Frais Union des municipalités | G45: =$E$10*(G36+G40) -> 0 | H45: 0 | I45: 0 | J45: 0 | K45: 0 | L45: 0 | M45: 0 | N45: 0 | O45: 0 | P45: 0 | Q45: 0 | R45: 0 | S45: 0 | T45: 0 | U45: 0 | V45: 0 | W45: 0 | X45: 0 | Y45: 0 | Z45: 0 | AA45: 0 | AB45: 0 | AC45: 0 | AD45: 0 | AE45: 0 | AF45: 0 | AG45: 0 | AH45: 0 | AI45: 0 | AJ45: 0 | AK45: 0 | AL45: 0 | AM45: 0 | AN45: 0 | AO45: 0 | AP45: 0 | AQ45: 0 | AR45: 0 | AS45: 0 | AT45: 0 | AU45: 0
B46: Frais généraux | G46: =$E$11*G38+$E$11*SUM(G43:G45) -> 235,445 | H46: 0 | I46: 0 | J46: 0 | K46: 0 | L46: 0 | M46: 0 | N46: 0 | O46: 0 | P46: 0 | Q46: 0 | R46: 0 | S46: 0 | T46: 0 | U46: 0 | V46: 0 | W46: 0 | X46: 0 | Y46: 0 | Z46: 0 | AA46: 0 | AB46: 0 | AC46: 0 | AD46: 0 | AE46: 0 | AF46: 0 | AG46: 0 | AH46: 0 | AI46: 0 | AJ46: 0 | AK46: 0 | AL46: 0 | AM46: 0 | AN46: 0 | AO46: 0 | AP46: 0 | AQ46: 0 | AR46: 0 | AS46: 0 | AT46: 0 | AU46: 0
G47: =G38+SUM(G43:G46) -> 1,855,848 | H47: 0 | I47: 0 | J47: 0 | K47: 0 | L47: 0 | M47: 0 | N47: 0 | O47: 0 | P47: 0 | Q47: 0 | R47: 0 | S47: 0 | T47: 0 | U47: 0 | V47: 0 | W47: 0 | X47: 0 | Y47: 0 | Z47: 0 | AA47: 0 | AB47: 0 | AC47: 0 | AD47: 0 | AE47: 0 | AF47: 0 | AG47: 0 | AH47: 0 | AI47: 0 | AJ47: 0 | AK47: 0 | AL47: 0 | AM47: 0 | AN47: 0 | AO47: 0 | AP47: 0 | AQ47: 0 | AR47: 0 | AS47: 0 | AT47: 0 | AU47: 0
B49: PRC - 10 ans | H49: 0 | I49: 0 | J49: 0 | K49: 0 | L49: 0 | M49: 0 | N49: 0 | O49: 0 | P49: 0 | Q49: 0 | R49: 0 | S49: 0 | T49: 0 | U49: 0 | V49: 0 | W49: 0 | X49: 0 | Y49: 0 | Z49: 0 | AA49: 0 | AB49: 0 | AC49: 0 | AD49: 0 | AE49: 0 | AF49: 0 | AG49: 0 | AH49: 0 | AI49: 0 | AJ49: 0 | AK49: 0 | AL49: 0 | AM49: 0 | AN49: 0 | AO49: 0 | AP49: 0 | AQ49: 0 | AR49: 0 | AS49: 0 | AT49: 0 | AU49: 0
B50: Contributions raccordement réseau | D50: En moins … | G50: 0 | H50: 0 | I50: 0 | J50: 0 | K50: 0 | L50: 0 | M50: 0 | N50: 0 | O50: 0 | P50: 0 | Q50: 0 | R50: 0 | S50: 0 | T50: 0 | U50: 0 | V50: 0 | W50: 0 | X50: 0 | Y50: 0 | Z50: 0 | AA50: 0 | AB50: 0 | AC50: 0 | AD50: 0 | AE50: 0 | AF50: 0 | AG50: 0 | AH50: 0 | AI50: 0 | AJ50: 0 | AK50: 0 | AL50: 0 | AM50: 0 | AN50: 0 | AO50: 0 | AP50: 0 | AQ50: 0 | AR50: 0 | AS50: 0 | AT50: 0 | AU50: 0
B51: Subventions extérieures | D51: En moins … | G51: 0 | H51: 0 | I51: 0 | J51: 0 | K51: 0 | L51: 0 | M51: 0 | N51: 0 | O51: 0 | P51: 0 | Q51: 0 | R51: 0 | S51: 0 | T51: 0 | U51: 0 | V51: 0 | W51: 0 | X51: 0 | Y51: 0 | Z51: 0 | AA51: 0 | AB51: 0 | AC51: 0 | AD51: 0 | AE51: 0 | AF51: 0 | AG51: 0 | AH51: 0 | AI51: 0 | AJ51: 0 | AK51: 0 | AL51: 0 | AM51: 0 | AN51: 0 | AO51: 0 | AP51: 0 | AQ51: 0 | AR51: 0 | AS51: 0 | AT51: 0 | AU51: 0
B52: Contributions clients | D52: En moins … | G52: 0 | H52: 0 | I52: 0 | J52: 0 | K52: 0 | L52: 0 | M52: 0 | N52: 0 | O52: 0 | P52: 0 | Q52: 0 | R52: 0 | S52: 0 | T52: 0 | U52: 0 | V52: 0 | W52: 0 | X52: 0 | Y52: 0 | Z52: 0 | AA52: 0 | AB52: 0 | AC52: 0 | AD52: 0 | AE52: 0 | AF52: 0 | AG52: 0 | AH52: 0 | AI52: 0 | AJ52: 0 | AK52: 0 | AL52: 0 | AM52: 0 | AN52: 0 | AO52: 0 | AP52: 0 | AQ52: 0 | AR52: 0 | AS52: 0 | AT52: 0 | AU52: 0
B53: Total - Investissement | D53: =SUM(G53:AU53) -> 1,855,848 | G53: =SUM(G47:G52) -> 1,855,848 | H53: 0 | I53: 0 | J53: 0 | K53: 0 | L53: 0 | M53: 0 | N53: 0 | O53: 0 | P53: 0 | Q53: 0 | R53: 0 | S53: 0 | T53: 0 | U53: 0 | V53: 0 | W53: 0 | X53: 0 | Y53: 0 | Z53: 0 | AA53: 0 | AB53: 0 | AC53: 0 | AD53: 0 | AE53: 0 | AF53: 0 | AG53: 0 | AH53: 0 | AI53: 0 | AJ53: 0 | AK53: 0 | AL53: 0 | AM53: 0 | AN53: 0 | AO53: 0 | AP53: 0 | AQ53: 0 | AR53: 0 | AS53: 0 | AT53: 0 | AU53: 0
A55: 1.3 | B55: Coûts d'opération | H55: =$H$27 -> 2018 | I55: =H55+1 -> 2019 | J55: =I55+1 -> 2020 | K55: 2021 | L55: 2022 | M55: 2023 | N55: 2024 | O55: 2025 | P55: 2026 | Q55: 2027 | R55: 2028 | S55: 2029 | T55: 2030 | U55: 2031 | V55: 2032 | W55: 2033 | X55: 2034 | Y55: 2035 | Z55: 2036 | AA55: 2037 | AB55: 2038 | AC55: 2039 | AD55: 2040 | AE55: 2041 | AF55: 2042 | AG55: 2043 | AH55: 2044 | AI55: 2045 | AJ55: 2046 | AK55: 2047 | AL55: 2048 | AM55: 2049 | AN55: 2050 | AO55: 2051 | AP55: 2052 | AQ55: 2053 | AR55: 2054 | AS55: 2055 | AT55: 2056 | AU55: 2057
B57: Coûts d'opération statutaires | H57: =$E16*H$29 -> 157 | I57: 157 | J57: 157 | K57: 157 | L57: 157 | M57: 157 | N57: 157 | O57: 157 | P57: 157 | Q57: 157 | R57: 157 | S57: 157 | T57: 157 | U57: 157 | V57: 157 | W57: 157 | X57: 157 | Y57: 157 | Z57: 157 | AA57: 157 | AB57: 157 | AC57: 157 | AD57: 157 | AE57: 157 | AF57: 157 | AG57: 157 | AH57: 157 | AI57: 157 | AJ57: 157 | AK57: 157 | AL57: 157 | AM57: 157 | AN57: 157 | AO57: 157 | AP57: 157 | AQ57: 157 | AR57: 157 | AS57: 157 | AT57: 157 | AU57: 157
B58: Coûts d'opération spécifiques | H58: 0 | I58: =H58 -> 0 | J58: =I58 -> 0 | K58: 0 | L58: =K58 -> 0 | M58: =L58 -> 0 | N58: =M58 -> 0 | O58: =N58 -> 0 | P58: =O58 -> 0 | Q58: =P58 -> 0 | R58: =Q58 -> 0 | S58: =R58 -> 0 | T58: =S58 -> 0 | U58: =T58 -> 0 | V58: =U58 -> 0 | W58: =V58 -> 0 | X58: =W58 -> 0 | Y58: =X58 -> 0 | Z58: =Y58 -> 0 | AA58: =Z58 -> 0 | AB58: =AA58 -> 0 | AC58: =AB58 -> 0 | AD58: =AC58 -> 0 | AE58: =AD58 -> 0 | AF58: =AE58 -> 0 | AG58: =AF58 -> 0 | AH58: =AG58 -> 0 | AI58: =AH58 -> 0 | AJ58: =AI58 -> 0 | AK58: =AJ58 -> 0 | AL58: =AK58 -> 0 | AM58: =AL58 -> 0 | AN58: =AM58 -> 0 | AO58: =AN58 -> 0 | AP58: =AO58 -> 0 | AQ58: =AP58 -> 0 | AR58: =AQ58 -> 0 | AS58: =AR58 -> 0 | AT58: =AS58 -> 0 | AU58: =AT58 -> 0
B59: Total - Coûts d'opération | H59: =SUM(H57:H58) -> 157 | I59: 157 | J59: 157 | K59: 157 | L59: 157 | M59: 157 | N59: 157 | O59: 157 | P59: 157 | Q59: 157 | R59: 157 | S59: 157 | T59: 157 | U59: 157 | V59: 157 | W59: 157 | X59: 157 | Y59: 157 | Z59: 157 | AA59: 157 | AB59: 157 | AC59: 157 | AD59: 157 | AE59: 157 | AF59: 157 | AG59: 157 | AH59: 157 | AI59: 157 | AJ59: 157 | AK59: 157 | AL59: 157 | AM59: 157 | AN59: 157 | AO59: 157 | AP59: 157 | AQ59: 157 | AR59: 157 | AS59: 157 | AT59: 157 | AU59: 157
A62: Section 2 - Grille de calcul | G62: 0 | H62: 1 | I62: 2 | J62: 3 | K62: 4 | L62: 5 | M62: 6 | N62: 7 | O62: 8 | P62: 9 | Q62: 10 | R62: 11 | S62: 12 | T62: 13 | U62: 14 | V62: 15 | W62: 16 | X62: 17 | Y62: 18 | Z62: 19 | AA62: 20 | AB62: 21 | AC62: 22 | AD62: 23 | AE62: 24 | AF62: 25 | AG62: 26 | AH62: 27 | AI62: 28 | AJ62: 29 | AK62: 30 | AL62: 31 | AM62: 32 | AN62: 33 | AO62: 34 | AP62: 35 | AQ62: 36 | AR62: 37 | AS62: 38 | AT62: 39 | AU62: 40
A64: 2.1 | B64: Coût de service | H64: =$H$27 -> 2018 | I64: =H64+1 -> 2019 | J64: =I64+1 -> 2020 | K64: 2021 | L64: 2022 | M64: 2023 | N64: 2024 | O64: 2025 | P64: 2026 | Q64: 2027 | R64: 2028 | S64: 2029 | T64: 2030 | U64: 2031 | V64: 2032 | W64: 2033 | X64: 2034 | Y64: 2035 | Z64: 2036 | AA64: 2037 | AB64: 2038 | AC64: 2039 | AD64: 2040 | AE64: 2041 | AF64: 2042 | AG64: 2043 | AH64: 2044 | AI64: 2045 | AJ64: 2046 | AK64: 2047 | AL64: 2048 | AM64: 2049 | AN64: 2050 | AO64: 2051 | AP64: 2052 | AQ64: 2053 | AR64: 2054 | AS64: 2055 | AT64: 2056 | AU64: 2057
B66: Coûts d'opération | H66: =H59 -> 157 | I66: 157 | J66: 157 | K66: 157 | L66: 157 | M66: 157 | N66: 157 | O66: 157 | P66: 157 | Q66: 157 | R66: 157 | S66: 157 | T66: 157 | U66: 157 | V66: 157 | W66: 157 | X66: 157 | Y66: 157 | Z66: 157 | AA66: 157 | AB66: 157 | AC66: 157 | AD66: 157 | AE66: 157 | AF66: 157 | AG66: 157 | AH66: 157 | AI66: 157 | AJ66: 157 | AK66: 157 | AL66: 157 | AM66: 157 | AN66: 157 | AO66: 157 | AP66: 157 | AQ66: 157 | AR66: 157 | AS66: 157 | AT66: 157 | AU66: 157
B67: Taxe sur les services publics | H67: =$E$12*H108 -> 26,968 | I67: 26,099 | J67: 25,230 | K67: 24,360 | L67: 23,491 | M67: 22,622 | N67: 21,753 | O67: 20,883 | P67: 20,014 | Q67: 19,145 | R67: 18,275 | S67: 17,406 | T67: 16,537 | U67: 15,667 | V67: 14,798 | W67: 13,929 | X67: 13,059 | Y67: 12,190 | Z67: 11,321 | AA67: 10,451 | AB67: 9,582 | AC67: 9,159 | AD67: 8,750 | AE67: 8,341 | AF67: 7,931 | AG67: 7,522 | AH67: 7,112 | AI67: 6,703 | AJ67: 6,293 | AK67: 5,884 | AL67: 5,474 | AM67: 5,065 | AN67: 4,655 | AO67: 4,246 | AP67: 3,836 | AQ67: 3,427 | AR67: 3,018 | AS67: 2,608 | AT67: 2,199 | AU67: 1,789
B68: Redevances | H68: =($E$13+$E$14)*H30/1000 -> 2,142 | I68: 2,142 | J68: 2,142 | K68: 2,142 | L68: 2,142 | M68: 2,142 | N68: 2,142 | O68: 2,142 | P68: 2,142 | Q68: 2,142 | R68: 2,142 | S68: 2,142 | T68: 2,142 | U68: 2,142 | V68: 2,142 | W68: 2,142 | X68: 2,142 | Y68: 2,142 | Z68: 2,142 | AA68: 2,142 | AB68: 2,142 | AC68: 2,142 | AD68: 2,142 | AE68: 2,142 | AF68: 2,142 | AG68: 2,142 | AH68: 2,142 | AI68: 2,142 | AJ68: 2,142 | AK68: 2,142 | AL68: 2,142 | AM68: 2,142 | AN68: 2,142 | AO68: 2,142 | AP68: 2,142 | AQ68: 2,142 | AR68: 2,142 | AS68: 2,142 | AT68: 2,142 | AU68: 2,142
B69: Amortissement des immobilisations | H69: =-H105 -> 57,954 | I69: =-I105 -> 57,954 | J69: 57,954 | K69: 57,954 | L69: 57,954 | M69: 57,954 | N69: 57,954 | O69: 57,954 | P69: 57,954 | Q69: 57,954 | R69: 57,954 | S69: 57,954 | T69: 57,954 | U69: 57,954 | V69: 57,954 | W69: 57,954 | X69: 57,954 | Y69: 57,954 | Z69: 57,954 | AA69: 57,954 | AB69: 57,954 | AC69: 28,178 | AD69: 27,298 | AE69: 27,298 | AF69: 27,298 | AG69: 27,298 | AH69: 27,298 | AI69: 27,298 | AJ69: 27,298 | AK69: 27,298 | AL69: 27,298 | AM69: 27,298 | AN69: 27,298 | AO69: 27,298 | AP69: 27,298 | AQ69: 27,298 | AR69: 27,298 | AS69: 27,298 | AT69: 27,298 | AU69: 27,298
B70: Impôts | H70: =H128 -> 26,097 | I70: =I128 -> 6,037 | J70: 7,621 | K70: 9,061 | L70: 10,367 | M70: 11,546 | N70: 12,607 | O70: 13,556 | P70: 14,400 | Q70: 15,145 | R70: 15,798 | S70: 16,363 | T70: 16,846 | U70: 17,252 | V70: 17,586 | W70: 17,851 | X70: 18,053 | Y70: 18,194 | Z70: 18,279 | AA70: 18,311 | AB70: 18,293 | AC70: 7,476 | AD70: 7,460 | AE70: 7,733 | AF70: 7,967 | AG70: 8,164 | AH70: 8,327 | AI70: 8,457 | AJ70: 8,557 | AK70: 8,628 | AL70: 8,673 | AM70: 8,692 | AN70: 8,687 | AO70: 8,660 | AP70: 8,612 | AQ70: 8,544 | AR70: 8,457 | AS70: 8,353 | AT70: 8,233 | AU70: 8,097
B71: Rendement | H71: =$E$21*H81 -> 96,459 | I71: 93,399 | J71: 90,339 | K71: 87,279 | L71: 84,219 | M71: 81,159 | N71: 78,099 | O71: 75,039 | P71: 71,979 | Q71: 68,919 | R71: 65,859 | S71: 62,799 | T71: 59,739 | U71: 56,679 | V71: 53,619 | W71: 50,559 | X71: 47,499 | Y71: 44,439 | Z71: 41,379 | AA71: 38,319 | AB71: 35,259 | AC71: 32,985 | AD71: 31,521 | AE71: 30,079 | AF71: 28,638 | AG71: 27,197 | AH71: 25,756 | AI71: 24,314 | AJ71: 22,873 | AK71: 21,432 | AL71: 19,990 | AM71: 18,549 | AN71: 17,108 | AO71: 15,666 | AP71: 14,225 | AQ71: 12,784 | AR71: 11,342 | AS71: 9,901 | AT71: 8,460 | AU71: 7,018
B72: Total - Coût de service | H72: =SUM(H66:H71) -> 209,778 | I72: 185,788 | J72: 183,443 | K72: 180,954 | L72: 178,330 | M72: 175,581 | N72: 172,712 | O72: 169,732 | P72: 166,646 | Q72: 163,462 | R72: 160,185 | S72: 156,821 | T72: 153,375 | U72: 149,852 | V72: 146,256 | W72: 142,593 | X72: 138,865 | Y72: 135,077 | Z72: 131,233 | AA72: 127,335 | AB72: 123,387 | AC72: 80,098 | AD72: 77,328 | AE72: 75,750 | AF72: 74,133 | AG72: 72,480 | AH72: 70,792 | AI72: 69,071 | AJ72: 67,320 | AK72: 65,541 | AL72: 63,734 | AM72: 61,902 | AN72: 60,047 | AO72: 58,169 | AP72: 56,270 | AQ72: 54,351 | AR72: 52,414 | AS72: 50,459 | AT72: 48,488 | AU72: 46,502
A74: 2.2 | B74: Base de tarification | H74: =$H$27 -> 2018 | I74: =H74+1 -> 2019 | J74: =I74+1 -> 2020 | K74: 2021 | L74: 2022 | M74: 2023 | N74: 2024 | O74: 2025 | P74: 2026 | Q74: 2027 | R74: 2028 | S74: 2029 | T74: 2030 | U74: 2031 | V74: 2032 | W74: 2033 | X74: 2034 | Y74: 2035 | Z74: 2036 | AA74: 2037 | AB74: 2038 | AC74: 2039 | AD74: 2040 | AE74: 2041 | AF74: 2042 | AG74: 2043 | AH74: 2044 | AI74: 2045 | AJ74: 2046 | AK74: 2047 | AL74: 2048 | AM74: 2049 | AN74: 2050 | AO74: 2051 | AP74: 2052 | AQ74: 2053 | AR74: 2054 | AS74: 2055 | AT74: 2056 | AU74: 2057
B76: Diminution de l'équité réglementaire | H76: =-$E$20*H105/2-$E$20*H99*9/13 -> 13,329 | I76: =-$E$20*H$100+$E$20*H99*9/13-$E$20*H105/2-$E$20*I105/2-$E$20*I99*9/13 -> 26,659 | J76: 26,659 | K76: 26,659 | L76: 26,659 | M76: 26,659 | N76: 26,659 | O76: 26,659 | P76: 26,659 | Q76: 26,659 | R76: 26,659 | S76: 26,659 | T76: 26,659 | U76: 26,659 | V76: 26,659 | W76: 26,659 | X76: 26,659 | Y76: 26,659 | Z76: 26,659 | AA76: 26,659 | AB76: 26,659 | AC76: 19,810 | AD76: 12,759 | AE76: 12,557 | AF76: 12,557 | AG76: 12,557 | AH76: 12,557 | AI76: 12,557 | AJ76: 12,557 | AK76: 12,557 | AL76: 12,557 | AM76: 12,557 | AN76: 12,557 | AO76: 12,557 | AP76: 12,557 | AQ76: 12,557 | AR76: 12,557 | AS76: 12,557 | AT76: 12,557 | AU76: 12,557
B77: Remboursement de la dette réglementaire | H77: =-$E$19*H105/2-$E$19*H99*9/13 -> 15,648 | I77: =-$E$19*H$100+$E$19*H99*9/13-$E$19*H105/2-$E$19*I105/2-$E$19*I99*9/13 -> 31,295 | J77: 31,295 | K77: 31,295 | L77: 31,295 | M77: 31,295 | N77: 31,295 | O77: 31,295 | P77: 31,295 | Q77: 31,295 | R77: 31,295 | S77: 31,295 | T77: 31,295 | U77: 31,295 | V77: 31,295 | W77: 31,295 | X77: 31,295 | Y77: 31,295 | Z77: 31,295 | AA77: 31,295 | AB77: 31,295 | AC77: 23,256 | AD77: 14,978 | AE77: 14,741 | AF77: 14,741 | AG77: 14,741 | AH77: 14,741 | AI77: 14,741 | AJ77: 14,741 | AK77: 14,741 | AL77: 14,741 | AM77: 14,741 | AN77: 14,741 | AO77: 14,741 | AP77: 14,741 | AQ77: 14,741 | AR77: 14,741 | AS77: 14,741 | AT77: 14,741 | AU77: 14,741
B79: Équité | G79: =($G$100)*$E$20 -> 853,690 | H79: =G79-H76 -> 840,360 | I79: =H79-I76 -> 813,702 | J79: =I79-J76 -> 787,043 | K79: 760,384 | L79: 733,725 | M79: 707,066 | N79: 680,407 | O79: 653,748 | P79: 627,089 | Q79: 600,430 | R79: 573,772 | S79: 547,113 | T79: 520,454 | U79: 493,795 | V79: 467,136 | W79: 440,477 | X79: 413,818 | Y79: 387,159 | Z79: 360,501 | AA79: 333,842 | AB79: 307,183 | AC79: 287,372 | AD79: 274,613 | AE79: 262,056 | AF79: 249,499 | AG79: 236,942 | AH79: 224,385 | AI79: 211,828 | AJ79: 199,272 | AK79: 186,715 | AL79: 174,158 | AM79: 161,601 | AN79: 149,044 | AO79: 136,487 | AP79: 123,930 | AQ79: 111,373 | AR79: 98,817 | AS79: 86,260 | AT79: 73,703 | AU79: 61,146
B80: Dette | G80: =($G$100)*$E$19 -> 1,002,158 | H80: =G80-H77 -> 986,510 | I80: 955,215 | J80: 923,920 | K80: 892,624 | L80: 861,329 | M80: 830,034 | N80: 798,739 | O80: 767,444 | P80: 736,148 | Q80: 704,853 | R80: 673,558 | S80: 642,263 | T80: 610,968 | U80: 579,672 | V80: 548,377 | W80: 517,082 | X80: 485,787 | Y80: 454,491 | Z80: 423,196 | AA80: 391,901 | AB80: 360,606 | AC80: 337,350 | AD80: 322,372 | AE80: 307,631 | AF80: 292,890 | AG80: 278,150 | AH80: 263,409 | AI80: 248,668 | AJ80: 233,928 | AK80: 219,187 | AL80: 204,446 | AM80: 189,705 | AN80: 174,965 | AO80: 160,224 | AP80: 145,483 | AQ80: 130,743 | AR80: 116,002 | AS80: 101,261 | AT80: 86,521 | AU80: 71,780
B81: Total - Base de tarification moyenne | G81: =G79+G80 -> 1,855,848 | H81: =H79+H80 -> 1,826,871 | I81: =I79+I80 -> 1,768,916 | J81: =J79+J80 -> 1,710,962 | K81: 1,653,008 | L81: 1,595,054 | M81: 1,537,100 | N81: 1,479,146 | O81: 1,421,192 | P81: 1,363,238 | Q81: 1,305,284 | R81: 1,247,330 | S81: 1,189,375 | T81: 1,131,421 | U81: 1,073,467 | V81: 1,015,513 | W81: 957,559 | X81: 899,605 | Y81: 841,651 | Z81: 783,697 | AA81: 725,743 | AB81: 667,789 | AC81: 624,722 | AD81: 596,985 | AE81: 569,687 | AF81: 542,389 | AG81: 515,092 | AH81: 487,794 | AI81: 460,497 | AJ81: 433,199 | AK81: 405,902 | AL81: 378,604 | AM81: 351,306 | AN81: 324,009 | AO81: 296,711 | AP81: 269,414 | AQ81: 242,116 | AR81: 214,819 | AS81: 187,521 | AT81: 160,223 | AU81: 132,926
A83: 2.3 | B83: Amortissement comptable et fiscal | G83: =H83-1 -> 2017 | H83: =$H$27 -> 2018 | I83: =H83+1 -> 2019 | J83: =I83+1 -> 2020 | K83: 2021 | L83: 2022 | M83: 2023 | N83: 2024 | O83: 2025 | P83: 2026 | Q83: 2027 | R83: 2028 | S83: 2029 | T83: 2030 | U83: 2031 | V83: 2032 | W83: 2033 | X83: 2034 | Y83: 2035 | Z83: 2036 | AA83: 2037 | AB83: 2038 | AC83: 2039 | AD83: 2040 | AE83: 2041 | AF83: 2042 | AG83: 2043 | AH83: 2044 | AI83: 2045 | AJ83: 2046 | AK83: 2047 | AL83: 2048 | AM83: 2049 | AN83: 2050 | AO83: 2051 | AP83: 2052 | AQ83: 2053 | AR83: 2054 | AS83: 2055 | AT83: 2056 | AU83: 2057
B85: Additions après répartition des frais UMQ, des frais généraux et des contributions/subventions
B87: Répartition UMQ - Conduite | G87: =IFERROR(G36/(G36+G40),0) -> 65.8% | H87: 0.0% | I87: 0.0% | J87: 0.0% | K87: 0.0% | L87: 0.0% | M87: 0.0% | N87: 0.0% | O87: 0.0% | P87: 0.0% | Q87: 0.0% | R87: 0.0% | S87: 0.0% | T87: 0.0% | U87: 0.0% | V87: 0.0% | W87: 0.0% | X87: 0.0% | Y87: 0.0% | Z87: 0.0% | AA87: 0.0% | AB87: 0.0% | AC87: 0.0% | AD87: 0.0% | AE87: 0.0% | AF87: 0.0% | AG87: 0.0% | AH87: 0.0% | AI87: 0.0% | AJ87: 0.0% | AK87: 0.0% | AL87: 0.0% | AM87: 0.0% | AN87: 0.0% | AO87: 0.0% | AP87: 0.0% | AQ87: 0.0% | AR87: 0.0% | AS87: 0.0% | AT87: 0.0% | AU87: 0.0%
B88: Répartition UMQ - Branchement | G88: =IFERROR(G40/(G36+G40),0) -> 34.2% | H88: 0.0% | I88: 0.0% | J88: 0.0% | K88: 0.0% | L88: 0.0% | M88: 0.0% | N88: 0.0% | O88: 0.0% | P88: 0.0% | Q88: 0.0% | R88: 0.0% | S88: 0.0% | T88: 0.0% | U88: 0.0% | V88: 0.0% | W88: 0.0% | X88: 0.0% | Y88: 0.0% | Z88: 0.0% | AA88: 0.0% | AB88: 0.0% | AC88: 0.0% | AD88: 0.0% | AE88: 0.0% | AF88: 0.0% | AG88: 0.0% | AH88: 0.0% | AI88: 0.0% | AJ88: 0.0% | AK88: 0.0% | AL88: 0.0% | AM88: 0.0% | AN88: 0.0% | AO88: 0.0% | AP88: 0.0% | AQ88: 0.0% | AR88: 0.0% | AS88: 0.0% | AT88: 0.0% | AU88: 0.0%
B90: Répartition Fais généraux - Conduite | G90: =IFERROR((G36+G37+G45*G87)/(G36+G37+G40+G41+G42+G45),0) -> 65.3% | H90: =IFERROR((H36+H37+H45*H87)/(H36+H37+H40+H41+H42+H45),0) -> 0.0% | I90: 0.0% | J90: 0.0% | K90: 0.0% | L90: 0.0% | M90: 0.0% | N90: 0.0% | O90: 0.0% | P90: 0.0% | Q90: 0.0% | R90: 0.0% | S90: 0.0% | T90: 0.0% | U90: 0.0% | V90: 0.0% | W90: 0.0% | X90: 0.0% | Y90: 0.0% | Z90: 0.0% | AA90: 0.0% | AB90: 0.0% | AC90: 0.0% | AD90: 0.0% | AE90: 0.0% | AF90: 0.0% | AG90: 0.0% | AH90: 0.0% | AI90: 0.0% | AJ90: 0.0% | AK90: 0.0% | AL90: 0.0% | AM90: 0.0% | AN90: 0.0% | AO90: 0.0% | AP90: 0.0% | AQ90: 0.0% | AR90: 0.0% | AS90: 0.0% | AT90: 0.0% | AU90: 0.0%
B91: Répartition Fais généraux - Branchement | G91: =IFERROR((G40+G41+G42+G45*G88)/(G36+G37+G40+G41+G42+G45),0) -> 34.7% | H91: =IFERROR((H40+H41+H42+H45*H88)/(H36+H37+H40+H41+H42+H45),0) -> 0.0% | I91: 0.0% | J91: 0.0% | K91: 0.0% | L91: 0.0% | M91: 0.0% | N91: 0.0% | O91: 0.0% | P91: 0.0% | Q91: 0.0% | R91: 0.0% | S91: 0.0% | T91: 0.0% | U91: 0.0% | V91: 0.0% | W91: 0.0% | X91: 0.0% | Y91: 0.0% | Z91: 0.0% | AA91: 0.0% | AB91: 0.0% | AC91: 0.0% | AD91: 0.0% | AE91: 0.0% | AF91: 0.0% | AG91: 0.0% | AH91: 0.0% | AI91: 0.0% | AJ91: 0.0% | AK91: 0.0% | AL91: 0.0% | AM91: 0.0% | AN91: 0.0% | AO91: 0.0% | AP91: 0.0% | AQ91: 0.0% | AR91: 0.0% | AS91: 0.0% | AT91: 0.0% | AU91: 0.0%
B93: Répartition Contributions/subventions - Conduite | G93: =IFERROR((SUM($G$38:$AU$38)+SUMPRODUCT($G$90:$AU$90,$G$46:$AU$46))/(SUM($G$38:$AU$38)+SUM($G$43:$AU$43)+SUM($G$46:$AU$46)),0) -> 65.3% | H93: 65.3% | I93: 65.3% | J93: 65.3% | K93: 65.3% | L93: 65.3% | M93: 65.3% | N93: 65.3% | O93: 65.3% | P93: 65.3% | Q93: 65.3% | R93: 65.3% | S93: 65.3% | T93: 65.3% | U93: 65.3% | V93: 65.3% | W93: 65.3% | X93: 65.3% | Y93: 65.3% | Z93: 65.3% | AA93: 65.3% | AB93: 65.3% | AC93: 65.3% | AD93: 65.3% | AE93: 65.3% | AF93: 65.3% | AG93: 65.3% | AH93: 65.3% | AI93: 65.3% | AJ93: 65.3% | AK93: 65.3% | AL93: 65.3% | AM93: 65.3% | AN93: 65.3% | AO93: 65.3% | AP93: 65.3% | AQ93: 65.3% | AR93: 65.3% | AS93: 65.3% | AT93: 65.3% | AU93: 65.3%
B94: Répartition Contributions/subventions - Branchement | G94: =IFERROR((SUM($G$43:$AU$43)+SUMPRODUCT($G$91:$AU$91,$G$46:$AU$46))/(SUM($G$38:$AU$38)+SUM($G$43:$AU$43)+SUM($G$46:$AU$46)),0) -> 34.7% | H94: 34.7% | I94: 34.7% | J94: 34.7% | K94: 34.7% | L94: 34.7% | M94: 34.7% | N94: 34.7% | O94: 34.7% | P94: 34.7% | Q94: 34.7% | R94: 34.7% | S94: 34.7% | T94: 34.7% | U94: 34.7% | V94: 34.7% | W94: 34.7% | X94: 34.7% | Y94: 34.7% | Z94: 34.7% | AA94: 34.7% | AB94: 34.7% | AC94: 34.7% | AD94: 34.7% | AE94: 34.7% | AF94: 34.7% | AG94: 34.7% | AH94: 34.7% | AI94: 34.7% | AJ94: 34.7% | AK94: 34.7% | AL94: 34.7% | AM94: 34.7% | AN94: 34.7% | AO94: 34.7% | AP94: 34.7% | AQ94: 34.7% | AR94: 34.7% | AS94: 34.7% | AT94: 34.7% | AU94: 34.7%
E95: Total
B96: =B38 -> Frais de conduites - Total | E96: =SUM(G96:AU96) -> 1,211,180 | G96: =G38+G$87*G$45+G$90*G$46+G$93*(G$51+G$52) -> 1,211,180 | H96: 0 | I96: 0 | J96: 0 | K96: 0 | L96: 0 | M96: 0 | N96: 0 | O96: 0 | P96: 0 | Q96: 0 | R96: 0 | S96: 0 | T96: 0 | U96: 0 | V96: 0 | W96: 0 | X96: 0 | Y96: 0 | Z96: 0 | AA96: 0 | AB96: 0 | AC96: 0 | AD96: 0 | AE96: 0 | AF96: 0 | AG96: 0 | AH96: 0 | AI96: 0 | AJ96: 0 | AK96: 0 | AL96: 0 | AM96: 0 | AN96: 0 | AO96: 0 | AP96: 0 | AQ96: 0 | AR96: 0 | AS96: 0 | AT96: 0 | AU96: 0
B97: =B43 -> Frais de branchements - Total | E97: =SUM(G97:AU97) -> 644,668 | G97: =G43+G$88*G$45+G$91*G$46+G$94*(G$51+G$52)+G$50 -> 644,668 | H97: 0 | I97: 0 | J97: 0 | K97: 0 | L97: 0 | M97: 0 | N97: 0 | O97: 0 | P97: 0 | Q97: 0 | R97: 0 | S97: 0 | T97: 0 | U97: 0 | V97: 0 | W97: 0 | X97: 0 | Y97: 0 | Z97: 0 | AA97: 0 | AB97: 0 | AC97: 0 | AD97: 0 | AE97: 0 | AF97: 0 | AG97: 0 | AH97: 0 | AI97: 0 | AJ97: 0 | AK97: 0 | AL97: 0 | AM97: 0 | AN97: 0 | AO97: 0 | AP97: 0 | AQ97: 0 | AR97: 0 | AS97: 0 | AT97: 0 | AU97: 0
B98: Actif non amortissable (terrain) | E98: =SUM(G98:AU98) -> 0 | G98: =G44*(1+$E$11) -> 0 | H98: 0 | I98: 0 | J98: 0 | K98: 0 | L98: 0 | M98: 0 | N98: 0 | O98: 0 | P98: 0 | Q98: 0 | R98: 0 | S98: 0 | T98: 0 | U98: 0 | V98: 0 | W98: 0 | X98: 0 | Y98: 0 | Z98: 0 | AA98: 0 | AB98: 0 | AC98: 0 | AD98: 0 | AE98: 0 | AF98: 0 | AG98: 0 | AH98: 0 | AI98: 0 | AJ98: 0 | AK98: 0 | AL98: 0 | AM98: 0 | AN98: 0 | AO98: 0 | AP98: 0 | AQ98: 0 | AR98: 0 | AS98: 0 | AT98: 0 | AU98: 0
B99: PRC - 10 ans | E99: =SUM(G99:AU99) -> 0 | H99: =H49 -> 0 | I99: 0 | J99: 0 | K99: 0 | L99: 0 | M99: 0 | N99: 0 | O99: 0 | P99: 0 | Q99: 0 | R99: 0 | S99: 0 | T99: 0 | U99: 0 | V99: 0 | W99: 0 | X99: 0 | Y99: 0 | Z99: 0 | AA99: 0 | AB99: 0 | AC99: 0 | AD99: 0 | AE99: 0 | AF99: 0 | AG99: 0 | AH99: 0 | AI99: 0 | AJ99: 0 | AK99: 0 | AL99: 0 | AM99: 0 | AN99: 0 | AO99: 0 | AP99: 0 | AQ99: 0 | AR99: 0 | AS99: 0 | AT99: 0 | AU99: 0
E100: =SUM(G100:AU100) -> 1,855,848 | G100: =SUM(G96:G99) -> 1,855,848 | H100: 0 | I100: 0 | J100: 0 | K100: 0 | L100: 0 | M100: 0 | N100: 0 | O100: 0 | P100: 0 | Q100: 0 | R100: 0 | S100: 0 | T100: 0 | U100: 0 | V100: 0 | W100: 0 | X100: 0 | Y100: 0 | Z100: 0 | AA100: 0 | AB100: 0 | AC100: 0 | AD100: 0 | AE100: 0 | AF100: 0 | AG100: 0 | AH100: 0 | AI100: 0 | AJ100: 0 | AK100: 0 | AL100: 0 | AM100: 0 | AN100: 0 | AO100: 0 | AP100: 0 | AQ100: 0 | AR100: 0 | AS100: 0 | AT100: 0 | AU100: 0
B101: Amortissement comptable
B102: ="Amort. - "&B38 -> Amort. - Frais de conduites - Total | E102: =$E$6 -> 44.4 ans | H102: =-SUM(OFFSET(G96,0,-MIN(H$62-1,ROUNDDOWN($E102-1,0))):G96)/$E102-IF(H$62>$E102,(OFFSET(G96,0,-ROUNDUP($E102-1,0))-(ROUNDDOWN($E102,0)*(OFFSET(G96,0,-ROUNDUP($E102-1,0))/$E102))),0) -> -27,298 | I102: =-SUM(OFFSET(H96,0,-MIN(I$62-1,ROUNDDOWN($E102-1,0))):H96)/$E102-IF(I$62>$E102,(OFFSET(H96,0,-ROUNDUP($E102-1,0))-(ROUNDDOWN($E102,0)*(OFFSET(H96,0,-ROUNDUP($E102-1,0))/$E102))),0) -> -27,298 | J102: =-SUM(OFFSET(I96,0,-MIN(J$62-1,ROUNDDOWN($E102-1,0))):I96)/$E102-IF(J$62>$E102,(OFFSET(I96,0,-ROUNDUP($E102-1,0))-(ROUNDDOWN($E102,0)*(OFFSET(I96,0,-ROUNDUP($E102-1,0))/$E102))),0) -> -27,298 | K102: =-SUM(OFFSET(J96,0,-MIN(K$62-1,ROUNDDOWN($E102-1,0))):J96)/$E102-IF(K$62>$E102,(OFFSET(J96,0,-ROUNDUP($E102-1,0))-(ROUNDDOWN($E102,0)*(OFFSET(J96,0,-ROUNDUP($E102-1,0))/$E102))),0) -> -27,298 | L102: =-SUM(OFFSET(K96,0,-MIN(L$62-1,ROUNDDOWN($E102-1,0))):K96)/$E102-IF(L$62>$E102,(OFFSET(K96,0,-ROUNDUP($E102-1,0))-(ROUNDDOWN($E102,0)*(OFFSET(K96,0,-ROUNDUP($E102-1,0))/$E102))),0) -> -27,298 | M102: =-SUM(OFFSET(L96,0,-MIN(M$62-1,ROUNDDOWN($E102-1,0))):L96)/$E102-IF(M$62>$E102,(OFFSET(L96,0,-ROUNDUP($E102-1,0))-(ROUNDDOWN($E102,0)*(OFFSET(L96,0,-ROUNDUP($E102-1,0))/$E102))),0) -> -27,298 | N102: =-SUM(OFFSET(M96,0,-MIN(N$62-1,ROUNDDOWN($E102-1,0))):M96)/$E102-IF(N$62>$E102,(OFFSET(M96,0,-ROUNDUP($E102-1,0))-(ROUNDDOWN($E102,0)*(OFFSET(M96,0,-ROUNDUP($E102-1,0))/$E102))),0) -> -27,298 | O102: =-SUM(OFFSET(N96,0,-MIN(O$62-1,ROUNDDOWN($E102-1,0))):N96)/$E102-IF(O$62>$E102,(OFFSET(N96,0,-ROUNDUP($E102-1,0))-(ROUNDDOWN($E102,0)*(OFFSET(N96,0,-ROUNDUP($E102-1,0))/$E102))),0) -> -27,298 | P102: =-SUM(OFFSET(O96,0,-MIN(P$62-1,ROUNDDOWN($E102-1,0))):O96)/$E102-IF(P$62>$E102,(OFFSET(O96,0,-ROUNDUP($E102-1,0))-(ROUNDDOWN($E102,0)*(OFFSET(O96,0,-ROUNDUP($E102-1,0))/$E102))),0) -> -27,298 | Q102: =-SUM(OFFSET(P96,0,-MIN(Q$62-1,ROUNDDOWN($E102-1,0))):P96)/$E102-IF(Q$62>$E102,(OFFSET(P96,0,-ROUNDUP($E102-1,0))-(ROUNDDOWN($E102,0)*(OFFSET(P96,0,-ROUNDUP($E102-1,0))/$E102))),0) -> -27,298 | R102: =-SUM(OFFSET(Q96,0,-MIN(R$62-1,ROUNDDOWN($E102-1,0))):Q96)/$E102-IF(R$62>$E102,(OFFSET(Q96,0,-ROUNDUP($E102-1,0))-(ROUNDDOWN($E102,0)*(OFFSET(Q96,0,-ROUNDUP($E102-1,0))/$E102))),0) -> -27,298 | S102: =-SUM(OFFSET(R96,0,-MIN(S$62-1,ROUNDDOWN($E102-1,0))):R96)/$E102-IF(S$62>$E102,(OFFSET(R96,0,-ROUNDUP($E102-1,0))-(ROUNDDOWN($E102,0)*(OFFSET(R96,0,-ROUNDUP($E102-1,0))/$E102))),0) -> -27,298 | T102: =-SUM(OFFSET(S96,0,-MIN(T$62-1,ROUNDDOWN($E102-1,0))):S96)/$E102-IF(T$62>$E102,(OFFSET(S96,0,-ROUNDUP($E102-1,0))-(ROUNDDOWN($E102,0)*(OFFSET(S96,0,-ROUNDUP($E102-1,0))/$E102))),0) -> -27,298 | U102: =-SUM(OFFSET(T96,0,-MIN(U$62-1,ROUNDDOWN($E102-1,0))):T96)/$E102-IF(U$62>$E102,(OFFSET(T96,0,-ROUNDUP($E102-1,0))-(ROUNDDOWN($E102,0)*(OFFSET(T96,0,-ROUNDUP($E102-1,0))/$E102))),0) -> -27,298 | V102: =-SUM(OFFSET(U96,0,-MIN(V$62-1,ROUNDDOWN($E102-1,0))):U96)/$E102-IF(V$62>$E102,(OFFSET(U96,0,-ROUNDUP($E102-1,0))-(ROUNDDOWN($E102,0)*(OFFSET(U96,0,-ROUNDUP($E102-1,0))/$E102))),0) -> -27,298 | W102: =-SUM(OFFSET(V96,0,-MIN(W$62-1,ROUNDDOWN($E102-1,0))):V96)/$E102-IF(W$62>$E102,(OFFSET(V96,0,-ROUNDUP($E102-1,0))-(ROUNDDOWN($E102,0)*(OFFSET(V96,0,-ROUNDUP($E102-1,0))/$E102))),0) -> -27,298 | X102: =-SUM(OFFSET(W96,0,-MIN(X$62-1,ROUNDDOWN($E102-1,0))):W96)/$E102-IF(X$62>$E102,(OFFSET(W96,0,-ROUNDUP($E102-1,0))-(ROUNDDOWN($E102,0)*(OFFSET(W96,0,-ROUNDUP($E102-1,0))/$E102))),0) -> -27,298 | Y102: =-SUM(OFFSET(X96,0,-MIN(Y$62-1,ROUNDDOWN($E102-1,0))):X96)/$E102-IF(Y$62>$E102,(OFFSET(X96,0,-ROUNDUP($E102-1,0))-(ROUNDDOWN($E102,0)*(OFFSET(X96,0,-ROUNDUP($E102-1,0))/$E102))),0) -> -27,298 | Z102: =-SUM(OFFSET(Y96,0,-MIN(Z$62-1,ROUNDDOWN($E102-1,0))):Y96)/$E102-IF(Z$62>$E102,(OFFSET(Y96,0,-ROUNDUP($E102-1,0))-(ROUNDDOWN($E102,0)*(OFFSET(Y96,0,-ROUNDUP($E102-1,0))/$E102))),0) -> -27,298 | AA102: =-SUM(OFFSET(Z96,0,-MIN(AA$62-1,ROUNDDOWN($E102-1,0))):Z96)/$E102-IF(AA$62>$E102,(OFFSET(Z96,0,-ROUNDUP($E102-1,0))-(ROUNDDOWN($E102,0)*(OFFSET(Z96,0,-ROUNDUP($E102-1,0))/$E102))),0) -> -27,298 | AB102: =-SUM(OFFSET(AA96,0,-MIN(AB$62-1,ROUNDDOWN($E102-1,0))):AA96)/$E102-IF(AB$62>$E102,(OFFSET(AA96,0,-ROUNDUP($E102-1,0))-(ROUNDDOWN($E102,0)*(OFFSET(AA96,0,-ROUNDUP($E102-1,0))/$E102))),0) -> -27,298 | AC102: =-SUM(OFFSET(AB96,0,-MIN(AC$62-1,ROUNDDOWN($E102-1,0))):AB96)/$E102-IF(AC$62>$E102,(OFFSET(AB96,0,-ROUNDUP($E102-1,0))-(ROUNDDOWN($E102,0)*(OFFSET(AB96,0,-ROUNDUP($E102-1,0))/$E102))),0) -> -27,298 | AD102: =-SUM(OFFSET(AC96,0,-MIN(AD$62-1,ROUNDDOWN($E102-1,0))):AC96)/$E102-IF(AD$62>$E102,(OFFSET(AC96,0,-ROUNDUP($E102-1,0))-(ROUNDDOWN($E102,0)*(OFFSET(AC96,0,-ROUNDUP($E102-1,0))/$E102))),0) -> -27,298 | AE102: =-SUM(OFFSET(AD96,0,-MIN(AE$62-1,ROUNDDOWN($E102-1,0))):AD96)/$E102-IF(AE$62>$E102,(OFFSET(AD96,0,-ROUNDUP($E102-1,0))-(ROUNDDOWN($E102,0)*(OFFSET(AD96,0,-ROUNDUP($E102-1,0))/$E102))),0) -> -27,298 | AF102: =-SUM(OFFSET(AE96,0,-MIN(AF$62-1,ROUNDDOWN($E102-1,0))):AE96)/$E102-IF(AF$62>$E102,(OFFSET(AE96,0,-ROUNDUP($E102-1,0))-(ROUNDDOWN($E102,0)*(OFFSET(AE96,0,-ROUNDUP($E102-1,0))/$E102))),0) -> -27,298 | AG102: =-SUM(OFFSET(AF96,0,-MIN(AG$62-1,ROUNDDOWN($E102-1,0))):AF96)/$E102-IF(AG$62>$E102,(OFFSET(AF96,0,-ROUNDUP($E102-1,0))-(ROUNDDOWN($E102,0)*(OFFSET(AF96,0,-ROUNDUP($E102-1,0))/$E102))),0) -> -27,298 | AH102: =-SUM(OFFSET(AG96,0,-MIN(AH$62-1,ROUNDDOWN($E102-1,0))):AG96)/$E102-IF(AH$62>$E102,(OFFSET(AG96,0,-ROUNDUP($E102-1,0))-(ROUNDDOWN($E102,0)*(OFFSET(AG96,0,-ROUNDUP($E102-1,0))/$E102))),0) -> -27,298 | AI102: =-SUM(OFFSET(AH96,0,-MIN(AI$62-1,ROUNDDOWN($E102-1,0))):AH96)/$E102-IF(AI$62>$E102,(OFFSET(AH96,0,-ROUNDUP($E102-1,0))-(ROUNDDOWN($E102,0)*(OFFSET(AH96,0,-ROUNDUP($E102-1,0))/$E102))),0) -> -27,298 | AJ102: =-SUM(OFFSET(AI96,0,-MIN(AJ$62-1,ROUNDDOWN($E102-1,0))):AI96)/$E102-IF(AJ$62>$E102,(OFFSET(AI96,0,-ROUNDUP($E102-1,0))-(ROUNDDOWN($E102,0)*(OFFSET(AI96,0,-ROUNDUP($E102-1,0))/$E102))),0) -> -27,298 | AK102: =-SUM(OFFSET(AJ96,0,-MIN(AK$62-1,ROUNDDOWN($E102-1,0))):AJ96)/$E102-IF(AK$62>$E102,(OFFSET(AJ96,0,-ROUNDUP($E102-1,0))-(ROUNDDOWN($E102,0)*(OFFSET(AJ96,0,-ROUNDUP($E102-1,0))/$E102))),0) -> -27,298 | AL102: =-SUM(OFFSET(AK96,0,-MIN(AL$62-1,ROUNDDOWN($E102-1,0))):AK96)/$E102-IF(AL$62>$E102,(OFFSET(AK96,0,-ROUNDUP($E102-1,0))-(ROUNDDOWN($E102,0)*(OFFSET(AK96,0,-ROUNDUP($E102-1,0))/$E102))),0) -> -27,298 | AM102: =-SUM(OFFSET(AL96,0,-MIN(AM$62-1,ROUNDDOWN($E102-1,0))):AL96)/$E102-IF(AM$62>$E102,(OFFSET(AL96,0,-ROUNDUP($E102-1,0))-(ROUNDDOWN($E102,0)*(OFFSET(AL96,0,-ROUNDUP($E102-1,0))/$E102))),0) -> -27,298 | AN102: =-SUM(OFFSET(AM96,0,-MIN(AN$62-1,ROUNDDOWN($E102-1,0))):AM96)/$E102-IF(AN$62>$E102,(OFFSET(AM96,0,-ROUNDUP($E102-1,0))-(ROUNDDOWN($E102,0)*(OFFSET(AM96,0,-ROUNDUP($E102-1,0))/$E102))),0) -> -27,298 | AO102: =-SUM(OFFSET(AN96,0,-MIN(AO$62-1,ROUNDDOWN($E102-1,0))):AN96)/$E102-IF(AO$62>$E102,(OFFSET(AN96,0,-ROUNDUP($E102-1,0))-(ROUNDDOWN($E102,0)*(OFFSET(AN96,0,-ROUNDUP($E102-1,0))/$E102))),0) -> -27,298 | AP102: =-SUM(OFFSET(AO96,0,-MIN(AP$62-1,ROUNDDOWN($E102-1,0))):AO96)/$E102-IF(AP$62>$E102,(OFFSET(AO96,0,-ROUNDUP($E102-1,0))-(ROUNDDOWN($E102,0)*(OFFSET(AO96,0,-ROUNDUP($E102-1,0))/$E102))),0) -> -27,298 | AQ102: =-SUM(OFFSET(AP96,0,-MIN(AQ$62-1,ROUNDDOWN($E102-1,0))):AP96)/$E102-IF(AQ$62>$E102,(OFFSET(AP96,0,-ROUNDUP($E102-1,0))-(ROUNDDOWN($E102,0)*(OFFSET(AP96,0,-ROUNDUP($E102-1,0))/$E102))),0) -> -27,298 | AR102: =-SUM(OFFSET(AQ96,0,-MIN(AR$62-1,ROUNDDOWN($E102-1,0))):AQ96)/$E102-IF(AR$62>$E102,(OFFSET(AQ96,0,-ROUNDUP($E102-1,0))-(ROUNDDOWN($E102,0)*(OFFSET(AQ96,0,-ROUNDUP($E102-1,0))/$E102))),0) -> -27,298 | AS102: =-SUM(OFFSET(AR96,0,-MIN(AS$62-1,ROUNDDOWN($E102-1,0))):AR96)/$E102-IF(AS$62>$E102,(OFFSET(AR96,0,-ROUNDUP($E102-1,0))-(ROUNDDOWN($E102,0)*(OFFSET(AR96,0,-ROUNDUP($E102-1,0))/$E102))),0) -> -27,298 | AT102: =-SUM(OFFSET(AS96,0,-MIN(AT$62-1,ROUNDDOWN($E102-1,0))):AS96)/$E102-IF(AT$62>$E102,(OFFSET(AS96,0,-ROUNDUP($E102-1,0))-(ROUNDDOWN($E102,0)*(OFFSET(AS96,0,-ROUNDUP($E102-1,0))/$E102))),0) -> -27,298 | AU102: =-SUM(OFFSET(AT96,0,-MIN(AU$62-1,ROUNDDOWN($E102-1,0))):AT96)/$E102-IF(AU$62>$E102,(OFFSET(AT96,0,-ROUNDUP($E102-1,0))-(ROUNDDOWN($E102,0)*(OFFSET(AT96,0,-ROUNDUP($E102-1,0))/$E102))),0) -> -27,298
B103: ="Amort. - "&B43 -> Amort. - Frais de branchements - Total | E103: =$E$7 -> 21.0 ans | H103: =-SUM(OFFSET(G97,0,-MIN(H$62-1,ROUNDDOWN($E103-1,0))):G97)/$E103-IF(H$62>$E103,(OFFSET(G97,0,-ROUNDUP($E103-1,0))-(ROUNDDOWN($E103,0)*(OFFSET(G97,0,-ROUNDUP($E103-1,0))/$E103))),0) -> -30,657 | I103: =-SUM(OFFSET(H97,0,-MIN(I$62-1,ROUNDDOWN($E103-1,0))):H97)/$E103-IF(I$62>$E103,(OFFSET(H97,0,-ROUNDUP($E103-1,0))-(ROUNDDOWN($E103,0)*(OFFSET(H97,0,-ROUNDUP($E103-1,0))/$E103))),0) -> -30,657 | J103: =-SUM(OFFSET(I97,0,-MIN(J$62-1,ROUNDDOWN($E103-1,0))):I97)/$E103-IF(J$62>$E103,(OFFSET(I97,0,-ROUNDUP($E103-1,0))-(ROUNDDOWN($E103,0)*(OFFSET(I97,0,-ROUNDUP($E103-1,0))/$E103))),0) -> -30,657 | K103: =-SUM(OFFSET(J97,0,-MIN(K$62-1,ROUNDDOWN($E103-1,0))):J97)/$E103-IF(K$62>$E103,(OFFSET(J97,0,-ROUNDUP($E103-1,0))-(ROUNDDOWN($E103,0)*(OFFSET(J97,0,-ROUNDUP($E103-1,0))/$E103))),0) -> -30,657 | L103: =-SUM(OFFSET(K97,0,-MIN(L$62-1,ROUNDDOWN($E103-1,0))):K97)/$E103-IF(L$62>$E103,(OFFSET(K97,0,-ROUNDUP($E103-1,0))-(ROUNDDOWN($E103,0)*(OFFSET(K97,0,-ROUNDUP($E103-1,0))/$E103))),0) -> -30,657 | M103: =-SUM(OFFSET(L97,0,-MIN(M$62-1,ROUNDDOWN($E103-1,0))):L97)/$E103-IF(M$62>$E103,(OFFSET(L97,0,-ROUNDUP($E103-1,0))-(ROUNDDOWN($E103,0)*(OFFSET(L97,0,-ROUNDUP($E103-1,0))/$E103))),0) -> -30,657 | N103: =-SUM(OFFSET(M97,0,-MIN(N$62-1,ROUNDDOWN($E103-1,0))):M97)/$E103-IF(N$62>$E103,(OFFSET(M97,0,-ROUNDUP($E103-1,0))-(ROUNDDOWN($E103,0)*(OFFSET(M97,0,-ROUNDUP($E103-1,0))/$E103))),0) -> -30,657 | O103: =-SUM(OFFSET(N97,0,-MIN(O$62-1,ROUNDDOWN($E103-1,0))):N97)/$E103-IF(O$62>$E103,(OFFSET(N97,0,-ROUNDUP($E103-1,0))-(ROUNDDOWN($E103,0)*(OFFSET(N97,0,-ROUNDUP($E103-1,0))/$E103))),0) -> -30,657 | P103: =-SUM(OFFSET(O97,0,-MIN(P$62-1,ROUNDDOWN($E103-1,0))):O97)/$E103-IF(P$62>$E103,(OFFSET(O97,0,-ROUNDUP($E103-1,0))-(ROUNDDOWN($E103,0)*(OFFSET(O97,0,-ROUNDUP($E103-1,0))/$E103))),0) -> -30,657 | Q103: =-SUM(OFFSET(P97,0,-MIN(Q$62-1,ROUNDDOWN($E103-1,0))):P97)/$E103-IF(Q$62>$E103,(OFFSET(P97,0,-ROUNDUP($E103-1,0))-(ROUNDDOWN($E103,0)*(OFFSET(P97,0,-ROUNDUP($E103-1,0))/$E103))),0) -> -30,657 | R103: =-SUM(OFFSET(Q97,0,-MIN(R$62-1,ROUNDDOWN($E103-1,0))):Q97)/$E103-IF(R$62>$E103,(OFFSET(Q97,0,-ROUNDUP($E103-1,0))-(ROUNDDOWN($E103,0)*(OFFSET(Q97,0,-ROUNDUP($E103-1,0))/$E103))),0) -> -30,657 | S103: =-SUM(OFFSET(R97,0,-MIN(S$62-1,ROUNDDOWN($E103-1,0))):R97)/$E103-IF(S$62>$E103,(OFFSET(R97,0,-ROUNDUP($E103-1,0))-(ROUNDDOWN($E103,0)*(OFFSET(R97,0,-ROUNDUP($E103-1,0))/$E103))),0) -> -30,657 | T103: =-SUM(OFFSET(S97,0,-MIN(T$62-1,ROUNDDOWN($E103-1,0))):S97)/$E103-IF(T$62>$E103,(OFFSET(S97,0,-ROUNDUP($E103-1,0))-(ROUNDDOWN($E103,0)*(OFFSET(S97,0,-ROUNDUP($E103-1,0))/$E103))),0) -> -30,657 | U103: =-SUM(OFFSET(T97,0,-MIN(U$62-1,ROUNDDOWN($E103-1,0))):T97)/$E103-IF(U$62>$E103,(OFFSET(T97,0,-ROUNDUP($E103-1,0))-(ROUNDDOWN($E103,0)*(OFFSET(T97,0,-ROUNDUP($E103-1,0))/$E103))),0) -> -30,657 | V103: =-SUM(OFFSET(U97,0,-MIN(V$62-1,ROUNDDOWN($E103-1,0))):U97)/$E103-IF(V$62>$E103,(OFFSET(U97,0,-ROUNDUP($E103-1,0))-(ROUNDDOWN($E103,0)*(OFFSET(U97,0,-ROUNDUP($E103-1,0))/$E103))),0) -> -30,657 | W103: =-SUM(OFFSET(V97,0,-MIN(W$62-1,ROUNDDOWN($E103-1,0))):V97)/$E103-IF(W$62>$E103,(OFFSET(V97,0,-ROUNDUP($E103-1,0))-(ROUNDDOWN($E103,0)*(OFFSET(V97,0,-ROUNDUP($E103-1,0))/$E103))),0) -> -30,657 | X103: =-SUM(OFFSET(W97,0,-MIN(X$62-1,ROUNDDOWN($E103-1,0))):W97)/$E103-IF(X$62>$E103,(OFFSET(W97,0,-ROUNDUP($E103-1,0))-(ROUNDDOWN($E103,0)*(OFFSET(W97,0,-ROUNDUP($E103-1,0))/$E103))),0) -> -30,657 | Y103: =-SUM(OFFSET(X97,0,-MIN(Y$62-1,ROUNDDOWN($E103-1,0))):X97)/$E103-IF(Y$62>$E103,(OFFSET(X97,0,-ROUNDUP($E103-1,0))-(ROUNDDOWN($E103,0)*(OFFSET(X97,0,-ROUNDUP($E103-1,0))/$E103))),0) -> -30,657 | Z103: =-SUM(OFFSET(Y97,0,-MIN(Z$62-1,ROUNDDOWN($E103-1,0))):Y97)/$E103-IF(Z$62>$E103,(OFFSET(Y97,0,-ROUNDUP($E103-1,0))-(ROUNDDOWN($E103,0)*(OFFSET(Y97,0,-ROUNDUP($E103-1,0))/$E103))),0) -> -30,657 | AA103: =-SUM(OFFSET(Z97,0,-MIN(AA$62-1,ROUNDDOWN($E103-1,0))):Z97)/$E103-IF(AA$62>$E103,(OFFSET(Z97,0,-ROUNDUP($E103-1,0))-(ROUNDDOWN($E103,0)*(OFFSET(Z97,0,-ROUNDUP($E103-1,0))/$E103))),0) -> -30,657 | AB103: =-SUM(OFFSET(AA97,0,-MIN(AB$62-1,ROUNDDOWN($E103-1,0))):AA97)/$E103-IF(AB$62>$E103,(OFFSET(AA97,0,-ROUNDUP($E103-1,0))-(ROUNDDOWN($E103,0)*(OFFSET(AA97,0,-ROUNDUP($E103-1,0))/$E103))),0) -> -30,657 | AC103: =-SUM(OFFSET(AB97,0,-MIN(AC$62-1,ROUNDDOWN($E103-1,0))):AB97)/$E103-IF(AC$62>$E103,(OFFSET(AB97,0,-ROUNDUP($E103-1,0))-(ROUNDDOWN($E103,0)*(OFFSET(AB97,0,-ROUNDUP($E103-1,0))/$E103))),0) -> -881 | AD103: =-SUM(OFFSET(AC97,0,-MIN(AD$62-1,ROUNDDOWN($E103-1,0))):AC97)/$E103-IF(AD$62>$E103,(OFFSET(AC97,0,-ROUNDUP($E103-1,0))-(ROUNDDOWN($E103,0)*(OFFSET(AC97,0,-ROUNDUP($E103-1,0))/$E103))),0) -> 0 | AE103: =-SUM(OFFSET(AD97,0,-MIN(AE$62-1,ROUNDDOWN($E103-1,0))):AD97)/$E103-IF(AE$62>$E103,(OFFSET(AD97,0,-ROUNDUP($E103-1,0))-(ROUNDDOWN($E103,0)*(OFFSET(AD97,0,-ROUNDUP($E103-1,0))/$E103))),0) -> 0 | AF103: =-SUM(OFFSET(AE97,0,-MIN(AF$62-1,ROUNDDOWN($E103-1,0))):AE97)/$E103-IF(AF$62>$E103,(OFFSET(AE97,0,-ROUNDUP($E103-1,0))-(ROUNDDOWN($E103,0)*(OFFSET(AE97,0,-ROUNDUP($E103-1,0))/$E103))),0) -> 0 | AG103: =-SUM(OFFSET(AF97,0,-MIN(AG$62-1,ROUNDDOWN($E103-1,0))):AF97)/$E103-IF(AG$62>$E103,(OFFSET(AF97,0,-ROUNDUP($E103-1,0))-(ROUNDDOWN($E103,0)*(OFFSET(AF97,0,-ROUNDUP($E103-1,0))/$E103))),0) -> 0 | AH103: =-SUM(OFFSET(AG97,0,-MIN(AH$62-1,ROUNDDOWN($E103-1,0))):AG97)/$E103-IF(AH$62>$E103,(OFFSET(AG97,0,-ROUNDUP($E103-1,0))-(ROUNDDOWN($E103,0)*(OFFSET(AG97,0,-ROUNDUP($E103-1,0))/$E103))),0) -> 0 | AI103: =-SUM(OFFSET(AH97,0,-MIN(AI$62-1,ROUNDDOWN($E103-1,0))):AH97)/$E103-IF(AI$62>$E103,(OFFSET(AH97,0,-ROUNDUP($E103-1,0))-(ROUNDDOWN($E103,0)*(OFFSET(AH97,0,-ROUNDUP($E103-1,0))/$E103))),0) -> 0 | AJ103: =-SUM(OFFSET(AI97,0,-MIN(AJ$62-1,ROUNDDOWN($E103-1,0))):AI97)/$E103-IF(AJ$62>$E103,(OFFSET(AI97,0,-ROUNDUP($E103-1,0))-(ROUNDDOWN($E103,0)*(OFFSET(AI97,0,-ROUNDUP($E103-1,0))/$E103))),0) -> 0 | AK103: =-SUM(OFFSET(AJ97,0,-MIN(AK$62-1,ROUNDDOWN($E103-1,0))):AJ97)/$E103-IF(AK$62>$E103,(OFFSET(AJ97,0,-ROUNDUP($E103-1,0))-(ROUNDDOWN($E103,0)*(OFFSET(AJ97,0,-ROUNDUP($E103-1,0))/$E103))),0) -> 0 | AL103: =-SUM(OFFSET(AK97,0,-MIN(AL$62-1,ROUNDDOWN($E103-1,0))):AK97)/$E103-IF(AL$62>$E103,(OFFSET(AK97,0,-ROUNDUP($E103-1,0))-(ROUNDDOWN($E103,0)*(OFFSET(AK97,0,-ROUNDUP($E103-1,0))/$E103))),0) -> 0 | AM103: =-SUM(OFFSET(AL97,0,-MIN(AM$62-1,ROUNDDOWN($E103-1,0))):AL97)/$E103-IF(AM$62>$E103,(OFFSET(AL97,0,-ROUNDUP($E103-1,0))-(ROUNDDOWN($E103,0)*(OFFSET(AL97,0,-ROUNDUP($E103-1,0))/$E103))),0) -> 0 | AN103: =-SUM(OFFSET(AM97,0,-MIN(AN$62-1,ROUNDDOWN($E103-1,0))):AM97)/$E103-IF(AN$62>$E103,(OFFSET(AM97,0,-ROUNDUP($E103-1,0))-(ROUNDDOWN($E103,0)*(OFFSET(AM97,0,-ROUNDUP($E103-1,0))/$E103))),0) -> 0 | AO103: =-SUM(OFFSET(AN97,0,-MIN(AO$62-1,ROUNDDOWN($E103-1,0))):AN97)/$E103-IF(AO$62>$E103,(OFFSET(AN97,0,-ROUNDUP($E103-1,0))-(ROUNDDOWN($E103,0)*(OFFSET(AN97,0,-ROUNDUP($E103-1,0))/$E103))),0) -> 0 | AP103: =-SUM(OFFSET(AO97,0,-MIN(AP$62-1,ROUNDDOWN($E103-1,0))):AO97)/$E103-IF(AP$62>$E103,(OFFSET(AO97,0,-ROUNDUP($E103-1,0))-(ROUNDDOWN($E103,0)*(OFFSET(AO97,0,-ROUNDUP($E103-1,0))/$E103))),0) -> 0 | AQ103: =-SUM(OFFSET(AP97,0,-MIN(AQ$62-1,ROUNDDOWN($E103-1,0))):AP97)/$E103-IF(AQ$62>$E103,(OFFSET(AP97,0,-ROUNDUP($E103-1,0))-(ROUNDDOWN($E103,0)*(OFFSET(AP97,0,-ROUNDUP($E103-1,0))/$E103))),0) -> 0 | AR103: =-SUM(OFFSET(AQ97,0,-MIN(AR$62-1,ROUNDDOWN($E103-1,0))):AQ97)/$E103-IF(AR$62>$E103,(OFFSET(AQ97,0,-ROUNDUP($E103-1,0))-(ROUNDDOWN($E103,0)*(OFFSET(AQ97,0,-ROUNDUP($E103-1,0))/$E103))),0) -> 0 | AS103: =-SUM(OFFSET(AR97,0,-MIN(AS$62-1,ROUNDDOWN($E103-1,0))):AR97)/$E103-IF(AS$62>$E103,(OFFSET(AR97,0,-ROUNDUP($E103-1,0))-(ROUNDDOWN($E103,0)*(OFFSET(AR97,0,-ROUNDUP($E103-1,0))/$E103))),0) -> 0 | AT103: =-SUM(OFFSET(AS97,0,-MIN(AT$62-1,ROUNDDOWN($E103-1,0))):AS97)/$E103-IF(AT$62>$E103,(OFFSET(AS97,0,-ROUNDUP($E103-1,0))-(ROUNDDOWN($E103,0)*(OFFSET(AS97,0,-ROUNDUP($E103-1,0))/$E103))),0) -> 0 | AU103: =-SUM(OFFSET(AT97,0,-MIN(AU$62-1,ROUNDDOWN($E103-1,0))):AT97)/$E103-IF(AU$62>$E103,(OFFSET(AT97,0,-ROUNDUP($E103-1,0))-(ROUNDDOWN($E103,0)*(OFFSET(AT97,0,-ROUNDUP($E103-1,0))/$E103))),0) -> 0
B104: Amort. - PRC 10 ans | E104: 10.0 ans | H104: =-SUM(OFFSET(H99,0,-MIN(H$62-1,$E104-1)):H99)/$E104 -> 0 | I104: =-SUM(OFFSET(I99,0,-MIN(I$62-1,$E104-1)):I99)/$E104 -> 0 | J104: =-SUM(OFFSET(J99,0,-MIN(J$62-1,$E104-1)):J99)/$E104 -> 0 | K104: =-SUM(OFFSET(K99,0,-MIN(K$62-1,$E104-1)):K99)/$E104 -> 0 | L104: =-SUM(OFFSET(L99,0,-MIN(L$62-1,$E104-1)):L99)/$E104 -> 0 | M104: =-SUM(OFFSET(M99,0,-MIN(M$62-1,$E104-1)):M99)/$E104 -> 0 | N104: =-SUM(OFFSET(N99,0,-MIN(N$62-1,$E104-1)):N99)/$E104 -> 0 | O104: =-SUM(OFFSET(O99,0,-MIN(O$62-1,$E104-1)):O99)/$E104 -> 0 | P104: =-SUM(OFFSET(P99,0,-MIN(P$62-1,$E104-1)):P99)/$E104 -> 0 | Q104: =-SUM(OFFSET(Q99,0,-MIN(Q$62-1,$E104-1)):Q99)/$E104 -> 0 | R104: =-SUM(OFFSET(R99,0,-MIN(R$62-1,$E104-1)):R99)/$E104 -> 0 | S104: =-SUM(OFFSET(S99,0,-MIN(S$62-1,$E104-1)):S99)/$E104 -> 0 | T104: =-SUM(OFFSET(T99,0,-MIN(T$62-1,$E104-1)):T99)/$E104 -> 0 | U104: =-SUM(OFFSET(U99,0,-MIN(U$62-1,$E104-1)):U99)/$E104 -> 0 | V104: =-SUM(OFFSET(V99,0,-MIN(V$62-1,$E104-1)):V99)/$E104 -> 0 | W104: =-SUM(OFFSET(W99,0,-MIN(W$62-1,$E104-1)):W99)/$E104 -> 0 | X104: =-SUM(OFFSET(X99,0,-MIN(X$62-1,$E104-1)):X99)/$E104 -> 0 | Y104: =-SUM(OFFSET(Y99,0,-MIN(Y$62-1,$E104-1)):Y99)/$E104 -> 0 | Z104: =-SUM(OFFSET(Z99,0,-MIN(Z$62-1,$E104-1)):Z99)/$E104 -> 0 | AA104: =-SUM(OFFSET(AA99,0,-MIN(AA$62-1,$E104-1)):AA99)/$E104 -> 0 | AB104: =-SUM(OFFSET(AB99,0,-MIN(AB$62-1,$E104-1)):AB99)/$E104 -> 0 | AC104: =-SUM(OFFSET(AC99,0,-MIN(AC$62-1,$E104-1)):AC99)/$E104 -> 0 | AD104: =-SUM(OFFSET(AD99,0,-MIN(AD$62-1,$E104-1)):AD99)/$E104 -> 0 | AE104: =-SUM(OFFSET(AE99,0,-MIN(AE$62-1,$E104-1)):AE99)/$E104 -> 0 | AF104: =-SUM(OFFSET(AF99,0,-MIN(AF$62-1,$E104-1)):AF99)/$E104 -> 0 | AG104: =-SUM(OFFSET(AG99,0,-MIN(AG$62-1,$E104-1)):AG99)/$E104 -> 0 | AH104: =-SUM(OFFSET(AH99,0,-MIN(AH$62-1,$E104-1)):AH99)/$E104 -> 0 | AI104: =-SUM(OFFSET(AI99,0,-MIN(AI$62-1,$E104-1)):AI99)/$E104 -> 0 | AJ104: =-SUM(OFFSET(AJ99,0,-MIN(AJ$62-1,$E104-1)):AJ99)/$E104 -> 0 | AK104: =-SUM(OFFSET(AK99,0,-MIN(AK$62-1,$E104-1)):AK99)/$E104 -> 0 | AL104: =-SUM(OFFSET(AL99,0,-MIN(AL$62-1,$E104-1)):AL99)/$E104 -> 0 | AM104: =-SUM(OFFSET(AM99,0,-MIN(AM$62-1,$E104-1)):AM99)/$E104 -> 0 | AN104: =-SUM(OFFSET(AN99,0,-MIN(AN$62-1,$E104-1)):AN99)/$E104 -> 0 | AO104: =-SUM(OFFSET(AO99,0,-MIN(AO$62-1,$E104-1)):AO99)/$E104 -> 0 | AP104: =-SUM(OFFSET(AP99,0,-MIN(AP$62-1,$E104-1)):AP99)/$E104 -> 0 | AQ104: =-SUM(OFFSET(AQ99,0,-MIN(AQ$62-1,$E104-1)):AQ99)/$E104 -> 0 | AR104: =-SUM(OFFSET(AR99,0,-MIN(AR$62-1,$E104-1)):AR99)/$E104 -> 0 | AS104: =-SUM(OFFSET(AS99,0,-MIN(AS$62-1,$E104-1)):AS99)/$E104 -> 0 | AT104: =-SUM(OFFSET(AT99,0,-MIN(AT$62-1,$E104-1)):AT99)/$E104 -> 0 | AU104: =-SUM(OFFSET(AU99,0,-MIN(AU$62-1,$E104-1)):AU99)/$E104 -> 0
H105: =SUM(H102:H104) -> -57,954 | I105: -57,954 | J105: -57,954 | K105: -57,954 | L105: -57,954 | M105: -57,954 | N105: -57,954 | O105: -57,954 | P105: -57,954 | Q105: -57,954 | R105: -57,954 | S105: -57,954 | T105: -57,954 | U105: -57,954 | V105: -57,954 | W105: -57,954 | X105: -57,954 | Y105: -57,954 | Z105: -57,954 | AA105: -57,954 | AB105: -57,954 | AC105: -28,178 | AD105: -27,298 | AE105: -27,298 | AF105: -27,298 | AG105: -27,298 | AH105: -27,298 | AI105: -27,298 | AJ105: -27,298 | AK105: -27,298 | AL105: -27,298 | AM105: -27,298 | AN105: -27,298 | AO105: -27,298 | AP105: -27,298 | AQ105: -27,298 | AR105: -27,298 | AS105: -27,298 | AT105: -27,298 | AU105: -27,298
B107: Immobilisations nettes comptables | G107: =+G100 -> 1,855,848 | H107: =G107+H100+H105 -> 1,797,893 | I107: 1,739,939 | J107: 1,681,985 | K107: 1,624,031 | L107: 1,566,077 | M107: 1,508,123 | N107: 1,450,169 | O107: 1,392,215 | P107: 1,334,261 | Q107: 1,276,307 | R107: 1,218,352 | S107: 1,160,398 | T107: 1,102,444 | U107: 1,044,490 | V107: 986,536 | W107: 928,582 | X107: 870,628 | Y107: 812,674 | Z107: 754,720 | AA107: 696,766 | AB107: 638,812 | AC107: 610,633 | AD107: 583,336 | AE107: 556,038 | AF107: 528,741 | AG107: 501,443 | AH107: 474,145 | AI107: 446,848 | AJ107: 419,550 | AK107: 392,253 | AL107: 364,955 | AM107: 337,658 | AN107: 310,360 | AO107: 283,062 | AP107: 255,765 | AQ107: 228,467 | AR107: 201,170 | AS107: 173,872 | AT107: 146,575 | AU107: 119,277
B108: Immobilisations nettes finales pour calcul de la TSP | H108: =G108+SUM(G96:G97)+H99+H105 -> 1,797,893 | I108: 1,739,939 | J108: 1,681,985 | K108: 1,624,031 | L108: 1,566,077 | M108: 1,508,123 | N108: 1,450,169 | O108: 1,392,215 | P108: 1,334,261 | Q108: 1,276,307 | R108: 1,218,352 | S108: 1,160,398 | T108: 1,102,444 | U108: 1,044,490 | V108: 986,536 | W108: 928,582 | X108: 870,628 | Y108: 812,674 | Z108: 754,720 | AA108: 696,766 | AB108: 638,812 | AC108: 610,633 | AD108: 583,336 | AE108: 556,038 | AF108: 528,741 | AG108: 501,443 | AH108: 474,145 | AI108: 446,848 | AJ108: 419,550 | AK108: 392,253 | AL108: 364,955 | AM108: 337,658 | AN108: 310,360 | AO108: 283,062 | AP108: 255,765 | AQ108: 228,467 | AR108: 201,170 | AS108: 173,872 | AT108: 146,575 | AU108: 119,277
B110: ="FNACC - "&B38 -> FNACC - Frais de conduites - Total | G110: =G96 -> 1,211,180 | H110: =G110+H114 -> 1,174,845 | I110: =H110+I114+H96 -> 1,104,354 | J110: 1,038,093 | K110: 975,807 | L110: 917,259 | M110: 862,223 | N110: 810,490 | O110: 761,860 | P110: 716,149 | Q110: 673,180 | R110: 632,789 | S110: 594,822 | T110: 559,132 | U110: 525,584 | V110: 494,049 | W110: 464,406 | X110: 436,542 | Y110: 410,350 | Z110: 385,729 | AA110: 362,585 | AB110: 340,830 | AC110: 320,380 | AD110: 301,157 | AE110: 283,088 | AF110: 266,102 | AG110: 250,136 | AH110: 235,128 | AI110: 221,020 | AJ110: 207,759 | AK110: 195,294 | AL110: 183,576 | AM110: 172,561 | AN110: 162,208 | AO110: 152,475 | AP110: 143,327 | AQ110: 134,727 | AR110: 126,644 | AS110: 119,045 | AT110: 111,902 | AU110: 105,188
B111: ="FNACC - "&B43 -> FNACC - Frais de branchements - Total | G111: =G97 -> 644,668 | H111: =G111+H115 -> 625,328 | I111: =H111+I115+H97 -> 587,808 | J111: 552,539 | K111: 519,387 | L111: 488,224 | M111: 458,930 | N111: 431,395 | O111: 405,511 | P111: 381,180 | Q111: 358,309 | R111: 336,811 | S111: 316,602 | T111: 297,606 | U111: 279,750 | V111: 262,965 | W111: 247,187 | X111: 232,356 | Y111: 218,414 | Z111: 205,309 | AA111: 192,991 | AB111: 181,411 | AC111: 170,527 | AD111: 160,295 | AE111: 150,677 | AF111: 141,637 | AG111: 133,139 | AH111: 125,150 | AI111: 117,641 | AJ111: 110,583 | AK111: 103,948 | AL111: 97,711 | AM111: 91,848 | AN111: 86,337 | AO111: 81,157 | AP111: 76,288 | AQ111: 71,710 | AR111: 67,408 | AS111: 63,363 | AT111: 59,562 | AU111: 55,988
G112: =SUM(G110:G111) -> 1,855,848 | H112: 1,800,172 | I112: 1,692,162 | J112: 1,590,632 | K112: 1,495,194 | L112: 1,405,483 | M112: 1,321,154 | N112: 1,241,884 | O112: 1,167,371 | P112: 1,097,329 | Q112: 1,031,489 | R112: 969,600 | S112: 911,424 | T112: 856,738 | U112: 805,334 | V112: 757,014 | W112: 711,593 | X112: 668,898 | Y112: 628,764 | Z112: 591,038 | AA112: 555,576 | AB112: 522,241 | AC112: 490,907 | AD112: 461,452 | AE112: 433,765 | AF112: 407,739 | AG112: 383,275 | AH112: 360,278 | AI112: 338,662 | AJ112: 318,342 | AK112: 299,241 | AL112: 281,287 | AM112: 264,410 | AN112: 248,545 | AO112: 233,632 | AP112: 219,615 | AQ112: 206,438 | AR112: 194,051 | AS112: 182,408 | AT112: 171,464 | AU112: 161,176
B113: Amortissement fiscal | E113: Taux
B114: ="Amort. fiscal - "&B38 -> Amort. fiscal - Frais de conduites - Total | E114: =$E$8 -> 6.0% | H114: =-G110*$E114/2 -> -36,335 | I114: =-H110*$E114-H96*$E114/2 -> -70,491 | J114: -66,261 | K114: -62,286 | L114: -58,548 | M114: -55,036 | N114: -51,733 | O114: -48,629 | P114: -45,712 | Q114: -42,969 | R114: -40,391 | S114: -37,967 | T114: -35,689 | U114: -33,548 | V114: -31,535 | W114: -29,643 | X114: -27,864 | Y114: -26,193 | Z114: -24,621 | AA114: -23,144 | AB114: -21,755 | AC114: -20,450 | AD114: -19,223 | AE114: -18,069 | AF114: -16,985 | AG114: -15,966 | AH114: -15,008 | AI114: -14,108 | AJ114: -13,261 | AK114: -12,466 | AL114: -11,718 | AM114: -11,015 | AN114: -10,354 | AO114: -9,732 | AP114: -9,149 | AQ114: -8,600 | AR114: -8,084 | AS114: -7,599 | AT114: -7,143 | AU114: -6,714
B115: ="Amort. fiscal - "&B43 -> Amort. fiscal - Frais de branchements - Total | E115: =$E$9 -> 6.0% | H115: =-G111*$E115/2 -> -19,340 | I115: =-H111*$E115-H97*$E115/2 -> -37,520 | J115: -35,268 | K115: -33,152 | L115: -31,163 | M115: -29,293 | N115: -27,536 | O115: -25,884 | P115: -24,331 | Q115: -22,871 | R115: -21,499 | S115: -20,209 | T115: -18,996 | U115: -17,856 | V115: -16,785 | W115: -15,778 | X115: -14,831 | Y115: -13,941 | Z115: -13,105 | AA115: -12,319 | AB115: -11,579 | AC115: -10,885 | AD115: -10,232 | AE115: -9,618 | AF115: -9,041 | AG115: -8,498 | AH115: -7,988 | AI115: -7,509 | AJ115: -7,058 | AK115: -6,635 | AL115: -6,237 | AM115: -5,863 | AN115: -5,511 | AO115: -5,180 | AP115: -4,869 | AQ115: -4,577 | AR115: -4,303 | AS115: -4,044 | AT115: -3,802 | AU115: -3,574
B116: Amort. fiscal - PRC 10 ans | E116: 10.0 ans | H116: =H104 -> 0 | I116: 0 | J116: 0 | K116: 0 | L116: 0 | M116: 0 | N116: 0 | O116: 0 | P116: 0 | Q116: 0 | R116: 0 | S116: 0 | T116: 0 | U116: 0 | V116: 0 | W116: 0 | X116: 0 | Y116: 0 | Z116: 0 | AA116: 0 | AB116: 0 | AC116: 0 | AD116: 0 | AE116: 0 | AF116: 0 | AG116: 0 | AH116: 0 | AI116: 0 | AJ116: 0 | AK116: 0 | AL116: 0 | AM116: 0 | AN116: 0 | AO116: 0 | AP116: 0 | AQ116: 0 | AR116: 0 | AS116: 0 | AT116: 0 | AU116: 0
H117: =SUM(H114:H116) -> -55,675 | I117: -108,010 | J117: -101,530 | K117: -95,438 | L117: -89,712 | M117: -84,329 | N117: -79,269 | O117: -74,513 | P117: -70,042 | Q117: -65,840 | R117: -61,889 | S117: -58,176 | T117: -54,685 | U117: -51,404 | V117: -48,320 | W117: -45,421 | X117: -42,696 | Y117: -40,134 | Z117: -37,726 | AA117: -35,462 | AB117: -33,335 | AC117: -31,334 | AD117: -29,454 | AE117: -27,687 | AF117: -26,026 | AG117: -24,464 | AH117: -22,996 | AI117: -21,617 | AJ117: -20,320 | AK117: -19,101 | AL117: -17,954 | AM117: -16,877 | AN117: -15,865 | AO117: -14,913 | AP117: -14,018 | AQ117: -13,177 | AR117: -12,386 | AS117: -11,643 | AT117: -10,944 | AU117: -10,288
A119: 2.4 | B119: Impôts | H119: =$H$27 -> 2018 | I119: =H119+1 -> 2019 | J119: =I119+1 -> 2020 | K119: 2021 | L119: 2022 | M119: 2023 | N119: 2024 | O119: 2025 | P119: 2026 | Q119: 2027 | R119: 2028 | S119: 2029 | T119: 2030 | U119: 2031 | V119: 2032 | W119: 2033 | X119: 2034 | Y119: 2035 | Z119: 2036 | AA119: 2037 | AB119: 2038 | AC119: 2039 | AD119: 2040 | AE119: 2041 | AF119: 2042 | AG119: 2043 | AH119: 2044 | AI119: 2045 | AJ119: 2046 | AK119: 2047 | AL119: 2048 | AM119: 2049 | AN119: 2050 | AO119: 2051 | AP119: 2052 | AQ119: 2053 | AR119: 2054 | AS119: 2055 | AT119: 2056 | AU119: 2057
B121: Bénéfice net théorique comptable | H121: =$E$18*H79 -> 68,639 | I121: 66,462 | J121: 64,284 | K121: 62,107 | L121: 59,929 | M121: 57,752 | N121: 55,574 | O121: 53,397 | P121: 51,220 | Q121: 49,042 | R121: 46,865 | S121: 44,687 | T121: 42,510 | U121: 40,332 | V121: 38,155 | W121: 35,977 | X121: 33,800 | Y121: 31,623 | Z121: 29,445 | AA121: 27,268 | AB121: 25,090 | AC121: 23,472 | AD121: 22,430 | AE121: 21,404 | AF121: 20,379 | AG121: 19,353 | AH121: 18,327 | AI121: 17,302 | AJ121: 16,276 | AK121: 15,251 | AL121: 14,225 | AM121: 13,199 | AN121: 12,174 | AO121: 11,148 | AP121: 10,122 | AQ121: 9,097 | AR121: 8,071 | AS121: 7,046 | AT121: 6,020 | AU121: 4,994
B123: Dépréciation comptable | H123: =+H105 -> -57,954 | I123: -57,954 | J123: -57,954 | K123: -57,954 | L123: -57,954 | M123: -57,954 | N123: -57,954 | O123: -57,954 | P123: -57,954 | Q123: -57,954 | R123: -57,954 | S123: -57,954 | T123: -57,954 | U123: -57,954 | V123: -57,954 | W123: -57,954 | X123: -57,954 | Y123: -57,954 | Z123: -57,954 | AA123: -57,954 | AB123: -57,954 | AC123: -28,178 | AD123: -27,298 | AE123: -27,298 | AF123: -27,298 | AG123: -27,298 | AH123: -27,298 | AI123: -27,298 | AJ123: -27,298 | AK123: -27,298 | AL123: -27,298 | AM123: -27,298 | AN123: -27,298 | AO123: -27,298 | AP123: -27,298 | AQ123: -27,298 | AR123: -27,298 | AS123: -27,298 | AT123: -27,298 | AU123: -27,298
B124: Dépréciation fiscale | H124: =H117 -> -55,675 | I124: -108,010 | J124: -101,530 | K124: -95,438 | L124: -89,712 | M124: -84,329 | N124: -79,269 | O124: -74,513 | P124: -70,042 | Q124: -65,840 | R124: -61,889 | S124: -58,176 | T124: -54,685 | U124: -51,404 | V124: -48,320 | W124: -45,421 | X124: -42,696 | Y124: -40,134 | Z124: -37,726 | AA124: -35,462 | AB124: -33,335 | AC124: -31,334 | AD124: -29,454 | AE124: -27,687 | AF124: -26,026 | AG124: -24,464 | AH124: -22,996 | AI124: -21,617 | AJ124: -20,320 | AK124: -19,101 | AL124: -17,954 | AM124: -16,877 | AN124: -15,865 | AO124: -14,913 | AP124: -14,018 | AQ124: -13,177 | AR124: -12,386 | AS124: -11,643 | AT124: -10,944 | AU124: -10,288
B126: 1 - taux d'impôt | H126: =1-$E$15 -> 73.10% | I126: =H126 -> 73.10% | J126: =I126 -> 73.10% | K126: =J126 -> 73.10% | L126: 73.10% | M126: 73.10% | N126: 73.10% | O126: 73.10% | P126: 73.10% | Q126: 73.10% | R126: 73.10% | S126: 73.10% | T126: 73.10% | U126: 73.10% | V126: 73.10% | W126: 73.10% | X126: 73.10% | Y126: 73.10% | Z126: 73.10% | AA126: 73.10% | AB126: 73.10% | AC126: 73.10% | AD126: 73.10% | AE126: 73.10% | AF126: 73.10% | AG126: 73.10% | AH126: 73.10% | AI126: 73.10% | AJ126: 73.10% | AK126: 73.10% | AL126: 73.10% | AM126: 73.10% | AN126: 73.10% | AO126: 73.10% | AP126: 73.10% | AQ126: 73.10% | AR126: 73.10% | AS126: 73.10% | AT126: 73.10% | AU126: 73.10%
B128: Impôts (gross up) | H128: =((H121-H123+H124)/H126)-(H121-H123+H124) -> 26,097 | I128: =((I121-I123+I124)/I126)-(I121-I123+I124) -> 6,037 | J128: =((J121-J123+J124)/J126)-(J121-J123+J124) -> 7,621 | K128: 9,061 | L128: 10,367 | M128: 11,546 | N128: 12,607 | O128: 13,556 | P128: 14,400 | Q128: 15,145 | R128: 15,798 | S128: 16,363 | T128: 16,846 | U128: 17,252 | V128: 17,586 | W128: 17,851 | X128: 18,053 | Y128: 18,194 | Z128: 18,279 | AA128: 18,311 | AB128: 18,293 | AC128: 7,476 | AD128: 7,460 | AE128: 7,733 | AF128: 7,967 | AG128: 8,164 | AH128: 8,327 | AI128: 8,457 | AJ128: 8,557 | AK128: 8,628 | AL128: 8,673 | AM128: 8,692 | AN128: 8,687 | AO128: 8,660 | AP128: 8,612 | AQ128: 8,544 | AR128: 8,457 | AS128: 8,353 | AT128: 8,233 | AU128: 8,097
B129: Impôts sans dette | H129: =(1-H$126)*(H32-H66-H67-H68+H124) -> 21,914 | I129: 8,070 | J129: 10,047 | K129: 11,919 | L129: 13,694 | M129: 15,375 | N129: 16,970 | O129: 18,484 | P129: 19,920 | Q129: 21,284 | R129: 22,581 | S129: 23,814 | T129: 24,986 | U129: 26,103 | V129: 27,166 | W129: 28,180 | X129: 29,147 | Y129: 30,070 | Z129: 30,952 | AA129: 31,794 | AB129: 32,601 | AC129: 33,252 | AD129: 33,868 | AE129: 34,454 | AF129: 35,011 | AG129: 35,541 | AH129: 36,046 | AI129: 36,527 | AJ129: 36,986 | AK129: 37,424 | AL129: 37,843 | AM129: 38,243 | AN129: 38,625 | AO129: 38,991 | AP129: 39,342 | AQ129: 39,679 | AR129: 40,002 | AS129: 40,312 | AT129: 40,610 | AU129: 40,896
B131: États financiers pro forma
A133: 2.5 | B133: TRI, VAN et Point Mort Tarifaire | G133: =H133-1 -> 2017 | H133: =$H$27 -> 2018 | I133: =H133+1 -> 2019 | J133: =I133+1 -> 2020 | K133: =J133+1 -> 2021 | L133: =K133+1 -> 2022 | M133: =L133+1 -> 2023 | N133: =M133+1 -> 2024 | O133: =N133+1 -> 2025 | P133: =O133+1 -> 2026 | Q133: =P133+1 -> 2027 | R133: =Q133+1 -> 2028 | S133: =R133+1 -> 2029 | T133: =S133+1 -> 2030 | U133: =T133+1 -> 2031 | V133: =U133+1 -> 2032 | W133: =V133+1 -> 2033 | X133: =W133+1 -> 2034 | Y133: =X133+1 -> 2035 | Z133: =Y133+1 -> 2036 | AA133: =Z133+1 -> 2037 | AB133: =AA133+1 -> 2038 | AC133: =AB133+1 -> 2039 | AD133: =AC133+1 -> 2040 | AE133: =AD133+1 -> 2041 | AF133: =AE133+1 -> 2042 | AG133: =AF133+1 -> 2043 | AH133: =AG133+1 -> 2044 | AI133: =AH133+1 -> 2045 | AJ133: =AI133+1 -> 2046 | AK133: =AJ133+1 -> 2047 | AL133: =AK133+1 -> 2048 | AM133: =AL133+1 -> 2049 | AN133: =AM133+1 -> 2050 | AO133: =AN133+1 -> 2051 | AP133: =AO133+1 -> 2052 | AQ133: =AP133+1 -> 2053 | AR133: =AQ133+1 -> 2054 | AS133: =AR133+1 -> 2055 | AT133: =AS133+1 -> 2056 | AU133: =AT133+1 -> 2057
G134: 0 | H134: 1 | I134: 2 | J134: 3 | K134: 4 | L134: 5 | M134: 6 | N134: 7 | O134: 8 | P134: 9 | Q134: 10 | R134: 11 | S134: 12 | T134: 13 | U134: 14 | V134: 15 | W134: 16 | X134: 17 | Y134: 18 | Z134: 19 | AA134: 20 | AB134: 21 | AC134: 22 | AD134: 23 | AE134: 24 | AF134: 25 | AG134: 26 | AH134: 27 | AI134: 28 | AJ134: 29 | AK134: 30 | AL134: 31 | AM134: 32 | AN134: 33 | AO134: 34 | AP134: 35 | AQ134: 36 | AR134: 37 | AS134: 38 | AT134: 39 | AU134: 40
B136: Investissement | G136: =-G100 -> -1,855,848 | H136: 0 | I136: 0 | J136: 0 | K136: 0 | L136: 0 | M136: 0 | N136: 0 | O136: 0 | P136: 0 | Q136: 0 | R136: 0 | S136: 0 | T136: 0 | U136: 0 | V136: 0 | W136: 0 | X136: 0 | Y136: 0 | Z136: 0 | AA136: 0 | AB136: 0 | AC136: 0 | AD136: 0 | AE136: 0 | AF136: 0 | AG136: 0 | AH136: 0 | AI136: 0 | AJ136: 0 | AK136: 0 | AL136: 0 | AM136: 0 | AN136: 0 | AO136: 0 | AP136: 0 | AQ136: 0 | AR136: 0 | AS136: 0 | AT136: 0 | AU136: 0
B137: Revenu | H137: =H32 -> 166,408 | I137: 166,408 | J137: 166,408 | K137: 166,408 | L137: 166,408 | M137: 166,408 | N137: 166,408 | O137: 166,408 | P137: 166,408 | Q137: 166,408 | R137: 166,408 | S137: 166,408 | T137: 166,408 | U137: 166,408 | V137: 166,408 | W137: 166,408 | X137: 166,408 | Y137: 166,408 | Z137: 166,408 | AA137: 166,408 | AB137: 166,408 | AC137: 166,408 | AD137: 166,408 | AE137: 166,408 | AF137: 166,408 | AG137: 166,408 | AH137: 166,408 | AI137: 166,408 | AJ137: 166,408 | AK137: 166,408 | AL137: 166,408 | AM137: 166,408 | AN137: 166,408 | AO137: 166,408 | AP137: 166,408 | AQ137: 166,408 | AR137: 166,408 | AS137: 166,408 | AT137: 166,408 | AU137: 166,408
B138: OPEX, taxes foncières et redevances | H138: =-(H66+H67+H68) -> -29,268 | I138: -28,398 | J138: -27,529 | K138: -26,660 | L138: -25,790 | M138: -24,921 | N138: -24,052 | O138: -23,183 | P138: -22,313 | Q138: -21,444 | R138: -20,575 | S138: -19,705 | T138: -18,836 | U138: -17,967 | V138: -17,097 | W138: -16,228 | X138: -15,359 | Y138: -14,489 | Z138: -13,620 | AA138: -12,751 | AB138: -11,881 | AC138: -11,459 | AD138: -11,049 | AE138: -10,640 | AF138: -10,230 | AG138: -9,821 | AH138: -9,411 | AI138: -9,002 | AJ138: -8,593 | AK138: -8,183 | AL138: -7,774 | AM138: -7,364 | AN138: -6,955 | AO138: -6,545 | AP138: -6,136 | AQ138: -5,726 | AR138: -5,317 | AS138: -4,907 | AT138: -4,498 | AU138: -4,088
B139: Impôt sans dette | H139: =-H129 -> -21,914 | I139: -8,070 | J139: -10,047 | K139: -11,919 | L139: -13,694 | M139: -15,375 | N139: -16,970 | O139: -18,484 | P139: -19,920 | Q139: -21,284 | R139: -22,581 | S139: -23,814 | T139: -24,986 | U139: -26,103 | V139: -27,166 | W139: -28,180 | X139: -29,147 | Y139: -30,070 | Z139: -30,952 | AA139: -31,794 | AB139: -32,601 | AC139: -33,252 | AD139: -33,868 | AE139: -34,454 | AF139: -35,011 | AG139: -35,541 | AH139: -36,046 | AI139: -36,527 | AJ139: -36,986 | AK139: -37,424 | AL139: -37,843 | AM139: -38,243 | AN139: -38,625 | AO139: -38,991 | AP139: -39,342 | AQ139: -39,679 | AR139: -40,002 | AS139: -40,312 | AT139: -40,610 | AU139: -40,896
B140: Flux monétaire du projet | E140: =IFERROR(IRR(G140:AU140),"-") -> 6.01% | G140: =SUM(G136:G139) -> -1,855,848 | H140: =SUM(H136:H139) -> 115,226 | I140: =SUM(I136:I139) -> 129,940 | J140: 128,832 | K140: 127,828 | L140: 126,924 | M140: 126,111 | N140: 125,385 | O140: 124,742 | P140: 124,174 | Q140: 123,679 | R140: 123,252 | S140: 122,889 | T140: 122,585 | U140: 122,338 | V140: 122,144 | W140: 121,999 | X140: 121,902 | Y140: 121,848 | Z140: 121,836 | AA140: 121,862 | AB140: 121,926 | AC140: 121,697 | AD140: 121,490 | AE140: 121,314 | AF140: 121,166 | AG140: 121,046 | AH140: 120,950 | AI140: 120,878 | AJ140: 120,829 | AK140: 120,800 | AL140: 120,791 | AM140: 120,801 | AN140: 120,828 | AO140: 120,871 | AP140: 120,930 | AQ140: 121,003 | AR140: 121,089 | AS140: 121,189 | AT140: 121,300 | AU140: 121,423
B142: Point mort tarifaire | L142: 5 ans | Q142: 10 ans | V142: 15 ans | AA142: 20 ans | AF142: 25 ans | AK142: 30 ans | AP142: 35 ans | AU142: 40 ans
B144: Contribution tarifaire | H144: =H72-H32 -> 43,370 | I144: 19,381 | J144: 17,035 | K144: 14,546 | L144: 11,923 | M144: 9,173 | N144: 6,304 | O144: 3,324 | P144: 239 | Q144: -2,945 | R144: -6,222 | S144: -9,586 | T144: -13,033 | U144: -16,556 | V144: -20,151 | W144: -23,815 | X144: -27,543 | Y144: -31,331 | Z144: -35,175 | AA144: -39,073 | AB144: -43,020 | AC144: -86,309 | AD144: -89,080 | AE144: -90,657 | AF144: -92,274 | AG144: -93,928 | AH144: -95,616 | AI144: -97,336 | AJ144: -99,087 | AK144: -100,867 | AL144: -102,673 | AM144: -104,505 | AN144: -106,361 | AO144: -108,239 | AP144: -110,138 | AQ144: -112,056 | AR144: -113,993 | AS144: -115,948 | AT144: -117,919 | AU144: -119,906
B145: Contribution tarifaire actualisée | D145: =$E$21 -> 5.28% | G145: Ne pas effacer | H145: =H144/(1+$D$145)^H134 -> 41,195 | I145: 17,486 | J145: 14,598 | K145: 11,840 | L145: 9,218 | M145: 6,736 | N145: 4,398 | O145: 2,202 | P145: 150 | Q145: -1,761 | R145: -3,533 | S145: -5,170 | T145: -6,676 | U145: -8,056 | V145: -9,314 | W145: -10,455 | X145: -11,485 | Y145: -12,409 | Z145: -13,233 | AA145: -13,962 | AB145: -14,602 | AC145: -27,826 | AD145: -27,279 | AE145: -26,370 | AF145: -25,494 | AG145: -24,649 | AH145: -23,834 | AI145: -23,046 | AJ145: -22,284 | AK145: -21,546 | AL145: -20,832 | AM145: -20,140 | AN145: -19,470 | AO145: -18,820 | AP145: -18,190 | AQ145: -17,579 | AR145: -16,986 | AS145: -16,410 | AT145: -15,852 | AU145: -15,311
B146: Contribution tarifaire actualisée cumulée | G146: -1 | H146: =+H145 -> 41,195 | I146: =H146+I145 -> 58,680 | J146: =I146+J145 -> 73,279 | K146: 85,119 | L146: 94,337 | M146: 101,074 | N146: 105,471 | O146: 107,674 | P146: 107,824 | Q146: 106,063 | R146: 102,530 | S146: 97,360 | T146: 90,684 | U146: 82,628 | V146: 73,314 | W146: 62,860 | X146: 51,375 | Y146: =X146+Y145 -> 38,966 | Z146: =Y146+Z145 -> 25,732 | AA146: =Z146+AA145 -> 11,770 | AB146: =AA146+AB145 -> -2,832 | AC146: =AB146+AC145 -> -30,657 | AD146: =AC146+AD145 -> -57,936 | AE146: =AD146+AE145 -> -84,306 | AF146: =AE146+AF145 -> -109,799 | AG146: =AF146+AG145 -> -134,449 | AH146: =AG146+AH145 -> -158,282 | AI146: =AH146+AI145 -> -181,328 | AJ146: =AI146+AJ145 -> -203,612 | AK146: =AJ146+AK145 -> -225,158 | AL146: =AK146+AL145 -> -245,990 | AM146: =AL146+AM145 -> -266,131 | AN146: =AM146+AN145 -> -285,601 | AO146: =AN146+AO145 -> -304,421 | AP146: =AO146+AP145 -> -322,611 | AQ146: =AP146+AQ145 -> -340,189 | AR146: =AQ146+AR145 -> -357,175 | AS146: =AR146+AS145 -> -373,585 | AT146: =AS146+AT145 -> -389,438 | AU146: =AT146+AU145 -> -404,749
B147: Indicateur de PMT | E147: =IF(AND(MAX(H147:AU147)=0,H146<=0),1,MAX(H147:AU147)) -> 20.81 ans | G147: - | H147: =IF(AND(G147="-",OR(AND(G146>0,H146<=0),AND(G146>=0,H146<0))),H$134-1+G146/-H145,IF(G147="-","-","")) -> - | I147: - | J147: - | K147: - | L147: - | M147: - | N147: - | O147: - | P147: - | Q147: - | R147: - | S147: - | T147: - | U147: - | V147: - | W147: - | X147: - | Y147: - | Z147: - | AA147: - | AB147: 20.81

Sheet GM-9Doc6-Annexe Q-4.2Résultats
A2: SOCIÉTÉ EN COMMANDITE GAZ MÉTRO | L2: REVENU REQUIS | O2: SOCIÉTÉ EN COMMANDITE GAZ MÉTRO | Z2: =L2 -> REVENU REQUIS | AC2: SOCIÉTÉ EN COMMANDITE GAZ MÉTRO | AN2: =Z2 -> REVENU REQUIS | AQ2: SOCIÉTÉ EN COMMANDITE GAZ MÉTRO | BB2: =AN2 -> REVENU REQUIS | BE2: SOCIÉTÉ EN COMMANDITE GAZ MÉTRO | BP2: =BB2 -> REVENU REQUIS | BS2: SOCIÉTÉ EN COMMANDITE GAZ MÉTRO | CD2: =BP2 -> REVENU REQUIS | CG2: SOCIÉTÉ EN COMMANDITE GAZ MÉTRO | CR2: =CD2 -> REVENU REQUIS | CU2: SOCIÉTÉ EN COMMANDITE GAZ MÉTRO | DF2: =CR2 -> REVENU REQUIS
A3: CALCUL DU REVENU REQUIS | L3: Paramètres 2016-2017 | O3: CALCUL DU REVENU REQUIS | Z3: Paramètres 2016-2017 | AC3: CALCUL DU REVENU REQUIS | AN3: Paramètres 2016-2017 | AQ3: CALCUL DU REVENU REQUIS | BB3: Paramètres 2016-2017 | BE3: CALCUL DU REVENU REQUIS | BP3: Paramètres 2016-2017 | BS3: CALCUL DU REVENU REQUIS | CD3: Paramètres 2016-2017 | CG3: CALCUL DU REVENU REQUIS | CR3: Paramètres 2016-2017 | CU3: CALCUL DU REVENU REQUIS | DF3: Paramètres 2016-2017
A4: BUDGET | L4: SRR-VERSION 17.0 | O4: BUDGET | Z4: =L4 -> SRR-VERSION 17.0 | AC4: BUDGET | AN4: =Z4 -> SRR-VERSION 17.0 | AQ4: BUDGET | BB4: =AN4 -> SRR-VERSION 17.0 | BE4: BUDGET | BP4: =BB4 -> SRR-VERSION 17.0 | BS4: BUDGET | CD4: =BP4 -> SRR-VERSION 17.0 | CG4: BUDGET | CR4: =CD4 -> SRR-VERSION 17.0 | CU4: BUDGET | DF4: =CR4 -> SRR-VERSION 17.0
B8: ='GM-9Doc6-Annexe Q-4.2Modèle DaQ'!A1 -> Projet Drummondville | H8: Type de projet | K8: Représentant | P8: =B8 -> Projet Drummondville | V8: Type de projet | X8: =J8 -> 0 | Y8: =K8 -> Représentant | AA8: =M8 -> 0 | AD8: =P8 -> Projet Drummondville | AJ8: Type de projet | AL8: =X8 -> 0 | AM8: =Y8 -> Représentant | AO8: =AA8 -> 0 | AR8: =AD8 -> Projet Drummondville | AX8: Type de projet | AZ8: =AL8 -> 0 | BA8: =AM8 -> Représentant | BC8: =AO8 -> 0 | BF8: =AR8 -> Projet Drummondville | BL8: Type de projet | BN8: =AZ8 -> 0 | BO8: =BA8 -> Représentant | BQ8: =BC8 -> 0 | BT8: =BF8 -> Projet Drummondville | BZ8: Type de projet | CB8: =BN8 -> 0 | CC8: =BO8 -> Représentant | CE8: =BQ8 -> 0 | CH8: =BT8 -> Projet Drummondville | CN8: Type de projet | CP8: =CB8 -> 0 | CQ8: =CC8 -> Représentant | CS8: =CE8 -> 0 | CV8: =CH8 -> Projet Drummondville | DB8: Type de projet | DD8: =CP8 -> 0 | DE8: =CQ8 -> Représentant | DG8: =CS8 -> 0
H9: Région | K9: Conseiller | P9: =B9 -> 0 | V9: Région | X9: 0 | Y9: =K9 -> Conseiller | AA9: 0 | AD9: =P9 -> 0 | AJ9: Région | AL9: 0 | AM9: =Y9 -> Conseiller | AO9: 0 | AR9: =AD9 -> 0 | AX9: Région | AZ9: 0 | BA9: =AM9 -> Conseiller | BC9: 0 | BF9: =AR9 -> 0 | BL9: Région | BN9: 0 | BO9: =BA9 -> Conseiller | BQ9: 0 | BT9: =BF9 -> 0 | BZ9: Région | CB9: 0 | CC9: =BO9 -> Conseiller | CE9: 0 | CH9: =BT9 -> 0 | CN9: Région | CP9: 0 | CQ9: =CC9 -> Conseiller | CS9: 0 | CV9: =CH9 -> 0 | DB9: Région | DD9: 0 | DE9: =CQ9 -> Conseiller | DG9: 0
H10: Type de client | K10: OTP | P10: 0 | V10: Type de client | X10: 0 | Y10: OTP | AA10: 0 | AD10: 0 | AJ10: Type de client | AL10: 0 | AM10: OTP | AO10: 0 | AR10: 0 | AX10: Type de client | AZ10: 0 | BA10: OTP | BC10: 0 | BF10: 0 | BL10: Type de client | BN10: 0 | BO10: OTP | BQ10: 0 | BT10: 0 | BZ10: Type de client | CB10: 0 | CC10: OTP | CE10: 0 | CH10: 0 | CN10: Type de client | CP10: 0 | CQ10: OTP | CS10: 0 | CV10: 0 | DB10: Type de client | DD10: 0 | DE10: OTP | DG10: 0
H11: Nbr de clients potentiels | J11: 0 | K11: Longueur en mètres linéaires | P11: 0 | V11: Nbr de clients potentiels | X11: =J11 -> 0 | Y11: Longueur en mètres linéaires | AA11: 0 | AD11: 0 | AJ11: Nbr de clients potentiels | AL11: 0 | AM11: Longueur en mètres linéaires | AO11: 0 | AR11: 0 | AX11: Nbr de clients potentiels | AZ11: 0 | BA11: Longueur en mètres linéaires | BC11: 0 | BF11: 0 | BL11: Nbr de clients potentiels | BN11: 0 | BO11: Longueur en mètres linéaires | BQ11: 0 | BT11: 0 | BZ11: Nbr de clients potentiels | CB11: 0 | CC11: Longueur en mètres linéaires | CE11: 0 | CH11: 0 | CN11: Nbr de clients potentiels | CP11: 0 | CQ11: Longueur en mètres linéaires | CS11: 0 | CV11: 0 | DB11: Nbr de clients potentiels | DD11: 0 | DE11: Longueur en mètres linéaires | DG11: 0
H12: Coût en capital D-2016-156 | J12: 6.42% | K12: Coût d'été/hiver | V12: =H12 -> Coût en capital D-2016-156 | X12: 6.42% | Y12: Coût d'été/hiver | AA12: =M12 -> 0 | AJ12: =H12 -> Coût en capital D-2016-156 | AL12: =J12 -> 6.42% | AM12: Coût d'été/hiver | AO12: =M12 -> 0 | AX12: =H12 -> Coût en capital D-2016-156 | AZ12: =J12 -> 6.42% | BA12: Coût d'été/hiver | BC12: =M12 -> 0 | BL12: =H12 -> Coût en capital D-2016-156 | BN12: =J12 -> 6.42% | BO12: Coût d'été/hiver | BQ12: =M12 -> 0 | BZ12: =H12 -> Coût en capital D-2016-156 | CB12: =J12 -> 6.42% | CC12: Coût d'été/hiver | CE12: 0 | CN12: =H12 -> Coût en capital D-2016-156 | CP12: =J12 -> 6.42% | CQ12: Coût d'été/hiver | CS12: 0 | DB12: =H12 -> Coût en capital D-2016-156 | DD12: =J12 -> 6.42% | DE12: Coût d'été/hiver | DG12: 0
H13: Coût en capital prospectif pondéré | J13: 5.28% | K13: Coût unit. conduites ($/mln) | V13: Coût en capital prospectif pondéré | X13: 5.28% | Y13: Coût unit. conduites ($/mln) | AJ13: Coût en capital prospectif pondéré | AL13: =J13 -> 5.28% | AM13: Coût unit. conduites ($/mln) | AX13: Coût en capital prospectif pondéré | AZ13: =J13 -> 5.28% | BA13: Coût unit. conduites ($/mln) | BL13: Coût en capital prospectif pondéré | BN13: =J13 -> 5.28% | BO13: Coût unit. conduites ($/mln) | BZ13: Coût en capital prospectif pondéré | CB13: =J13 -> 5.28% | CC13: Coût unit. conduites ($/mln) | CE13: 0 | CN13: Coût en capital prospectif pondéré | CP13: =J13 -> 5.28% | CQ13: Coût unit. conduites ($/mln) | CS13: 0 | DB13: Coût en capital prospectif pondéré | DD13: =J13 -> 5.28% | DE13: Coût unit. conduites ($/mln) | DG13: 0
E16: Total | H16: 0 | I16: 1 | J16: 2 | K16: 3 | L16: 4 | M16: 5 | V16: 5 | W16: 6 | X16: 7 | Y16: 8 | Z16: 9 | AA16: 10 | AJ16: 10 | AK16: 11 | AL16: 12 | AM16: 13 | AN16: 14 | AO16: 15 | AX16: 15 | AY16: 16 | AZ16: 17 | BA16: 18 | BB16: 19 | BC16: 20 | BL16: 20 | BM16: 21 | BN16: 22 | BO16: 23 | BP16: 24 | BQ16: 25 | BZ16: 25 | CA16: 26 | CB16: 27 | CC16: 28 | CD16: 29 | CE16: 30 | CN16: 30 | CO16: 31 | CP16: 32 | CQ16: 33 | CR16: 34 | CS16: 35 | DB16: 35 | DC16: 36 | DD16: 37 | DE16: 38 | DF16: 39 | DG16: 40
B17: Nombre de clients | I17: ='GM-9Doc6-Annexe Q-4.2Modèle DaQ'!H29 -> 1 | J17: ='GM-9Doc6-Annexe Q-4.2Modèle DaQ'!I29 -> 1 | K17: ='GM-9Doc6-Annexe Q-4.2Modèle DaQ'!J29 -> 1 | L17: ='GM-9Doc6-Annexe Q-4.2Modèle DaQ'!K29 -> 1 | M17: ='GM-9Doc6-Annexe Q-4.2Modèle DaQ'!L29 -> 1 | P17: Nombre de clients | V17: =M17 -> 1 | W17: ='GM-9Doc6-Annexe Q-4.2Modèle DaQ'!M29 -> 1 | X17: ='GM-9Doc6-Annexe Q-4.2Modèle DaQ'!N29 -> 1 | Y17: ='GM-9Doc6-Annexe Q-4.2Modèle DaQ'!O29 -> 1 | Z17: ='GM-9Doc6-Annexe Q-4.2Modèle DaQ'!P29 -> 1 | AA17: ='GM-9Doc6-Annexe Q-4.2Modèle DaQ'!Q29 -> 1 | AD17: Nombre de clients | AJ17: =AA17 -> 1 | AK17: ='GM-9Doc6-Annexe Q-4.2Modèle DaQ'!R29 -> 1 | AL17: ='GM-9Doc6-Annexe Q-4.2Modèle DaQ'!S29 -> 1 | AM17: ='GM-9Doc6-Annexe Q-4.2Modèle DaQ'!T29 -> 1 | AN17: ='GM-9Doc6-Annexe Q-4.2Modèle DaQ'!U29 -> 1 | AO17: ='GM-9Doc6-Annexe Q-4.2Modèle DaQ'!V29 -> 1 | AR17: Nombre de clients | AX17: =AO17 -> 1 | AY17: ='GM-9Doc6-Annexe Q-4.2Modèle DaQ'!W29 -> 1 | AZ17: ='GM-9Doc6-Annexe Q-4.2Modèle DaQ'!X29 -> 1 | BA17: ='GM-9Doc6-Annexe Q-4.2Modèle DaQ'!Y29 -> 1 | BB17: ='GM-9Doc6-Annexe Q-4.2Modèle DaQ'!Z29 -> 1 | BC17: ='GM-9Doc6-Annexe Q-4.2Modèle DaQ'!AA29 -> 1 | BF17: Nombre de clients | BL17: =BC17 -> 1 | BM17: ='GM-9Doc6-Annexe Q-4.2Modèle DaQ'!AB29 -> 1 | BN17: ='GM-9Doc6-Annexe Q-4.2Modèle DaQ'!AC29 -> 1 | BO17: ='GM-9Doc6-Annexe Q-4.2Modèle DaQ'!AD29 -> 1 | BP17: ='GM-9Doc6-Annexe Q-4.2Modèle DaQ'!AE29 -> 1 | BQ17: ='GM-9Doc6-Annexe Q-4.2Modèle DaQ'!AF29 -> 1 | BT17: Nombre de clients | BZ17: =BQ17 -> 1 | CA17: ='GM-9Doc6-Annexe Q-4.2Modèle DaQ'!AG29 -> 1 | CB17: ='GM-9Doc6-Annexe Q-4.2Modèle DaQ'!AH29 -> 1 | CC17: ='GM-9Doc6-Annexe Q-4.2Modèle DaQ'!AI29 -> 1 | CD17: ='GM-9Doc6-Annexe Q-4.2Modèle DaQ'!AJ29 -> 1 | CE17: ='GM-9Doc6-Annexe Q-4.2Modèle DaQ'!AK29 -> 1 | CH17: Nombre de clients | CN17: =CE17 -> 1 | CO17: ='GM-9Doc6-Annexe Q-4.2Modèle DaQ'!AL29 -> 1 | CP17: ='GM-9Doc6-Annexe Q-4.2Modèle DaQ'!AM29 -> 1 | CQ17: ='GM-9Doc6-Annexe Q-4.2Modèle DaQ'!AN29 -> 1 | CR17: ='GM-9Doc6-Annexe Q-4.2Modèle DaQ'!AO29 -> 1 | CS17: ='GM-9Doc6-Annexe Q-4.2Modèle DaQ'!AP29 -> 1 | CV17: Nombre de clients | DB17: =CS17 -> 1 | DC17: ='GM-9Doc6-Annexe Q-4.2Modèle DaQ'!AQ29 -> 1 | DD17: ='GM-9Doc6-Annexe Q-4.2Modèle DaQ'!AR29 -> 1 | DE17: ='GM-9Doc6-Annexe Q-4.2Modèle DaQ'!AS29 -> 1 | DF17: ='GM-9Doc6-Annexe Q-4.2Modèle DaQ'!AT29 -> 1 | DG17: ='GM-9Doc6-Annexe Q-4.2Modèle DaQ'!AU29 -> 1
B18: Volume en m3 | I18: ='GM-9Doc6-Annexe Q-4.2Modèle DaQ'!H30 -> 2,020,000 | J18: ='GM-9Doc6-Annexe Q-4.2Modèle DaQ'!I30 -> 2,020,000 | K18: ='GM-9Doc6-Annexe Q-4.2Modèle DaQ'!J30 -> 2,020,000 | L18: ='GM-9Doc6-Annexe Q-4.2Modèle DaQ'!K30 -> 2,020,000 | M18: ='GM-9Doc6-Annexe Q-4.2Modèle DaQ'!L30 -> 2,020,000 | P18: =B18 -> Volume en m3 | V18: =M18 -> 2,020,000 | W18: ='GM-9Doc6-Annexe Q-4.2Modèle DaQ'!M30 -> 2,020,000 | X18: ='GM-9Doc6-Annexe Q-4.2Modèle DaQ'!N30 -> 2,020,000 | Y18: ='GM-9Doc6-Annexe Q-4.2Modèle DaQ'!O30 -> 2,020,000 | Z18: ='GM-9Doc6-Annexe Q-4.2Modèle DaQ'!P30 -> 2,020,000 | AA18: ='GM-9Doc6-Annexe Q-4.2Modèle DaQ'!Q30 -> 2,020,000 | AD18: Volume en m3 | AJ18: 2,020,000 | AK18: ='GM-9Doc6-Annexe Q-4.2Modèle DaQ'!R30 -> 2,020,000 | AL18: ='GM-9Doc6-Annexe Q-4.2Modèle DaQ'!S30 -> 2,020,000 | AM18: ='GM-9Doc6-Annexe Q-4.2Modèle DaQ'!T30 -> 2,020,000 | AN18: ='GM-9Doc6-Annexe Q-4.2Modèle DaQ'!U30 -> 2,020,000 | AO18: ='GM-9Doc6-Annexe Q-4.2Modèle DaQ'!V30 -> 2,020,000 | AR18: Volume en m3 | AX18: =AO18 -> 2,020,000 | AY18: ='GM-9Doc6-Annexe Q-4.2Modèle DaQ'!W30 -> 2,020,000 | AZ18: ='GM-9Doc6-Annexe Q-4.2Modèle DaQ'!X30 -> 2,020,000 | BA18: ='GM-9Doc6-Annexe Q-4.2Modèle DaQ'!Y30 -> 2,020,000 | BB18: ='GM-9Doc6-Annexe Q-4.2Modèle DaQ'!Z30 -> 2,020,000 | BC18: ='GM-9Doc6-Annexe Q-4.2Modèle DaQ'!AA30 -> 2,020,000 | BF18: Volume en m3 | BL18: =BC18 -> 2,020,000 | BM18: ='GM-9Doc6-Annexe Q-4.2Modèle DaQ'!AB30 -> 2,020,000 | BN18: ='GM-9Doc6-Annexe Q-4.2Modèle DaQ'!AC30 -> 2,020,000 | BO18: ='GM-9Doc6-Annexe Q-4.2Modèle DaQ'!AD30 -> 2,020,000 | BP18: ='GM-9Doc6-Annexe Q-4.2Modèle DaQ'!AE30 -> 2,020,000 | BQ18: ='GM-9Doc6-Annexe Q-4.2Modèle DaQ'!AF30 -> 2,020,000 | BT18: Volume en m3 | BZ18: =BQ18 -> 2,020,000 | CA18: ='GM-9Doc6-Annexe Q-4.2Modèle DaQ'!AG30 -> 2,020,000 | CB18: ='GM-9Doc6-Annexe Q-4.2Modèle DaQ'!AH30 -> 2,020,000 | CC18: ='GM-9Doc6-Annexe Q-4.2Modèle DaQ'!AI30 -> 2,020,000 | CD18: ='GM-9Doc6-Annexe Q-4.2Modèle DaQ'!AJ30 -> 2,020,000 | CE18: ='GM-9Doc6-Annexe Q-4.2Modèle DaQ'!AK30 -> 2,020,000 | CH18: Volume en m3 | CN18: =CE18 -> 2,020,000 | CO18: ='GM-9Doc6-Annexe Q-4.2Modèle DaQ'!AL30 -> 2,020,000 | CP18: ='GM-9Doc6-Annexe Q-4.2Modèle DaQ'!AM30 -> 2,020,000 | CQ18: ='GM-9Doc6-Annexe Q-4.2Modèle DaQ'!AN30 -> 2,020,000 | CR18: ='GM-9Doc6-Annexe Q-4.2Modèle DaQ'!AO30 -> 2,020,000 | CS18: ='GM-9Doc6-Annexe Q-4.2Modèle DaQ'!AP30 -> 2,020,000 | CV18: Volume en m3 | DB18: =CS18 -> 2,020,000 | DC18: ='GM-9Doc6-Annexe Q-4.2Modèle DaQ'!AQ30 -> 2,020,000 | DD18: ='GM-9Doc6-Annexe Q-4.2Modèle DaQ'!AR30 -> 2,020,000 | DE18: ='GM-9Doc6-Annexe Q-4.2Modèle DaQ'!AS30 -> 2,020,000 | DF18: ='GM-9Doc6-Annexe Q-4.2Modèle DaQ'!AT30 -> 2,020,000 | DG18: ='GM-9Doc6-Annexe Q-4.2Modèle DaQ'!AU30 -> 2,020,000
B20: Frais de conduite - Base | E20: =SUM(H20:DG20)-V20-AJ20-AX20-BL20-BZ20-CN20-DB20 -> 908,900 | H20: ='GM-9Doc6-Annexe Q-4.2Modèle DaQ'!G36 -> 908,900 | I20: ='GM-9Doc6-Annexe Q-4.2Modèle DaQ'!H36 -> 0 | J20: ='GM-9Doc6-Annexe Q-4.2Modèle DaQ'!I36 -> 0 | K20: ='GM-9Doc6-Annexe Q-4.2Modèle DaQ'!J36 -> 0 | L20: ='GM-9Doc6-Annexe Q-4.2Modèle DaQ'!K36 -> 0 | M20: ='GM-9Doc6-Annexe Q-4.2Modèle DaQ'!L36 -> 0 | P20: =B20 -> Frais de conduite - Base | V20: =M20 -> 0 | W20: ='GM-9Doc6-Annexe Q-4.2Modèle DaQ'!M36 -> 0 | X20: ='GM-9Doc6-Annexe Q-4.2Modèle DaQ'!N36 -> 0 | Y20: ='GM-9Doc6-Annexe Q-4.2Modèle DaQ'!O36 -> 0 | Z20: ='GM-9Doc6-Annexe Q-4.2Modèle DaQ'!P36 -> 0 | AA20: ='GM-9Doc6-Annexe Q-4.2Modèle DaQ'!Q36 -> 0 | AD20: =P20 -> Frais de conduite - Base | AJ20: =AA20 -> 0 | AK20: ='GM-9Doc6-Annexe Q-4.2Modèle DaQ'!R36 -> 0 | AL20: ='GM-9Doc6-Annexe Q-4.2Modèle DaQ'!S36 -> 0 | AM20: ='GM-9Doc6-Annexe Q-4.2Modèle DaQ'!T36 -> 0 | AN20: ='GM-9Doc6-Annexe Q-4.2Modèle DaQ'!U36 -> 0 | AO20: ='GM-9Doc6-Annexe Q-4.2Modèle DaQ'!V36 -> 0 | AR20: =AD20 -> Frais de conduite - Base | AX20: =AO20 -> 0 | AY20: ='GM-9Doc6-Annexe Q-4.2Modèle DaQ'!W36 -> 0 | AZ20: ='GM-9Doc6-Annexe Q-4.2Modèle DaQ'!X36 -> 0 | BA20: ='GM-9Doc6-Annexe Q-4.2Modèle DaQ'!Y36 -> 0 | BB20: ='GM-9Doc6-Annexe Q-4.2Modèle DaQ'!Z36 -> 0 | BC20: ='GM-9Doc6-Annexe Q-4.2Modèle DaQ'!AA36 -> 0 | BF20: =AR20 -> Frais de conduite - Base | BL20: =BC20 -> 0 | BM20: ='GM-9Doc6-Annexe Q-4.2Modèle DaQ'!AB36 -> 0 | BN20: ='GM-9Doc6-Annexe Q-4.2Modèle DaQ'!AC36 -> 0 | BO20: ='GM-9Doc6-Annexe Q-4.2Modèle DaQ'!AD36 -> 0 | BP20: ='GM-9Doc6-Annexe Q-4.2Modèle DaQ'!AE36 -> 0 | BQ20: ='GM-9Doc6-Annexe Q-4.2Modèle DaQ'!AF36 -> 0 | BT20: =BF20 -> Frais de conduite - Base | BZ20: =BQ20 -> 0 | CA20: ='GM-9Doc6-Annexe Q-4.2Modèle DaQ'!AG36 -> 0 | CB20: ='GM-9Doc6-Annexe Q-4.2Modèle DaQ'!AH36 -> 0 | CC20: ='GM-9Doc6-Annexe Q-4.2Modèle DaQ'!AI36 -> 0 | CD20: ='GM-9Doc6-Annexe Q-4.2Modèle DaQ'!AJ36 -> 0 | CE20: ='GM-9Doc6-Annexe Q-4.2Modèle DaQ'!AK36 -> 0 | CH20: =BT20 -> Frais de conduite - Base | CN20: =CE20 -> 0 | CO20: ='GM-9Doc6-Annexe Q-4.2Modèle DaQ'!AL36 -> 0 | CP20: ='GM-9Doc6-Annexe Q-4.2Modèle DaQ'!AM36 -> 0 | CQ20: ='GM-9Doc6-Annexe Q-4.2Modèle DaQ'!AN36 -> 0 | CR20: ='GM-9Doc6-Annexe Q-4.2Modèle DaQ'!AO36 -> 0 | CS20: ='GM-9Doc6-Annexe Q-4.2Modèle DaQ'!AP36 -> 0 | CV20: =CH20 -> Frais de conduite - Base | DB20: =CS20 -> 0 | DC20: ='GM-9Doc6-Annexe Q-4.2Modèle DaQ'!AQ36 -> 0 | DD20: ='GM-9Doc6-Annexe Q-4.2Modèle DaQ'!AR36 -> 0 | DE20: ='GM-9Doc6-Annexe Q-4.2Modèle DaQ'!AS36 -> 0 | DF20: ='GM-9Doc6-Annexe Q-4.2Modèle DaQ'!AT36 -> 0 | DG20: ='GM-9Doc6-Annexe Q-4.2Modèle DaQ'!AU36 -> 0
B21: Frais de conduite - Frais entrepreneurs | E21: 148,622 | H21: ='GM-9Doc6-Annexe Q-4.2Modèle DaQ'!G37 -> 148,622 | I21: ='GM-9Doc6-Annexe Q-4.2Modèle DaQ'!H37 -> 0 | J21: ='GM-9Doc6-Annexe Q-4.2Modèle DaQ'!I37 -> 0 | K21: ='GM-9Doc6-Annexe Q-4.2Modèle DaQ'!J37 -> 0 | L21: ='GM-9Doc6-Annexe Q-4.2Modèle DaQ'!K37 -> 0 | M21: ='GM-9Doc6-Annexe Q-4.2Modèle DaQ'!L37 -> 0 | P21: Frais de conduite - Frais entrepreneurs | V21: 0 | W21: ='GM-9Doc6-Annexe Q-4.2Modèle DaQ'!M37 -> 0 | X21: ='GM-9Doc6-Annexe Q-4.2Modèle DaQ'!N37 -> 0 | Y21: ='GM-9Doc6-Annexe Q-4.2Modèle DaQ'!O37 -> 0 | Z21: ='GM-9Doc6-Annexe Q-4.2Modèle DaQ'!P37 -> 0 | AA21: ='GM-9Doc6-Annexe Q-4.2Modèle DaQ'!Q37 -> 0 | AD21: Frais de conduite - Frais entrepreneurs | AJ21: 0 | AK21: ='GM-9Doc6-Annexe Q-4.2Modèle DaQ'!R37 -> 0 | AL21: ='GM-9Doc6-Annexe Q-4.2Modèle DaQ'!S37 -> 0 | AM21: ='GM-9Doc6-Annexe Q-4.2Modèle DaQ'!T37 -> 0 | AN21: ='GM-9Doc6-Annexe Q-4.2Modèle DaQ'!U37 -> 0 | AO21: ='GM-9Doc6-Annexe Q-4.2Modèle DaQ'!V37 -> 0 | AR21: Frais de conduite - Frais entrepreneurs | AX21: 0 | AY21: ='GM-9Doc6-Annexe Q-4.2Modèle DaQ'!W37 -> 0 | AZ21: ='GM-9Doc6-Annexe Q-4.2Modèle DaQ'!X37 -> 0 | BA21: ='GM-9Doc6-Annexe Q-4.2Modèle DaQ'!Y37 -> 0 | BB21: ='GM-9Doc6-Annexe Q-4.2Modèle DaQ'!Z37 -> 0 | BC21: ='GM-9Doc6-Annexe Q-4.2Modèle DaQ'!AA37 -> 0 | BF21: Frais de conduite - Frais entrepreneurs | BL21: 0 | BM21: ='GM-9Doc6-Annexe Q-4.2Modèle DaQ'!AB37 -> 0 | BN21: ='GM-9Doc6-Annexe Q-4.2Modèle DaQ'!AC37 -> 0 | BO21: ='GM-9Doc6-Annexe Q-4.2Modèle DaQ'!AD37 -> 0 | BP21: ='GM-9Doc6-Annexe Q-4.2Modèle DaQ'!AE37 -> 0 | BQ21: ='GM-9Doc6-Annexe Q-4.2Modèle DaQ'!AF37 -> 0 | BT21: Frais de conduite - Frais entrepreneurs | BZ21: 0 | CA21: ='GM-9Doc6-Annexe Q-4.2Modèle DaQ'!AG37 -> 0 | CB21: ='GM-9Doc6-Annexe Q-4.2Modèle DaQ'!AH37 -> 0 | CC21: ='GM-9Doc6-Annexe Q-4.2Modèle DaQ'!AI37 -> 0 | CD21: ='GM-9Doc6-Annexe Q-4.2Modèle DaQ'!AJ37 -> 0 | CE21: ='GM-9Doc6-Annexe Q-4.2Modèle DaQ'!AK37 -> 0 | CH21: Frais de conduite - Frais entrepreneurs | CN21: 0 | CO21: ='GM-9Doc6-Annexe Q-4.2Modèle DaQ'!AL37 -> 0 | CP21: ='GM-9Doc6-Annexe Q-4.2Modèle DaQ'!AM37 -> 0 | CQ21: ='GM-9Doc6-Annexe Q-4.2Modèle DaQ'!AN37 -> 0 | CR21: ='GM-9Doc6-Annexe Q-4.2Modèle DaQ'!AO37 -> 0 | CS21: ='GM-9Doc6-Annexe Q-4.2Modèle DaQ'!AP37 -> 0 | CV21: Frais de conduite - Frais entrepreneurs | DB21: 0 | DC21: ='GM-9Doc6-Annexe Q-4.2Modèle DaQ'!AQ37 -> 0 | DD21: ='GM-9Doc6-Annexe Q-4.2Modèle DaQ'!AR37 -> 0 | DE21: ='GM-9Doc6-Annexe Q-4.2Modèle DaQ'!AS37 -> 0 | DF21: ='GM-9Doc6-Annexe Q-4.2Modèle DaQ'!AT37 -> 0 | DG21: ='GM-9Doc6-Annexe Q-4.2Modèle DaQ'!AU37 -> 0
B22: Frais de conduites | E22: =SUM(H22:DG22)-V22-AJ22-AX22-BL22-BZ22-CN22-DB22 -> 1,057,522 | H22: ='GM-9Doc6-Annexe Q-4.2Modèle DaQ'!G38 -> 1,057,522 | I22: ='GM-9Doc6-Annexe Q-4.2Modèle DaQ'!H38 -> 0 | J22: ='GM-9Doc6-Annexe Q-4.2Modèle DaQ'!I38 -> 0 | K22: ='GM-9Doc6-Annexe Q-4.2Modèle DaQ'!J38 -> 0 | L22: ='GM-9Doc6-Annexe Q-4.2Modèle DaQ'!K38 -> 0 | M22: ='GM-9Doc6-Annexe Q-4.2Modèle DaQ'!L38 -> 0 | P22: =B22 -> Frais de conduites | V22: =M22 -> 0 | W22: ='GM-9Doc6-Annexe Q-4.2Modèle DaQ'!M38 -> 0 | X22: ='GM-9Doc6-Annexe Q-4.2Modèle DaQ'!N38 -> 0 | Y22: ='GM-9Doc6-Annexe Q-4.2Modèle DaQ'!O38 -> 0 | Z22: ='GM-9Doc6-Annexe Q-4.2Modèle DaQ'!P38 -> 0 | AA22: ='GM-9Doc6-Annexe Q-4.2Modèle DaQ'!Q38 -> 0 | AD22: =P22 -> Frais de conduites | AJ22: =AA22 -> 0 | AK22: ='GM-9Doc6-Annexe Q-4.2Modèle DaQ'!R38 -> 0 | AL22: ='GM-9Doc6-Annexe Q-4.2Modèle DaQ'!S38 -> 0 | AM22: ='GM-9Doc6-Annexe Q-4.2Modèle DaQ'!T38 -> 0 | AN22: ='GM-9Doc6-Annexe Q-4.2Modèle DaQ'!U38 -> 0 | AO22: ='GM-9Doc6-Annexe Q-4.2Modèle DaQ'!V38 -> 0 | AR22: =AD22 -> Frais de conduites | AX22: =AO22 -> 0 | AY22: ='GM-9Doc6-Annexe Q-4.2Modèle DaQ'!W38 -> 0 | AZ22: ='GM-9Doc6-Annexe Q-4.2Modèle DaQ'!X38 -> 0 | BA22: ='GM-9Doc6-Annexe Q-4.2Modèle DaQ'!Y38 -> 0 | BB22: ='GM-9Doc6-Annexe Q-4.2Modèle DaQ'!Z38 -> 0 | BC22: ='GM-9Doc6-Annexe Q-4.2Modèle DaQ'!AA38 -> 0 | BF22: =AR22 -> Frais de conduites | BL22: =BC22 -> 0 | BM22: ='GM-9Doc6-Annexe Q-4.2Modèle DaQ'!AB38 -> 0 | BN22: ='GM-9Doc6-Annexe Q-4.2Modèle DaQ'!AC38 -> 0 | BO22: ='GM-9Doc6-Annexe Q-4.2Modèle DaQ'!AD38 -> 0 | BP22: ='GM-9Doc6-Annexe Q-4.2Modèle DaQ'!AE38 -> 0 | BQ22: ='GM-9Doc6-Annexe Q-4.2Modèle DaQ'!AF38 -> 0 | BT22: =BF22 -> Frais de conduites | BZ22: =BQ22 -> 0 | CA22: ='GM-9Doc6-Annexe Q-4.2Modèle DaQ'!AG38 -> 0 | CB22: ='GM-9Doc6-Annexe Q-4.2Modèle DaQ'!AH38 -> 0 | CC22: ='GM-9Doc6-Annexe Q-4.2Modèle DaQ'!AI38 -> 0 | CD22: ='GM-9Doc6-Annexe Q-4.2Modèle DaQ'!AJ38 -> 0 | CE22: ='GM-9Doc6-Annexe Q-4.2Modèle DaQ'!AK38 -> 0 | CH22: =BT22 -> Frais de conduites | CN22: =CE22 -> 0 | CO22: ='GM-9Doc6-Annexe Q-4.2Modèle DaQ'!AL38 -> 0 | CP22: ='GM-9Doc6-Annexe Q-4.2Modèle DaQ'!AM38 -> 0 | CQ22: ='GM-9Doc6-Annexe Q-4.2Modèle DaQ'!AN38 -> 0 | CR22: ='GM-9Doc6-Annexe Q-4.2Modèle DaQ'!AO38 -> 0 | CS22: ='GM-9Doc6-Annexe Q-4.2Modèle DaQ'!AP38 -> 0 | CV22: =CH22 -> Frais de conduites | DB22: =CS22 -> 0 | DC22: ='GM-9Doc6-Annexe Q-4.2Modèle DaQ'!AQ38 -> 0 | DD22: ='GM-9Doc6-Annexe Q-4.2Modèle DaQ'!AR38 -> 0 | DE22: ='GM-9Doc6-Annexe Q-4.2Modèle DaQ'!AS38 -> 0 | DF22: ='GM-9Doc6-Annexe Q-4.2Modèle DaQ'!AT38 -> 0 | DG22: ='GM-9Doc6-Annexe Q-4.2Modèle DaQ'!AU38 -> 0
B23: Frais de branchements - Base | E23: =SUM(H23:DG23)-V23-AJ23-AX23-BL23-BZ23-CN23-DB23 -> 471,834 | H23: ='GM-9Doc6-Annexe Q-4.2Modèle DaQ'!G40 -> 471,834 | I23: ='GM-9Doc6-Annexe Q-4.2Modèle DaQ'!H40 -> 0 | J23: ='GM-9Doc6-Annexe Q-4.2Modèle DaQ'!I40 -> 0 | K23: ='GM-9Doc6-Annexe Q-4.2Modèle DaQ'!J40 -> 0 | L23: ='GM-9Doc6-Annexe Q-4.2Modèle DaQ'!K40 -> 0 | M23: ='GM-9Doc6-Annexe Q-4.2Modèle DaQ'!L40 -> 0 | P23: =B23 -> Frais de branchements - Base | V23: =M23 -> 0 | W23: ='GM-9Doc6-Annexe Q-4.2Modèle DaQ'!M40 -> 0 | X23: ='GM-9Doc6-Annexe Q-4.2Modèle DaQ'!N40 -> 0 | Y23: ='GM-9Doc6-Annexe Q-4.2Modèle DaQ'!O40 -> 0 | Z23: ='GM-9Doc6-Annexe Q-4.2Modèle DaQ'!P40 -> 0 | AA23: ='GM-9Doc6-Annexe Q-4.2Modèle DaQ'!Q40 -> 0 | AD23: =P23 -> Frais de branchements - Base | AJ23: =AA23 -> 0 | AK23: ='GM-9Doc6-Annexe Q-4.2Modèle DaQ'!R40 -> 0 | AL23: ='GM-9Doc6-Annexe Q-4.2Modèle DaQ'!S40 -> 0 | AM23: ='GM-9Doc6-Annexe Q-4.2Modèle DaQ'!T40 -> 0 | AN23: ='GM-9Doc6-Annexe Q-4.2Modèle DaQ'!U40 -> 0 | AO23: ='GM-9Doc6-Annexe Q-4.2Modèle DaQ'!V40 -> 0 | AR23: =AD23 -> Frais de branchements - Base | AX23: =AO23 -> 0 | AY23: ='GM-9Doc6-Annexe Q-4.2Modèle DaQ'!W40 -> 0 | AZ23: ='GM-9Doc6-Annexe Q-4.2Modèle DaQ'!X40 -> 0 | BA23: ='GM-9Doc6-Annexe Q-4.2Modèle DaQ'!Y40 -> 0 | BB23: ='GM-9Doc6-Annexe Q-4.2Modèle DaQ'!Z40 -> 0 | BC23: ='GM-9Doc6-Annexe Q-4.2Modèle DaQ'!AA40 -> 0 | BF23: =AR23 -> Frais de branchements - Base | BL23: =BC23 -> 0 | BM23: ='GM-9Doc6-Annexe Q-4.2Modèle DaQ'!AB40 -> 0 | BN23: ='GM-9Doc6-Annexe Q-4.2Modèle DaQ'!AC40 -> 0 | BO23: ='GM-9Doc6-Annexe Q-4.2Modèle DaQ'!AD40 -> 0 | BP23: ='GM-9Doc6-Annexe Q-4.2Modèle DaQ'!AE40 -> 0 | BQ23: ='GM-9Doc6-Annexe Q-4.2Modèle DaQ'!AF40 -> 0 | BT23: =BF23 -> Frais de branchements - Base | BZ23: =BQ23 -> 0 | CA23: ='GM-9Doc6-Annexe Q-4.2Modèle DaQ'!AG40 -> 0 | CB23: ='GM-9Doc6-Annexe Q-4.2Modèle DaQ'!AH40 -> 0 | CC23: ='GM-9Doc6-Annexe Q-4.2Modèle DaQ'!AI40 -> 0 | CD23: ='GM-9Doc6-Annexe Q-4.2Modèle DaQ'!AJ40 -> 0 | CE23: ='GM-9Doc6-Annexe Q-4.2Modèle DaQ'!AK40 -> 0 | CH23: =BT23 -> Frais de branchements - Base | CN23: =CE23 -> 0 | CO23: ='GM-9Doc6-Annexe Q-4.2Modèle DaQ'!AL40 -> 0 | CP23: ='GM-9Doc6-Annexe Q-4.2Modèle DaQ'!AM40 -> 0 | CQ23: ='GM-9Doc6-Annexe Q-4.2Modèle DaQ'!AN40 -> 0 | CR23: ='GM-9Doc6-Annexe Q-4.2Modèle DaQ'!AO40 -> 0 | CS23: ='GM-9Doc6-Annexe Q-4.2Modèle DaQ'!AP40 -> 0 | CV23: =CH23 -> Frais de branchements - Base | DB23: =CS23 -> 0 | DC23: ='GM-9Doc6-Annexe Q-4.2Modèle DaQ'!AQ40 -> 0 | DD23: ='GM-9Doc6-Annexe Q-4.2Modèle DaQ'!AR40 -> 0 | DE23: ='GM-9Doc6-Annexe Q-4.2Modèle DaQ'!AS40 -> 0 | DF23: ='GM-9Doc6-Annexe Q-4.2Modèle DaQ'!AT40 -> 0 | DG23: ='GM-9Doc6-Annexe Q-4.2Modèle DaQ'!AU40 -> 0
B24: Frais de branchements - Frais entrepreneurs | E24: 85,845 | H24: ='GM-9Doc6-Annexe Q-4.2Modèle DaQ'!G41 -> 85,845 | I24: ='GM-9Doc6-Annexe Q-4.2Modèle DaQ'!H41 -> 0 | J24: ='GM-9Doc6-Annexe Q-4.2Modèle DaQ'!I41 -> 0 | K24: ='GM-9Doc6-Annexe Q-4.2Modèle DaQ'!J41 -> 0 | L24: ='GM-9Doc6-Annexe Q-4.2Modèle DaQ'!K41 -> 0 | M24: ='GM-9Doc6-Annexe Q-4.2Modèle DaQ'!L41 -> 0 | P24: Frais de branchements - Frais entrepreneurs | V24: 0 | W24: ='GM-9Doc6-Annexe Q-4.2Modèle DaQ'!M41 -> 0 | X24: ='GM-9Doc6-Annexe Q-4.2Modèle DaQ'!N41 -> 0 | Y24: ='GM-9Doc6-Annexe Q-4.2Modèle DaQ'!O41 -> 0 | Z24: ='GM-9Doc6-Annexe Q-4.2Modèle DaQ'!P41 -> 0 | AA24: ='GM-9Doc6-Annexe Q-4.2Modèle DaQ'!Q41 -> 0 | AD24: Frais de branchements - Frais entrepreneurs | AJ24: 0 | AK24: ='GM-9Doc6-Annexe Q-4.2Modèle DaQ'!R41 -> 0 | AL24: ='GM-9Doc6-Annexe Q-4.2Modèle DaQ'!S41 -> 0 | AM24: ='GM-9Doc6-Annexe Q-4.2Modèle DaQ'!T41 -> 0 | AN24: ='GM-9Doc6-Annexe Q-4.2Modèle DaQ'!U41 -> 0 | AO24: ='GM-9Doc6-Annexe Q-4.2Modèle DaQ'!V41 -> 0 | AR24: Frais de branchements - Frais entrepreneurs | AX24: 0 | AY24: ='GM-9Doc6-Annexe Q-4.2Modèle DaQ'!W41 -> 0 | AZ24: ='GM-9Doc6-Annexe Q-4.2Modèle DaQ'!X41 -> 0 | BA24: ='GM-9Doc6-Annexe Q-4.2Modèle DaQ'!Y41 -> 0 | BB24: ='GM-9Doc6-Annexe Q-4.2Modèle DaQ'!Z41 -> 0 | BC24: ='GM-9Doc6-Annexe Q-4.2Modèle DaQ'!AA41 -> 0 | BF24: Frais de branchements - Frais entrepreneurs | BL24: 0 | BM24: ='GM-9Doc6-Annexe Q-4.2Modèle DaQ'!AB41 -> 0 | BN24: ='GM-9Doc6-Annexe Q-4.2Modèle DaQ'!AC41 -> 0 | BO24: ='GM-9Doc6-Annexe Q-4.2Modèle DaQ'!AD41 -> 0 | BP24: ='GM-9Doc6-Annexe Q-4.2Modèle DaQ'!AE41 -> 0 | BQ24: ='GM-9Doc6-Annexe Q-4.2Modèle DaQ'!AF41 -> 0 | BT24: Frais de branchements - Frais entrepreneurs | BZ24: 0 | CA24: ='GM-9Doc6-Annexe Q-4.2Modèle DaQ'!AG41 -> 0 | CB24: ='GM-9Doc6-Annexe Q-4.2Modèle DaQ'!AH41 -> 0 | CC24: ='GM-9Doc6-Annexe Q-4.2Modèle DaQ'!AI41 -> 0 | CD24: ='GM-9Doc6-Annexe Q-4.2Modèle DaQ'!AJ41 -> 0 | CE24: ='GM-9Doc6-Annexe Q-4.2Modèle DaQ'!AK41 -> 0 | CH24: Frais de branchements - Frais entrepreneurs | CN24: 0 | CO24: ='GM-9Doc6-Annexe Q-4.2Modèle DaQ'!AL41 -> 0 | CP24: ='GM-9Doc6-Annexe Q-4.2Modèle DaQ'!AM41 -> 0 | CQ24: ='GM-9Doc6-Annexe Q-4.2Modèle DaQ'!AN41 -> 0 | CR24: ='GM-9Doc6-Annexe Q-4.2Modèle DaQ'!AO41 -> 0 | CS24: ='GM-9Doc6-Annexe Q-4.2Modèle DaQ'!AP41 -> 0 | CV24: Frais de branchements - Frais entrepreneurs | DB24: 0 | DC24: ='GM-9Doc6-Annexe Q-4.2Modèle DaQ'!AQ41 -> 0 | DD24: ='GM-9Doc6-Annexe Q-4.2Modèle DaQ'!AR41 -> 0 | DE24: ='GM-9Doc6-Annexe Q-4.2Modèle DaQ'!AS41 -> 0 | DF24: ='GM-9Doc6-Annexe Q-4.2Modèle DaQ'!AT41 -> 0 | DG24: ='GM-9Doc6-Annexe Q-4.2Modèle DaQ'!AU41 -> 0
B25: Frais de branchements - Coûts de compteur(s) | E25: 5,202 | H25: ='GM-9Doc6-Annexe Q-4.2Modèle DaQ'!G42 -> 5,202 | I25: ='GM-9Doc6-Annexe Q-4.2Modèle DaQ'!H42 -> 0 | J25: ='GM-9Doc6-Annexe Q-4.2Modèle DaQ'!I42 -> 0 | K25: ='GM-9Doc6-Annexe Q-4.2Modèle DaQ'!J42 -> 0 | L25: ='GM-9Doc6-Annexe Q-4.2Modèle DaQ'!K42 -> 0 | M25: ='GM-9Doc6-Annexe Q-4.2Modèle DaQ'!L42 -> 0 | P25: Frais de branchements - Coûts de compteur(s) | V25: 0 | W25: ='GM-9Doc6-Annexe Q-4.2Modèle DaQ'!M42 -> 0 | X25: ='GM-9Doc6-Annexe Q-4.2Modèle DaQ'!N42 -> 0 | Y25: ='GM-9Doc6-Annexe Q-4.2Modèle DaQ'!O42 -> 0 | Z25: ='GM-9Doc6-Annexe Q-4.2Modèle DaQ'!P42 -> 0 | AA25: ='GM-9Doc6-Annexe Q-4.2Modèle DaQ'!Q42 -> 0 | AD25: Frais de branchements - Coûts de compteur(s) | AJ25: 0 | AK25: ='GM-9Doc6-Annexe Q-4.2Modèle DaQ'!R42 -> 0 | AL25: ='GM-9Doc6-Annexe Q-4.2Modèle DaQ'!S42 -> 0 | AM25: ='GM-9Doc6-Annexe Q-4.2Modèle DaQ'!T42 -> 0 | AN25: ='GM-9Doc6-Annexe Q-4.2Modèle DaQ'!U42 -> 0 | AO25: ='GM-9Doc6-Annexe Q-4.2Modèle DaQ'!V42 -> 0 | AR25: Frais de branchements - Coûts de compteur(s) | AX25: 0 | AY25: ='GM-9Doc6-Annexe Q-4.2Modèle DaQ'!W42 -> 0 | AZ25: ='GM-9Doc6-Annexe Q-4.2Modèle DaQ'!X42 -> 0 | BA25: ='GM-9Doc6-Annexe Q-4.2Modèle DaQ'!Y42 -> 0 | BB25: ='GM-9Doc6-Annexe Q-4.2Modèle DaQ'!Z42 -> 0 | BC25: ='GM-9Doc6-Annexe Q-4.2Modèle DaQ'!AA42 -> 0 | BF25: Frais de branchements - Coûts de compteur(s) | BL25: 0 | BM25: ='GM-9Doc6-Annexe Q-4.2Modèle DaQ'!AB42 -> 0 | BN25: ='GM-9Doc6-Annexe Q-4.2Modèle DaQ'!AC42 -> 0 | BO25: ='GM-9Doc6-Annexe Q-4.2Modèle DaQ'!AD42 -> 0 | BP25: ='GM-9Doc6-Annexe Q-4.2Modèle DaQ'!AE42 -> 0 | BQ25: ='GM-9Doc6-Annexe Q-4.2Modèle DaQ'!AF42 -> 0 | BT25: Frais de branchements - Coûts de compteur(s) | BZ25: 0 | CA25: ='GM-9Doc6-Annexe Q-4.2Modèle DaQ'!AG42 -> 0 | CB25: ='GM-9Doc6-Annexe Q-4.2Modèle DaQ'!AH42 -> 0 | CC25: ='GM-9Doc6-Annexe Q-4.2Modèle DaQ'!AI42 -> 0 | CD25: ='GM-9Doc6-Annexe Q-4.2Modèle DaQ'!AJ42 -> 0 | CE25: ='GM-9Doc6-Annexe Q-4.2Modèle DaQ'!AK42 -> 0 | CH25: Frais de branchements - Coûts de compteur(s) | CN25: 0 | CO25: ='GM-9Doc6-Annexe Q-4.2Modèle DaQ'!AL42 -> 0 | CP25: ='GM-9Doc6-Annexe Q-4.2Modèle DaQ'!AM42 -> 0 | CQ25: ='GM-9Doc6-Annexe Q-4.2Modèle DaQ'!AN42 -> 0 | CR25: ='GM-9Doc6-Annexe Q-4.2Modèle DaQ'!AO42 -> 0 | CS25: ='GM-9Doc6-Annexe Q-4.2Modèle DaQ'!AP42 -> 0 | CV25: Frais de branchements - Coûts de compteur(s) | DB25: 0 | DC25: ='GM-9Doc6-Annexe Q-4.2Modèle DaQ'!AQ42 -> 0 | DD25: ='GM-9Doc6-Annexe Q-4.2Modèle DaQ'!AR42 -> 0 | DE25: ='GM-9Doc6-Annexe Q-4.2Modèle DaQ'!AS42 -> 0 | DF25: ='GM-9Doc6-Annexe Q-4.2Modèle DaQ'!AT42 -> 0 | DG25: ='GM-9Doc6-Annexe Q-4.2Modèle DaQ'!AU42 -> 0
B26: Frais de branchements | E26: =SUM(H26:DG26)-V26-AJ26-AX26-BL26-BZ26-CN26-DB26 -> 562,881 | H26: ='GM-9Doc6-Annexe Q-4.2Modèle DaQ'!G43 -> 562,881 | I26: ='GM-9Doc6-Annexe Q-4.2Modèle DaQ'!H43 -> 0 | J26: ='GM-9Doc6-Annexe Q-4.2Modèle DaQ'!I43 -> 0 | K26: ='GM-9Doc6-Annexe Q-4.2Modèle DaQ'!J43 -> 0 | L26: ='GM-9Doc6-Annexe Q-4.2Modèle DaQ'!K43 -> 0 | M26: ='GM-9Doc6-Annexe Q-4.2Modèle DaQ'!L43 -> 0 | P26: =B26 -> Frais de branchements | V26: =M26 -> 0 | W26: ='GM-9Doc6-Annexe Q-4.2Modèle DaQ'!M43 -> 0 | X26: ='GM-9Doc6-Annexe Q-4.2Modèle DaQ'!N43 -> 0 | Y26: ='GM-9Doc6-Annexe Q-4.2Modèle DaQ'!O43 -> 0 | Z26: ='GM-9Doc6-Annexe Q-4.2Modèle DaQ'!P43 -> 0 | AA26: ='GM-9Doc6-Annexe Q-4.2Modèle DaQ'!Q43 -> 0 | AD26: =P26 -> Frais de branchements | AJ26: =AA26 -> 0 | AK26: ='GM-9Doc6-Annexe Q-4.2Modèle DaQ'!R43 -> 0 | AL26: ='GM-9Doc6-Annexe Q-4.2Modèle DaQ'!S43 -> 0 | AM26: ='GM-9Doc6-Annexe Q-4.2Modèle DaQ'!T43 -> 0 | AN26: ='GM-9Doc6-Annexe Q-4.2Modèle DaQ'!U43 -> 0 | AO26: ='GM-9Doc6-Annexe Q-4.2Modèle DaQ'!V43 -> 0 | AR26: =AD26 -> Frais de branchements | AX26: =AO26 -> 0 | AY26: ='GM-9Doc6-Annexe Q-4.2Modèle DaQ'!W43 -> 0 | AZ26: ='GM-9Doc6-Annexe Q-4.2Modèle DaQ'!X43 -> 0 | BA26: ='GM-9Doc6-Annexe Q-4.2Modèle DaQ'!Y43 -> 0 | BB26: ='GM-9Doc6-Annexe Q-4.2Modèle DaQ'!Z43 -> 0 | BC26: ='GM-9Doc6-Annexe Q-4.2Modèle DaQ'!AA43 -> 0 | BF26: =AR26 -> Frais de branchements | BL26: =BC26 -> 0 | BM26: ='GM-9Doc6-Annexe Q-4.2Modèle DaQ'!AB43 -> 0 | BN26: ='GM-9Doc6-Annexe Q-4.2Modèle DaQ'!AC43 -> 0 | BO26: ='GM-9Doc6-Annexe Q-4.2Modèle DaQ'!AD43 -> 0 | BP26: ='GM-9Doc6-Annexe Q-4.2Modèle DaQ'!AE43 -> 0 | BQ26: ='GM-9Doc6-Annexe Q-4.2Modèle DaQ'!AF43 -> 0 | BT26: =BF26 -> Frais de branchements | BZ26: =BQ26 -> 0 | CA26: ='GM-9Doc6-Annexe Q-4.2Modèle DaQ'!AG43 -> 0 | CB26: ='GM-9Doc6-Annexe Q-4.2Modèle DaQ'!AH43 -> 0 | CC26: ='GM-9Doc6-Annexe Q-4.2Modèle DaQ'!AI43 -> 0 | CD26: ='GM-9Doc6-Annexe Q-4.2Modèle DaQ'!AJ43 -> 0 | CE26: ='GM-9Doc6-Annexe Q-4.2Modèle DaQ'!AK43 -> 0 | CH26: =BT26 -> Frais de branchements | CN26: =CE26 -> 0 | CO26: ='GM-9Doc6-Annexe Q-4.2Modèle DaQ'!AL43 -> 0 | CP26: ='GM-9Doc6-Annexe Q-4.2Modèle DaQ'!AM43 -> 0 | CQ26: ='GM-9Doc6-Annexe Q-4.2Modèle DaQ'!AN43 -> 0 | CR26: ='GM-9Doc6-Annexe Q-4.2Modèle DaQ'!AO43 -> 0 | CS26: ='GM-9Doc6-Annexe Q-4.2Modèle DaQ'!AP43 -> 0 | CV26: =CH26 -> Frais de branchements | DB26: =CS26 -> 0 | DC26: ='GM-9Doc6-Annexe Q-4.2Modèle DaQ'!AQ43 -> 0 | DD26: ='GM-9Doc6-Annexe Q-4.2Modèle DaQ'!AR43 -> 0 | DE26: ='GM-9Doc6-Annexe Q-4.2Modèle DaQ'!AS43 -> 0 | DF26: ='GM-9Doc6-Annexe Q-4.2Modèle DaQ'!AT43 -> 0 | DG26: ='GM-9Doc6-Annexe Q-4.2Modèle DaQ'!AU43 -> 0
B27: Frais UMQ | E27: 0 | H27: ='GM-9Doc6-Annexe Q-4.2Modèle DaQ'!G45 -> 0 | I27: ='GM-9Doc6-Annexe Q-4.2Modèle DaQ'!H45 -> 0 | J27: ='GM-9Doc6-Annexe Q-4.2Modèle DaQ'!I45 -> 0 | K27: ='GM-9Doc6-Annexe Q-4.2Modèle DaQ'!J45 -> 0 | L27: ='GM-9Doc6-Annexe Q-4.2Modèle DaQ'!K45 -> 0 | M27: ='GM-9Doc6-Annexe Q-4.2Modèle DaQ'!L45 -> 0 | P27: Frais UMQ | V27: =M27 -> 0 | W27: ='GM-9Doc6-Annexe Q-4.2Modèle DaQ'!M45 -> 0 | X27: ='GM-9Doc6-Annexe Q-4.2Modèle DaQ'!N45 -> 0 | Y27: ='GM-9Doc6-Annexe Q-4.2Modèle DaQ'!O45 -> 0 | Z27: ='GM-9Doc6-Annexe Q-4.2Modèle DaQ'!P45 -> 0 | AA27: ='GM-9Doc6-Annexe Q-4.2Modèle DaQ'!Q45 -> 0 | AD27: Frais UMQ | AJ27: =AA27 -> 0 | AK27: ='GM-9Doc6-Annexe Q-4.2Modèle DaQ'!R45 -> 0 | AL27: ='GM-9Doc6-Annexe Q-4.2Modèle DaQ'!S45 -> 0 | AM27: ='GM-9Doc6-Annexe Q-4.2Modèle DaQ'!T45 -> 0 | AN27: ='GM-9Doc6-Annexe Q-4.2Modèle DaQ'!U45 -> 0 | AO27: ='GM-9Doc6-Annexe Q-4.2Modèle DaQ'!V45 -> 0 | AR27: Frais UMQ | AX27: 0 | AY27: ='GM-9Doc6-Annexe Q-4.2Modèle DaQ'!W45 -> 0 | AZ27: ='GM-9Doc6-Annexe Q-4.2Modèle DaQ'!X45 -> 0 | BA27: ='GM-9Doc6-Annexe Q-4.2Modèle DaQ'!Y45 -> 0 | BB27: ='GM-9Doc6-Annexe Q-4.2Modèle DaQ'!Z45 -> 0 | BC27: ='GM-9Doc6-Annexe Q-4.2Modèle DaQ'!AA45 -> 0 | BF27: Frais UMQ | BL27: 0 | BM27: ='GM-9Doc6-Annexe Q-4.2Modèle DaQ'!AB45 -> 0 | BN27: ='GM-9Doc6-Annexe Q-4.2Modèle DaQ'!AC45 -> 0 | BO27: ='GM-9Doc6-Annexe Q-4.2Modèle DaQ'!AD45 -> 0 | BP27: ='GM-9Doc6-Annexe Q-4.2Modèle DaQ'!AE45 -> 0 | BQ27: ='GM-9Doc6-Annexe Q-4.2Modèle DaQ'!AF45 -> 0 | BT27: Frais UMQ | BZ27: 0 | CA27: ='GM-9Doc6-Annexe Q-4.2Modèle DaQ'!AG45 -> 0 | CB27: ='GM-9Doc6-Annexe Q-4.2Modèle DaQ'!AH45 -> 0 | CC27: ='GM-9Doc6-Annexe Q-4.2Modèle DaQ'!AI45 -> 0 | CD27: ='GM-9Doc6-Annexe Q-4.2Modèle DaQ'!AJ45 -> 0 | CE27: ='GM-9Doc6-Annexe Q-4.2Modèle DaQ'!AK45 -> 0 | CH27: Frais UMQ | CN27: =CE27 -> 0 | CO27: ='GM-9Doc6-Annexe Q-4.2Modèle DaQ'!AL45 -> 0 | CP27: ='GM-9Doc6-Annexe Q-4.2Modèle DaQ'!AM45 -> 0 | CQ27: ='GM-9Doc6-Annexe Q-4.2Modèle DaQ'!AN45 -> 0 | CR27: ='GM-9Doc6-Annexe Q-4.2Modèle DaQ'!AO45 -> 0 | CS27: ='GM-9Doc6-Annexe Q-4.2Modèle DaQ'!AP45 -> 0 | CV27: Frais UMQ | DB27: 0 | DC27: ='GM-9Doc6-Annexe Q-4.2Modèle DaQ'!AQ45 -> 0 | DD27: ='GM-9Doc6-Annexe Q-4.2Modèle DaQ'!AR45 -> 0 | DE27: ='GM-9Doc6-Annexe Q-4.2Modèle DaQ'!AS45 -> 0 | DF27: ='GM-9Doc6-Annexe Q-4.2Modèle DaQ'!AT45 -> 0 | DG27: ='GM-9Doc6-Annexe Q-4.2Modèle DaQ'!AU45 -> 0
B28: Autres coûts de projet | E28: 0 | H28: 0 | I28: 0 | J28: 0 | K28: 0 | L28: 0 | M28: 0 | P28: Autres coûts de projet | V28: 0 | W28: 0 | X28: 0 | Y28: 0 | Z28: 0 | AA28: 0 | AD28: Autres coûts de projet | AJ28: 0 | AK28: 0 | AL28: 0 | AM28: 0 | AN28: 0 | AO28: 0 | AR28: Autres coûts de projet | AX28: 0 | AY28: 0 | AZ28: 0 | BA28: 0 | BB28: 0 | BC28: 0 | BF28: Autres coûts de projet | BL28: 0 | BM28: 0 | BN28: 0 | BO28: 0 | BP28: 0 | BQ28: 0 | BT28: Autres coûts de projet | BZ28: 0 | CA28: 0 | CB28: 0 | CC28: 0 | CD28: 0 | CE28: 0 | CH28: Autres coûts de projet | CN28: =CE28 -> 0 | CO28: 0 | CP28: 0 | CQ28: 0 | CR28: 0 | CS28: 0 | CV28: Autres coûts de projet | DB28: 0 | DC28: 0 | DD28: 0 | DE28: 0 | DF28: 0 | DG28: 0
B29: ="Actif non amortissable (terrain)" -> Actif non amortissable (terrain) | E29: =SUM(H29:DG29)-V29-AJ29-AX29-BL29-BZ29-CN29-DB29 -> 0 | H29: ='GM-9Doc6-Annexe Q-4.2Modèle DaQ'!G44 -> 0 | I29: ='GM-9Doc6-Annexe Q-4.2Modèle DaQ'!H44 -> 0 | J29: ='GM-9Doc6-Annexe Q-4.2Modèle DaQ'!I44 -> 0 | K29: ='GM-9Doc6-Annexe Q-4.2Modèle DaQ'!J44 -> 0 | L29: ='GM-9Doc6-Annexe Q-4.2Modèle DaQ'!K44 -> 0 | M29: ='GM-9Doc6-Annexe Q-4.2Modèle DaQ'!L44 -> 0 | P29: =B29 -> Actif non amortissable (terrain) | V29: =M29 -> 0 | W29: ='GM-9Doc6-Annexe Q-4.2Modèle DaQ'!M44 -> 0 | X29: ='GM-9Doc6-Annexe Q-4.2Modèle DaQ'!N44 -> 0 | Y29: ='GM-9Doc6-Annexe Q-4.2Modèle DaQ'!O44 -> 0 | Z29: ='GM-9Doc6-Annexe Q-4.2Modèle DaQ'!P44 -> 0 | AA29: ='GM-9Doc6-Annexe Q-4.2Modèle DaQ'!Q44 -> 0 | AD29: =P29 -> Actif non amortissable (terrain) | AJ29: =AA29 -> 0 | AK29: ='GM-9Doc6-Annexe Q-4.2Modèle DaQ'!R44 -> 0 | AL29: ='GM-9Doc6-Annexe Q-4.2Modèle DaQ'!S44 -> 0 | AM29: ='GM-9Doc6-Annexe Q-4.2Modèle DaQ'!T44 -> 0 | AN29: ='GM-9Doc6-Annexe Q-4.2Modèle DaQ'!U44 -> 0 | AO29: ='GM-9Doc6-Annexe Q-4.2Modèle DaQ'!V44 -> 0 | AR29: =AD29 -> Actif non amortissable (terrain) | AX29: =AO29 -> 0 | AY29: ='GM-9Doc6-Annexe Q-4.2Modèle DaQ'!W44 -> 0 | AZ29: ='GM-9Doc6-Annexe Q-4.2Modèle DaQ'!X44 -> 0 | BA29: ='GM-9Doc6-Annexe Q-4.2Modèle DaQ'!Y44 -> 0 | BB29: ='GM-9Doc6-Annexe Q-4.2Modèle DaQ'!Z44 -> 0 | BC29: ='GM-9Doc6-Annexe Q-4.2Modèle DaQ'!AA44 -> 0 | BF29: =AR29 -> Actif non amortissable (terrain) | BL29: =BC29 -> 0 | BM29: ='GM-9Doc6-Annexe Q-4.2Modèle DaQ'!AB44 -> 0 | BN29: ='GM-9Doc6-Annexe Q-4.2Modèle DaQ'!AC44 -> 0 | BO29: ='GM-9Doc6-Annexe Q-4.2Modèle DaQ'!AD44 -> 0 | BP29: ='GM-9Doc6-Annexe Q-4.2Modèle DaQ'!AE44 -> 0 | BQ29: ='GM-9Doc6-Annexe Q-4.2Modèle DaQ'!AF44 -> 0 | BT29: =BF29 -> Actif non amortissable (terrain) | BZ29: =BQ29 -> 0 | CA29: ='GM-9Doc6-Annexe Q-4.2Modèle DaQ'!AG44 -> 0 | CB29: ='GM-9Doc6-Annexe Q-4.2Modèle DaQ'!AH44 -> 0 | CC29: ='GM-9Doc6-Annexe Q-4.2Modèle DaQ'!AI44 -> 0 | CD29: ='GM-9Doc6-Annexe Q-4.2Modèle DaQ'!AJ44 -> 0 | CE29: ='GM-9Doc6-Annexe Q-4.2Modèle DaQ'!AK44 -> 0 | CH29: =BT29 -> Actif non amortissable (terrain) | CN29: =CE29 -> 0 | CO29: ='GM-9Doc6-Annexe Q-4.2Modèle DaQ'!AL44 -> 0 | CP29: ='GM-9Doc6-Annexe Q-4.2Modèle DaQ'!AM44 -> 0 | CQ29: ='GM-9Doc6-Annexe Q-4.2Modèle DaQ'!AN44 -> 0 | CR29: ='GM-9Doc6-Annexe Q-4.2Modèle DaQ'!AO44 -> 0 | CS29: ='GM-9Doc6-Annexe Q-4.2Modèle DaQ'!AP44 -> 0 | CV29: =CH29 -> Actif non amortissable (terrain) | DB29: =CS29 -> 0 | DC29: ='GM-9Doc6-Annexe Q-4.2Modèle DaQ'!AQ44 -> 0 | DD29: ='GM-9Doc6-Annexe Q-4.2Modèle DaQ'!AR44 -> 0 | DE29: ='GM-9Doc6-Annexe Q-4.2Modèle DaQ'!AS44 -> 0 | DF29: ='GM-9Doc6-Annexe Q-4.2Modèle DaQ'!AT44 -> 0 | DG29: ='GM-9Doc6-Annexe Q-4.2Modèle DaQ'!AU44 -> 0
B30: ="Frais généraux "&"("&FIXED(('GM-9Doc6-Annexe Q-4.2Modèle DaQ'!$E$11)*100,2,TRUE)&"% )" -> Frais généraux (14,53% ) | E30: 235,445 | H30: ='GM-9Doc6-Annexe Q-4.2Modèle DaQ'!G46 -> 235,445 | I30: ='GM-9Doc6-Annexe Q-4.2Modèle DaQ'!H46 -> 0 | J30: ='GM-9Doc6-Annexe Q-4.2Modèle DaQ'!I46 -> 0 | K30: ='GM-9Doc6-Annexe Q-4.2Modèle DaQ'!J46 -> 0 | L30: ='GM-9Doc6-Annexe Q-4.2Modèle DaQ'!K46 -> 0 | M30: ='GM-9Doc6-Annexe Q-4.2Modèle DaQ'!L46 -> 0 | P30: =$B$30 -> Frais généraux (14,53% ) | V30: 0 | W30: ='GM-9Doc6-Annexe Q-4.2Modèle DaQ'!M46 -> 0 | X30: ='GM-9Doc6-Annexe Q-4.2Modèle DaQ'!N46 -> 0 | Y30: ='GM-9Doc6-Annexe Q-4.2Modèle DaQ'!O46 -> 0 | Z30: ='GM-9Doc6-Annexe Q-4.2Modèle DaQ'!P46 -> 0 | AA30: ='GM-9Doc6-Annexe Q-4.2Modèle DaQ'!Q46 -> 0 | AD30: =$B$30 -> Frais généraux (14,53% ) | AJ30: 0 | AK30: ='GM-9Doc6-Annexe Q-4.2Modèle DaQ'!R46 -> 0 | AL30: ='GM-9Doc6-Annexe Q-4.2Modèle DaQ'!S46 -> 0 | AM30: ='GM-9Doc6-Annexe Q-4.2Modèle DaQ'!T46 -> 0 | AN30: ='GM-9Doc6-Annexe Q-4.2Modèle DaQ'!U46 -> 0 | AO30: ='GM-9Doc6-Annexe Q-4.2Modèle DaQ'!V46 -> 0 | AR30: =$B$30 -> Frais généraux (14,53% ) | AX30: 0 | AY30: ='GM-9Doc6-Annexe Q-4.2Modèle DaQ'!W46 -> 0 | AZ30: ='GM-9Doc6-Annexe Q-4.2Modèle DaQ'!X46 -> 0 | BA30: ='GM-9Doc6-Annexe Q-4.2Modèle DaQ'!Y46 -> 0 | BB30: ='GM-9Doc6-Annexe Q-4.2Modèle DaQ'!Z46 -> 0 | BC30: ='GM-9Doc6-Annexe Q-4.2Modèle DaQ'!AA46 -> 0 | BF30: =$B$30 -> Frais généraux (14,53% ) | BL30: 0 | BM30: ='GM-9Doc6-Annexe Q-4.2Modèle DaQ'!AB46 -> 0 | BN30: ='GM-9Doc6-Annexe Q-4.2Modèle DaQ'!AC46 -> 0 | BO30: ='GM-9Doc6-Annexe Q-4.2Modèle DaQ'!AD46 -> 0 | BP30: ='GM-9Doc6-Annexe Q-4.2Modèle DaQ'!AE46 -> 0 | BQ30: ='GM-9Doc6-Annexe Q-4.2Modèle DaQ'!AF46 -> 0 | BT30: =$B$30 -> Frais généraux (14,53% ) | BZ30: 0 | CA30: ='GM-9Doc6-Annexe Q-4.2Modèle DaQ'!AG46 -> 0 | CB30: ='GM-9Doc6-Annexe Q-4.2Modèle DaQ'!AH46 -> 0 | CC30: ='GM-9Doc6-Annexe Q-4.2Modèle DaQ'!AI46 -> 0 | CD30: ='GM-9Doc6-Annexe Q-4.2Modèle DaQ'!AJ46 -> 0 | CE30: ='GM-9Doc6-Annexe Q-4.2Modèle DaQ'!AK46 -> 0 | CH30: =$B$30 -> Frais généraux (14,53% ) | CN30: 0 | CO30: ='GM-9Doc6-Annexe Q-4.2Modèle DaQ'!AL46 -> 0 | CP30: ='GM-9Doc6-Annexe Q-4.2Modèle DaQ'!AM46 -> 0 | CQ30: ='GM-9Doc6-Annexe Q-4.2Modèle DaQ'!AN46 -> 0 | CR30: ='GM-9Doc6-Annexe Q-4.2Modèle DaQ'!AO46 -> 0 | CS30: ='GM-9Doc6-Annexe Q-4.2Modèle DaQ'!AP46 -> 0 | CV30: =$B$30 -> Frais généraux (14,53% ) | DB30: 0 | DC30: ='GM-9Doc6-Annexe Q-4.2Modèle DaQ'!AQ46 -> 0 | DD30: ='GM-9Doc6-Annexe Q-4.2Modèle DaQ'!AR46 -> 0 | DE30: ='GM-9Doc6-Annexe Q-4.2Modèle DaQ'!AS46 -> 0 | DF30: ='GM-9Doc6-Annexe Q-4.2Modèle DaQ'!AT46 -> 0 | DG30: ='GM-9Doc6-Annexe Q-4.2Modèle DaQ'!AU46 -> 0
B31: PRC - 10 ans | E31: 0 | I31: ='GM-9Doc6-Annexe Q-4.2Modèle DaQ'!H49 -> 0 | J31: ='GM-9Doc6-Annexe Q-4.2Modèle DaQ'!I49 -> 0 | K31: ='GM-9Doc6-Annexe Q-4.2Modèle DaQ'!J49 -> 0 | L31: ='GM-9Doc6-Annexe Q-4.2Modèle DaQ'!K49 -> 0 | M31: ='GM-9Doc6-Annexe Q-4.2Modèle DaQ'!L49 -> 0 | P31: PRC - 10 ans | V31: 0 | W31: ='GM-9Doc6-Annexe Q-4.2Modèle DaQ'!M49 -> 0 | X31: ='GM-9Doc6-Annexe Q-4.2Modèle DaQ'!N49 -> 0 | Y31: ='GM-9Doc6-Annexe Q-4.2Modèle DaQ'!O49 -> 0 | Z31: ='GM-9Doc6-Annexe Q-4.2Modèle DaQ'!P49 -> 0 | AA31: ='GM-9Doc6-Annexe Q-4.2Modèle DaQ'!Q49 -> 0 | AD31: PRC - 10 ans | AJ31: 0 | AK31: ='GM-9Doc6-Annexe Q-4.2Modèle DaQ'!R49 -> 0 | AL31: ='GM-9Doc6-Annexe Q-4.2Modèle DaQ'!S49 -> 0 | AM31: ='GM-9Doc6-Annexe Q-4.2Modèle DaQ'!T49 -> 0 | AN31: ='GM-9Doc6-Annexe Q-4.2Modèle DaQ'!U49 -> 0 | AO31: ='GM-9Doc6-Annexe Q-4.2Modèle DaQ'!V49 -> 0 | AR31: PRC - 10 ans | AX31: 0 | AY31: ='GM-9Doc6-Annexe Q-4.2Modèle DaQ'!W49 -> 0 | AZ31: ='GM-9Doc6-Annexe Q-4.2Modèle DaQ'!X49 -> 0 | BA31: ='GM-9Doc6-Annexe Q-4.2Modèle DaQ'!Y49 -> 0 | BB31: ='GM-9Doc6-Annexe Q-4.2Modèle DaQ'!Z49 -> 0 | BC31: ='GM-9Doc6-Annexe Q-4.2Modèle DaQ'!AA49 -> 0 | BF31: PRC - 10 ans | BL31: 0 | BM31: ='GM-9Doc6-Annexe Q-4.2Modèle DaQ'!AB49 -> 0 | BN31: ='GM-9Doc6-Annexe Q-4.2Modèle DaQ'!AC49 -> 0 | BO31: ='GM-9Doc6-Annexe Q-4.2Modèle DaQ'!AD49 -> 0 | BP31: ='GM-9Doc6-Annexe Q-4.2Modèle DaQ'!AE49 -> 0 | BQ31: ='GM-9Doc6-Annexe Q-4.2Modèle DaQ'!AF49 -> 0 | BT31: PRC - 10 ans | BZ31: 0 | CA31: ='GM-9Doc6-Annexe Q-4.2Modèle DaQ'!AG49 -> 0 | CB31: ='GM-9Doc6-Annexe Q-4.2Modèle DaQ'!AH49 -> 0 | CC31: ='GM-9Doc6-Annexe Q-4.2Modèle DaQ'!AI49 -> 0 | CD31: ='GM-9Doc6-Annexe Q-4.2Modèle DaQ'!AJ49 -> 0 | CE31: ='GM-9Doc6-Annexe Q-4.2Modèle DaQ'!AK49 -> 0 | CH31: PRC - 10 ans | CN31: 0 | CO31: ='GM-9Doc6-Annexe Q-4.2Modèle DaQ'!AL49 -> 0 | CP31: ='GM-9Doc6-Annexe Q-4.2Modèle DaQ'!AM49 -> 0 | CQ31: ='GM-9Doc6-Annexe Q-4.2Modèle DaQ'!AN49 -> 0 | CR31: ='GM-9Doc6-Annexe Q-4.2Modèle DaQ'!AO49 -> 0 | CS31: ='GM-9Doc6-Annexe Q-4.2Modèle DaQ'!AP49 -> 0 | CV31: PRC - 10 ans | DB31: 0 | DC31: ='GM-9Doc6-Annexe Q-4.2Modèle DaQ'!AQ49 -> 0 | DD31: ='GM-9Doc6-Annexe Q-4.2Modèle DaQ'!AR49 -> 0 | DE31: ='GM-9Doc6-Annexe Q-4.2Modèle DaQ'!AS49 -> 0 | DF31: ='GM-9Doc6-Annexe Q-4.2Modèle DaQ'!AT49 -> 0 | DG31: ='GM-9Doc6-Annexe Q-4.2Modèle DaQ'!AU49 -> 0
B32: CASEP - PRC (10 ans) | E32: 0 | I32: 0 | J32: 0 | K32: 0 | L32: 0 | M32: 0 | P32: CASEP - PRC (10 ans) | V32: 0 | W32: 0 | X32: 0 | Y32: 0 | Z32: 0 | AA32: 0 | AD32: CASEP - PRC (10 ans) | AJ32: 0 | AK32: 0 | AL32: 0 | AM32: 0 | AN32: 0 | AO32: 0 | AR32: CASEP - PRC (10 ans) | AX32: 0 | AY32: 0 | AZ32: 0 | BA32: 0 | BB32: 0 | BC32: 0 | BF32: CASEP - PRC (10 ans) | BL32: 0 | BM32: 0 | BN32: 0 | BO32: 0 | BP32: 0 | BQ32: 0 | BT32: CASEP - PRC (10 ans) | BZ32: 0 | CA32: 0 | CB32: 0 | CC32: 0 | CD32: 0 | CE32: 0 | CH32: CASEP - PRC (10 ans) | CN32: 0 | CO32: 0 | CP32: 0 | CQ32: 0 | CR32: 0 | CS32: 0 | CV32: CASEP - PRC (10 ans) | DB32: 0 | DC32: 0 | DD32: 0 | DE32: 0 | DF32: 0 | DG32: 0
B33: Contrib. Raccord. réseau/ Délai/ Emplacement | E33: 0 | H33: ='GM-9Doc6-Annexe Q-4.2Modèle DaQ'!G50 -> 0 | I33: ='GM-9Doc6-Annexe Q-4.2Modèle DaQ'!H50 -> 0 | J33: ='GM-9Doc6-Annexe Q-4.2Modèle DaQ'!I50 -> 0 | K33: ='GM-9Doc6-Annexe Q-4.2Modèle DaQ'!J50 -> 0 | L33: ='GM-9Doc6-Annexe Q-4.2Modèle DaQ'!K50 -> 0 | M33: ='GM-9Doc6-Annexe Q-4.2Modèle DaQ'!L50 -> 0 | P33: Contrib. Raccord. réseau/ Délai/ Emplacement | V33: 0 | W33: ='GM-9Doc6-Annexe Q-4.2Modèle DaQ'!M50 -> 0 | X33: ='GM-9Doc6-Annexe Q-4.2Modèle DaQ'!N50 -> 0 | Y33: ='GM-9Doc6-Annexe Q-4.2Modèle DaQ'!O50 -> 0 | Z33: ='GM-9Doc6-Annexe Q-4.2Modèle DaQ'!P50 -> 0 | AA33: ='GM-9Doc6-Annexe Q-4.2Modèle DaQ'!Q50 -> 0 | AD33: Contrib. Raccord. réseau/ Délai/ Emplacement | AJ33: 0 | AK33: ='GM-9Doc6-Annexe Q-4.2Modèle DaQ'!R50 -> 0 | AL33: ='GM-9Doc6-Annexe Q-4.2Modèle DaQ'!S50 -> 0 | AM33: ='GM-9Doc6-Annexe Q-4.2Modèle DaQ'!T50 -> 0 | AN33: ='GM-9Doc6-Annexe Q-4.2Modèle DaQ'!U50 -> 0 | AO33: ='GM-9Doc6-Annexe Q-4.2Modèle DaQ'!V50 -> 0 | AR33: Contrib. Raccord. réseau/ Délai/ Emplacement | AX33: 0 | AY33: ='GM-9Doc6-Annexe Q-4.2Modèle DaQ'!W50 -> 0 | AZ33: ='GM-9Doc6-Annexe Q-4.2Modèle DaQ'!X50 -> 0 | BA33: ='GM-9Doc6-Annexe Q-4.2Modèle DaQ'!Y50 -> 0 | BB33: ='GM-9Doc6-Annexe Q-4.2Modèle DaQ'!Z50 -> 0 | BC33: ='GM-9Doc6-Annexe Q-4.2Modèle DaQ'!AA50 -> 0 | BF33: Contrib. Raccord. réseau/ Délai/ Emplacement | BL33: 0 | BM33: ='GM-9Doc6-Annexe Q-4.2Modèle DaQ'!AB50 -> 0 | BN33: ='GM-9Doc6-Annexe Q-4.2Modèle DaQ'!AC50 -> 0 | BO33: ='GM-9Doc6-Annexe Q-4.2Modèle DaQ'!AD50 -> 0 | BP33: ='GM-9Doc6-Annexe Q-4.2Modèle DaQ'!AE50 -> 0 | BQ33: ='GM-9Doc6-Annexe Q-4.2Modèle DaQ'!AF50 -> 0 | BT33: Contrib. Raccord. réseau/ Délai/ Emplacement | BZ33: 0 | CA33: ='GM-9Doc6-Annexe Q-4.2Modèle DaQ'!AG50 -> 0 | CB33: ='GM-9Doc6-Annexe Q-4.2Modèle DaQ'!AH50 -> 0 | CC33: ='GM-9Doc6-Annexe Q-4.2Modèle DaQ'!AI50 -> 0 | CD33: ='GM-9Doc6-Annexe Q-4.2Modèle DaQ'!AJ50 -> 0 | CE33: ='GM-9Doc6-Annexe Q-4.2Modèle DaQ'!AK50 -> 0 | CH33: Contrib. Raccord. réseau/ Délai/ Emplacement | CN33: 0 | CO33: ='GM-9Doc6-Annexe Q-4.2Modèle DaQ'!AL50 -> 0 | CP33: ='GM-9Doc6-Annexe Q-4.2Modèle DaQ'!AM50 -> 0 | CQ33: ='GM-9Doc6-Annexe Q-4.2Modèle DaQ'!AN50 -> 0 | CR33: ='GM-9Doc6-Annexe Q-4.2Modèle DaQ'!AO50 -> 0 | CS33: ='GM-9Doc6-Annexe Q-4.2Modèle DaQ'!AP50 -> 0 | CV33: Contrib. Raccord. réseau/ Délai/ Emplacement | DB33: 0 | DC33: ='GM-9Doc6-Annexe Q-4.2Modèle DaQ'!AQ50 -> 0 | DD33: ='GM-9Doc6-Annexe Q-4.2Modèle DaQ'!AR50 -> 0 | DE33: ='GM-9Doc6-Annexe Q-4.2Modèle DaQ'!AS50 -> 0 | DF33: ='GM-9Doc6-Annexe Q-4.2Modèle DaQ'!AT50 -> 0 | DG33: ='GM-9Doc6-Annexe Q-4.2Modèle DaQ'!AU50 -> 0
B34: CASEP - Immobilisations | E34: =SUM(H34:DG34)-V34-AJ34-AX34-BL34-BZ34-CN34-DB34 -> 0 | H34: 0 | I34: 0 | J34: 0 | K34: 0 | L34: 0 | M34: 0 | P34: CASEP - Immobilisations | V34: 0 | W34: 0 | X34: 0 | Y34: 0 | Z34: 0 | AA34: 0 | AD34: CASEP - Immobilisations | AJ34: 0 | AK34: 0 | AL34: 0 | AM34: 0 | AN34: 0 | AO34: 0 | AR34: CASEP - Immobilisations | AX34: 0 | AY34: 0 | AZ34: 0 | BA34: 0 | BB34: 0 | BC34: 0 | BF34: CASEP - Immobilisations | BL34: 0 | BM34: 0 | BN34: 0 | BO34: 0 | BP34: 0 | BQ34: 0 | BT34: CASEP - Immobilisations | BZ34: 0 | CA34: 0 | CB34: 0 | CC34: 0 | CD34: 0 | CE34: 0 | CH34: CASEP - Immobilisations | CN34: 0 | CO34: 0 | CP34: 0 | CQ34: 0 | CR34: 0 | CS34: 0 | CV34: CASEP - Immobilisations | DB34: 0 | DC34: 0 | DD34: 0 | DE34: 0 | DF34: 0 | DG34: 0
B35: Subventions extérieures | E35: =SUM(H35:DG35)-V35-AJ35-AX35-BL35-BZ35-CN35-DB35 -> 0 | H35: ='GM-9Doc6-Annexe Q-4.2Modèle DaQ'!G51 -> 0 | I35: ='GM-9Doc6-Annexe Q-4.2Modèle DaQ'!H51 -> 0 | J35: ='GM-9Doc6-Annexe Q-4.2Modèle DaQ'!I51 -> 0 | K35: ='GM-9Doc6-Annexe Q-4.2Modèle DaQ'!J51 -> 0 | L35: ='GM-9Doc6-Annexe Q-4.2Modèle DaQ'!K51 -> 0 | M35: ='GM-9Doc6-Annexe Q-4.2Modèle DaQ'!L51 -> 0 | P35: Subventions extérieures | V35: 0 | W35: ='GM-9Doc6-Annexe Q-4.2Modèle DaQ'!M51 -> 0 | X35: ='GM-9Doc6-Annexe Q-4.2Modèle DaQ'!N51 -> 0 | Y35: ='GM-9Doc6-Annexe Q-4.2Modèle DaQ'!O51 -> 0 | Z35: ='GM-9Doc6-Annexe Q-4.2Modèle DaQ'!P51 -> 0 | AA35: ='GM-9Doc6-Annexe Q-4.2Modèle DaQ'!Q51 -> 0 | AD35: Subventions extérieures | AJ35: 0 | AK35: ='GM-9Doc6-Annexe Q-4.2Modèle DaQ'!R51 -> 0 | AL35: ='GM-9Doc6-Annexe Q-4.2Modèle DaQ'!S51 -> 0 | AM35: ='GM-9Doc6-Annexe Q-4.2Modèle DaQ'!T51 -> 0 | AN35: ='GM-9Doc6-Annexe Q-4.2Modèle DaQ'!U51 -> 0 | AO35: ='GM-9Doc6-Annexe Q-4.2Modèle DaQ'!V51 -> 0 | AR35: Subventions extérieures | AX35: 0 | AY35: ='GM-9Doc6-Annexe Q-4.2Modèle DaQ'!W51 -> 0 | AZ35: ='GM-9Doc6-Annexe Q-4.2Modèle DaQ'!X51 -> 0 | BA35: ='GM-9Doc6-Annexe Q-4.2Modèle DaQ'!Y51 -> 0 | BB35: ='GM-9Doc6-Annexe Q-4.2Modèle DaQ'!Z51 -> 0 | BC35: ='GM-9Doc6-Annexe Q-4.2Modèle DaQ'!AA51 -> 0 | BF35: Subventions extérieures | BL35: 0 | BM35: ='GM-9Doc6-Annexe Q-4.2Modèle DaQ'!AB51 -> 0 | BN35: ='GM-9Doc6-Annexe Q-4.2Modèle DaQ'!AC51 -> 0 | BO35: ='GM-9Doc6-Annexe Q-4.2Modèle DaQ'!AD51 -> 0 | BP35: ='GM-9Doc6-Annexe Q-4.2Modèle DaQ'!AE51 -> 0 | BQ35: ='GM-9Doc6-Annexe Q-4.2Modèle DaQ'!AF51 -> 0 | BT35: Subventions extérieures | BZ35: 0 | CA35: ='GM-9Doc6-Annexe Q-4.2Modèle DaQ'!AG51 -> 0 | CB35: ='GM-9Doc6-Annexe Q-4.2Modèle DaQ'!AH51 -> 0 | CC35: ='GM-9Doc6-Annexe Q-4.2Modèle DaQ'!AI51 -> 0 | CD35: ='GM-9Doc6-Annexe Q-4.2Modèle DaQ'!AJ51 -> 0 | CE35: ='GM-9Doc6-Annexe Q-4.2Modèle DaQ'!AK51 -> 0 | CH35: Subventions extérieures | CN35: 0 | CO35: ='GM-9Doc6-Annexe Q-4.2Modèle DaQ'!AL51 -> 0 | CP35: ='GM-9Doc6-Annexe Q-4.2Modèle DaQ'!AM51 -> 0 | CQ35: ='GM-9Doc6-Annexe Q-4.2Modèle DaQ'!AN51 -> 0 | CR35: ='GM-9Doc6-Annexe Q-4.2Modèle DaQ'!AO51 -> 0 | CS35: ='GM-9Doc6-Annexe Q-4.2Modèle DaQ'!AP51 -> 0 | CV35: Subventions extérieures | DB35: 0 | DC35: ='GM-9Doc6-Annexe Q-4.2Modèle DaQ'!AQ51 -> 0 | DD35: ='GM-9Doc6-Annexe Q-4.2Modèle DaQ'!AR51 -> 0 | DE35: ='GM-9Doc6-Annexe Q-4.2Modèle DaQ'!AS51 -> 0 | DF35: ='GM-9Doc6-Annexe Q-4.2Modèle DaQ'!AT51 -> 0 | DG35: ='GM-9Doc6-Annexe Q-4.2Modèle DaQ'!AU51 -> 0
B36: Contributions clients | E36: =SUM(H36:DG36)-V36-AJ36-AX36-BL36-BZ36-CN36-DB36 -> 0 | H36: ='GM-9Doc6-Annexe Q-4.2Modèle DaQ'!G52 -> 0 | I36: ='GM-9Doc6-Annexe Q-4.2Modèle DaQ'!H52 -> 0 | J36: ='GM-9Doc6-Annexe Q-4.2Modèle DaQ'!I52 -> 0 | K36: ='GM-9Doc6-Annexe Q-4.2Modèle DaQ'!J52 -> 0 | L36: ='GM-9Doc6-Annexe Q-4.2Modèle DaQ'!K52 -> 0 | M36: ='GM-9Doc6-Annexe Q-4.2Modèle DaQ'!L52 -> 0 | P36: Contributions clients | V36: 0 | W36: ='GM-9Doc6-Annexe Q-4.2Modèle DaQ'!M52 -> 0 | X36: ='GM-9Doc6-Annexe Q-4.2Modèle DaQ'!N52 -> 0 | Y36: ='GM-9Doc6-Annexe Q-4.2Modèle DaQ'!O52 -> 0 | Z36: ='GM-9Doc6-Annexe Q-4.2Modèle DaQ'!P52 -> 0 | AA36: ='GM-9Doc6-Annexe Q-4.2Modèle DaQ'!Q52 -> 0 | AD36: Contributions clients | AJ36: 0 | AK36: ='GM-9Doc6-Annexe Q-4.2Modèle DaQ'!R52 -> 0 | AL36: ='GM-9Doc6-Annexe Q-4.2Modèle DaQ'!S52 -> 0 | AM36: ='GM-9Doc6-Annexe Q-4.2Modèle DaQ'!T52 -> 0 | AN36: ='GM-9Doc6-Annexe Q-4.2Modèle DaQ'!U52 -> 0 | AO36: ='GM-9Doc6-Annexe Q-4.2Modèle DaQ'!V52 -> 0 | AR36: Contributions clients | AX36: 0 | AY36: ='GM-9Doc6-Annexe Q-4.2Modèle DaQ'!W52 -> 0 | AZ36: ='GM-9Doc6-Annexe Q-4.2Modèle DaQ'!X52 -> 0 | BA36: ='GM-9Doc6-Annexe Q-4.2Modèle DaQ'!Y52 -> 0 | BB36: ='GM-9Doc6-Annexe Q-4.2Modèle DaQ'!Z52 -> 0 | BC36: ='GM-9Doc6-Annexe Q-4.2Modèle DaQ'!AA52 -> 0 | BF36: Contributions clients | BL36: 0 | BM36: ='GM-9Doc6-Annexe Q-4.2Modèle DaQ'!AB52 -> 0 | BN36: ='GM-9Doc6-Annexe Q-4.2Modèle DaQ'!AC52 -> 0 | BO36: ='GM-9Doc6-Annexe Q-4.2Modèle DaQ'!AD52 -> 0 | BP36: ='GM-9Doc6-Annexe Q-4.2Modèle DaQ'!AE52 -> 0 | BQ36: ='GM-9Doc6-Annexe Q-4.2Modèle DaQ'!AF52 -> 0 | BT36: Contributions clients | BZ36: 0 | CA36: ='GM-9Doc6-Annexe Q-4.2Modèle DaQ'!AG52 -> 0 | CB36: ='GM-9Doc6-Annexe Q-4.2Modèle DaQ'!AH52 -> 0 | CC36: ='GM-9Doc6-Annexe Q-4.2Modèle DaQ'!AI52 -> 0 | CD36: ='GM-9Doc6-Annexe Q-4.2Modèle DaQ'!AJ52 -> 0 | CE36: ='GM-9Doc6-Annexe Q-4.2Modèle DaQ'!AK52 -> 0 | CH36: Contributions clients | CN36: 0 | CO36: ='GM-9Doc6-Annexe Q-4.2Modèle DaQ'!AL52 -> 0 | CP36: ='GM-9Doc6-Annexe Q-4.2Modèle DaQ'!AM52 -> 0 | CQ36: ='GM-9Doc6-Annexe Q-4.2Modèle DaQ'!AN52 -> 0 | CR36: ='GM-9Doc6-Annexe Q-4.2Modèle DaQ'!AO52 -> 0 | CS36: ='GM-9Doc6-Annexe Q-4.2Modèle DaQ'!AP52 -> 0 | CV36: Contributions clients | DB36: 0 | DC36: ='GM-9Doc6-Annexe Q-4.2Modèle DaQ'!AQ52 -> 0 | DD36: ='GM-9Doc6-Annexe Q-4.2Modèle DaQ'!AR52 -> 0 | DE36: ='GM-9Doc6-Annexe Q-4.2Modèle DaQ'!AS52 -> 0 | DF36: ='GM-9Doc6-Annexe Q-4.2Modèle DaQ'!AT52 -> 0 | DG36: ='GM-9Doc6-Annexe Q-4.2Modèle DaQ'!AU52 -> 0
B37: Investissement total | E37: =SUM(H37:DG37)-V37-AJ37-AX37-BL37-BZ37-CN37-DB37 -> 1,855,848 | H37: =H22+SUM(H26:H36) -> 1,855,848 | I37: 0 | J37: 0 | K37: 0 | L37: 0 | M37: 0 | P37: Investissement total | V37: =V22+SUM(V26:V36) -> 0 | W37: 0 | X37: 0 | Y37: 0 | Z37: 0 | AA37: 0 | AD37: Investissement total | AJ37: =AJ22+SUM(AJ26:AJ36) -> 0 | AK37: 0 | AL37: 0 | AM37: 0 | AN37: 0 | AO37: 0 | AR37: Investissement total | AX37: =AX22+SUM(AX26:AX36) -> 0 | AY37: 0 | AZ37: 0 | BA37: 0 | BB37: 0 | BC37: 0 | BF37: Investissement total | BL37: =BL22+SUM(BL26:BL36) -> 0 | BM37: 0 | BN37: 0 | BO37: 0 | BP37: 0 | BQ37: 0 | BT37: Investissement total | BZ37: =BZ22+SUM(BZ26:BZ36) -> 0 | CA37: 0 | CB37: 0 | CC37: 0 | CD37: 0 | CE37: 0 | CH37: Investissement total | CN37: =CN22+SUM(CN26:CN36) -> 0 | CO37: 0 | CP37: 0 | CQ37: 0 | CR37: 0 | CS37: 0 | CV37: Investissement total | DB37: =DB22+SUM(DB26:DB36) -> 0 | DC37: 0 | DD37: 0 | DE37: 0 | DF37: 0 | DG37: 0
B39: Coût d'opération | I39: ='GM-9Doc6-Annexe Q-4.2Modèle DaQ'!H59 -> 157 | J39: ='GM-9Doc6-Annexe Q-4.2Modèle DaQ'!I59 -> 157 | K39: ='GM-9Doc6-Annexe Q-4.2Modèle DaQ'!J59 -> 157 | L39: ='GM-9Doc6-Annexe Q-4.2Modèle DaQ'!K59 -> 157 | M39: ='GM-9Doc6-Annexe Q-4.2Modèle DaQ'!L59 -> 157 | P39: Coût d'opération | V39: =M39 -> 157 | W39: ='GM-9Doc6-Annexe Q-4.2Modèle DaQ'!M59 -> 157 | X39: ='GM-9Doc6-Annexe Q-4.2Modèle DaQ'!N59 -> 157 | Y39: ='GM-9Doc6-Annexe Q-4.2Modèle DaQ'!O59 -> 157 | Z39: ='GM-9Doc6-Annexe Q-4.2Modèle DaQ'!P59 -> 157 | AA39: ='GM-9Doc6-Annexe Q-4.2Modèle DaQ'!Q59 -> 157 | AD39: Coût d'opération | AJ39: =AA39 -> 157 | AK39: ='GM-9Doc6-Annexe Q-4.2Modèle DaQ'!R59 -> 157 | AL39: ='GM-9Doc6-Annexe Q-4.2Modèle DaQ'!S59 -> 157 | AM39: ='GM-9Doc6-Annexe Q-4.2Modèle DaQ'!T59 -> 157 | AN39: ='GM-9Doc6-Annexe Q-4.2Modèle DaQ'!U59 -> 157 | AO39: ='GM-9Doc6-Annexe Q-4.2Modèle DaQ'!V59 -> 157 | AR39: Coût d'opération | AX39: =AO39 -> 157 | AY39: ='GM-9Doc6-Annexe Q-4.2Modèle DaQ'!W59 -> 157 | AZ39: ='GM-9Doc6-Annexe Q-4.2Modèle DaQ'!X59 -> 157 | BA39: ='GM-9Doc6-Annexe Q-4.2Modèle DaQ'!Y59 -> 157 | BB39: ='GM-9Doc6-Annexe Q-4.2Modèle DaQ'!Z59 -> 157 | BC39: ='GM-9Doc6-Annexe Q-4.2Modèle DaQ'!AA59 -> 157 | BF39: Coût d'opération | BL39: =BC39 -> 157 | BM39: ='GM-9Doc6-Annexe Q-4.2Modèle DaQ'!AB59 -> 157 | BN39: ='GM-9Doc6-Annexe Q-4.2Modèle DaQ'!AC59 -> 157 | BO39: ='GM-9Doc6-Annexe Q-4.2Modèle DaQ'!AD59 -> 157 | BP39: ='GM-9Doc6-Annexe Q-4.2Modèle DaQ'!AE59 -> 157 | BQ39: ='GM-9Doc6-Annexe Q-4.2Modèle DaQ'!AF59 -> 157 | BT39: Coût d'opération | BZ39: =BQ39 -> 157 | CA39: ='GM-9Doc6-Annexe Q-4.2Modèle DaQ'!AG59 -> 157 | CB39: ='GM-9Doc6-Annexe Q-4.2Modèle DaQ'!AH59 -> 157 | CC39: ='GM-9Doc6-Annexe Q-4.2Modèle DaQ'!AI59 -> 157 | CD39: ='GM-9Doc6-Annexe Q-4.2Modèle DaQ'!AJ59 -> 157 | CE39: ='GM-9Doc6-Annexe Q-4.2Modèle DaQ'!AK59 -> 157 | CH39: Coût d'opération | CN39: =CE39 -> 157 | CO39: ='GM-9Doc6-Annexe Q-4.2Modèle DaQ'!AL59 -> 157 | CP39: ='GM-9Doc6-Annexe Q-4.2Modèle DaQ'!AM59 -> 157 | CQ39: ='GM-9Doc6-Annexe Q-4.2Modèle DaQ'!AN59 -> 157 | CR39: ='GM-9Doc6-Annexe Q-4.2Modèle DaQ'!AO59 -> 157 | CS39: ='GM-9Doc6-Annexe Q-4.2Modèle DaQ'!AP59 -> 157 | CV39: Coût d'opération | DB39: =CS39 -> 157 | DC39: ='GM-9Doc6-Annexe Q-4.2Modèle DaQ'!AQ59 -> 157 | DD39: ='GM-9Doc6-Annexe Q-4.2Modèle DaQ'!AR59 -> 157 | DE39: ='GM-9Doc6-Annexe Q-4.2Modèle DaQ'!AS59 -> 157 | DF39: ='GM-9Doc6-Annexe Q-4.2Modèle DaQ'!AT59 -> 157 | DG39: ='GM-9Doc6-Annexe Q-4.2Modèle DaQ'!AU59 -> 157
B40: Amortissement comptable | I40: ='GM-9Doc6-Annexe Q-4.2Modèle DaQ'!H69 -> 57,954 | J40: ='GM-9Doc6-Annexe Q-4.2Modèle DaQ'!I69 -> 57,954 | K40: ='GM-9Doc6-Annexe Q-4.2Modèle DaQ'!J69 -> 57,954 | L40: ='GM-9Doc6-Annexe Q-4.2Modèle DaQ'!K69 -> 57,954 | M40: ='GM-9Doc6-Annexe Q-4.2Modèle DaQ'!L69 -> 57,954 | P40: Amortissement comptable | V40: 57,954 | W40: ='GM-9Doc6-Annexe Q-4.2Modèle DaQ'!M69 -> 57,954 | X40: ='GM-9Doc6-Annexe Q-4.2Modèle DaQ'!N69 -> 57,954 | Y40: ='GM-9Doc6-Annexe Q-4.2Modèle DaQ'!O69 -> 57,954 | Z40: ='GM-9Doc6-Annexe Q-4.2Modèle DaQ'!P69 -> 57,954 | AA40: ='GM-9Doc6-Annexe Q-4.2Modèle DaQ'!Q69 -> 57,954 | AD40: Amortissement comptable | AJ40: 57,954 | AK40: ='GM-9Doc6-Annexe Q-4.2Modèle DaQ'!R69 -> 57,954 | AL40: ='GM-9Doc6-Annexe Q-4.2Modèle DaQ'!S69 -> 57,954 | AM40: ='GM-9Doc6-Annexe Q-4.2Modèle DaQ'!T69 -> 57,954 | AN40: ='GM-9Doc6-Annexe Q-4.2Modèle DaQ'!U69 -> 57,954 | AO40: ='GM-9Doc6-Annexe Q-4.2Modèle DaQ'!V69 -> 57,954 | AR40: Amortissement comptable | AX40: 57,954 | AY40: ='GM-9Doc6-Annexe Q-4.2Modèle DaQ'!W69 -> 57,954 | AZ40: ='GM-9Doc6-Annexe Q-4.2Modèle DaQ'!X69 -> 57,954 | BA40: ='GM-9Doc6-Annexe Q-4.2Modèle DaQ'!Y69 -> 57,954 | BB40: ='GM-9Doc6-Annexe Q-4.2Modèle DaQ'!Z69 -> 57,954 | BC40: ='GM-9Doc6-Annexe Q-4.2Modèle DaQ'!AA69 -> 57,954 | BF40: Amortissement comptable | BL40: 57,954 | BM40: ='GM-9Doc6-Annexe Q-4.2Modèle DaQ'!AB69 -> 57,954 | BN40: ='GM-9Doc6-Annexe Q-4.2Modèle DaQ'!AC69 -> 28,178 | BO40: ='GM-9Doc6-Annexe Q-4.2Modèle DaQ'!AD69 -> 27,298 | BP40: ='GM-9Doc6-Annexe Q-4.2Modèle DaQ'!AE69 -> 27,298 | BQ40: ='GM-9Doc6-Annexe Q-4.2Modèle DaQ'!AF69 -> 27,298 | BT40: Amortissement comptable | BZ40: 27,298 | CA40: ='GM-9Doc6-Annexe Q-4.2Modèle DaQ'!AG69 -> 27,298 | CB40: ='GM-9Doc6-Annexe Q-4.2Modèle DaQ'!AH69 -> 27,298 | CC40: ='GM-9Doc6-Annexe Q-4.2Modèle DaQ'!AI69 -> 27,298 | CD40: ='GM-9Doc6-Annexe Q-4.2Modèle DaQ'!AJ69 -> 27,298 | CE40: ='GM-9Doc6-Annexe Q-4.2Modèle DaQ'!AK69 -> 27,298 | CH40: Amortissement comptable | CN40: 27,298 | CO40: ='GM-9Doc6-Annexe Q-4.2Modèle DaQ'!AL69 -> 27,298 | CP40: ='GM-9Doc6-Annexe Q-4.2Modèle DaQ'!AM69 -> 27,298 | CQ40: ='GM-9Doc6-Annexe Q-4.2Modèle DaQ'!AN69 -> 27,298 | CR40: ='GM-9Doc6-Annexe Q-4.2Modèle DaQ'!AO69 -> 27,298 | CS40: ='GM-9Doc6-Annexe Q-4.2Modèle DaQ'!AP69 -> 27,298 | CV40: Amortissement comptable | DB40: 27,298 | DC40: ='GM-9Doc6-Annexe Q-4.2Modèle DaQ'!AQ69 -> 27,298 | DD40: ='GM-9Doc6-Annexe Q-4.2Modèle DaQ'!AR69 -> 27,298 | DE40: ='GM-9Doc6-Annexe Q-4.2Modèle DaQ'!AS69 -> 27,298 | DF40: ='GM-9Doc6-Annexe Q-4.2Modèle DaQ'!AT69 -> 27,298 | DG40: ='GM-9Doc6-Annexe Q-4.2Modèle DaQ'!AU69 -> 27,298
B41: Taxe sur les services publics | I41: ='GM-9Doc6-Annexe Q-4.2Modèle DaQ'!H67 -> 26,968 | J41: ='GM-9Doc6-Annexe Q-4.2Modèle DaQ'!I67 -> 26,099 | K41: ='GM-9Doc6-Annexe Q-4.2Modèle DaQ'!J67 -> 25,230 | L41: ='GM-9Doc6-Annexe Q-4.2Modèle DaQ'!K67 -> 24,360 | M41: ='GM-9Doc6-Annexe Q-4.2Modèle DaQ'!L67 -> 23,491 | P41: Taxe sur les services publics | V41: 23,491 | W41: ='GM-9Doc6-Annexe Q-4.2Modèle DaQ'!M67 -> 22,622 | X41: ='GM-9Doc6-Annexe Q-4.2Modèle DaQ'!N67 -> 21,753 | Y41: ='GM-9Doc6-Annexe Q-4.2Modèle DaQ'!O67 -> 20,883 | Z41: ='GM-9Doc6-Annexe Q-4.2Modèle DaQ'!P67 -> 20,014 | AA41: ='GM-9Doc6-Annexe Q-4.2Modèle DaQ'!Q67 -> 19,145 | AD41: Taxe sur les services publics | AJ41: 19,145 | AK41: ='GM-9Doc6-Annexe Q-4.2Modèle DaQ'!R67 -> 18,275 | AL41: ='GM-9Doc6-Annexe Q-4.2Modèle DaQ'!S67 -> 17,406 | AM41: ='GM-9Doc6-Annexe Q-4.2Modèle DaQ'!T67 -> 16,537 | AN41: ='GM-9Doc6-Annexe Q-4.2Modèle DaQ'!U67 -> 15,667 | AO41: ='GM-9Doc6-Annexe Q-4.2Modèle DaQ'!V67 -> 14,798 | AR41: Taxe sur les services publics | AX41: 14,798 | AY41: ='GM-9Doc6-Annexe Q-4.2Modèle DaQ'!W67 -> 13,929 | AZ41: ='GM-9Doc6-Annexe Q-4.2Modèle DaQ'!X67 -> 13,059 | BA41: ='GM-9Doc6-Annexe Q-4.2Modèle DaQ'!Y67 -> 12,190 | BB41: ='GM-9Doc6-Annexe Q-4.2Modèle DaQ'!Z67 -> 11,321 | BC41: ='GM-9Doc6-Annexe Q-4.2Modèle DaQ'!AA67 -> 10,451 | BF41: Taxe sur les services publics | BL41: 10,451 | BM41: ='GM-9Doc6-Annexe Q-4.2Modèle DaQ'!AB67 -> 9,582 | BN41: ='GM-9Doc6-Annexe Q-4.2Modèle DaQ'!AC67 -> 9,159 | BO41: ='GM-9Doc6-Annexe Q-4.2Modèle DaQ'!AD67 -> 8,750 | BP41: ='GM-9Doc6-Annexe Q-4.2Modèle DaQ'!AE67 -> 8,341 | BQ41: ='GM-9Doc6-Annexe Q-4.2Modèle DaQ'!AF67 -> 7,931 | BT41: Taxe sur les services publics | BZ41: 7,931 | CA41: ='GM-9Doc6-Annexe Q-4.2Modèle DaQ'!AG67 -> 7,522 | CB41: ='GM-9Doc6-Annexe Q-4.2Modèle DaQ'!AH67 -> 7,112 | CC41: ='GM-9Doc6-Annexe Q-4.2Modèle DaQ'!AI67 -> 6,703 | CD41: ='GM-9Doc6-Annexe Q-4.2Modèle DaQ'!AJ67 -> 6,293 | CE41: ='GM-9Doc6-Annexe Q-4.2Modèle DaQ'!AK67 -> 5,884 | CH41: Taxe sur les services publics | CN41: 5,884 | CO41: ='GM-9Doc6-Annexe Q-4.2Modèle DaQ'!AL67 -> 5,474 | CP41: ='GM-9Doc6-Annexe Q-4.2Modèle DaQ'!AM67 -> 5,065 | CQ41: ='GM-9Doc6-Annexe Q-4.2Modèle DaQ'!AN67 -> 4,655 | CR41: ='GM-9Doc6-Annexe Q-4.2Modèle DaQ'!AO67 -> 4,246 | CS41: ='GM-9Doc6-Annexe Q-4.2Modèle DaQ'!AP67 -> 3,836 | CV41: Taxe sur les services publics | DB41: 3,836 | DC41: ='GM-9Doc6-Annexe Q-4.2Modèle DaQ'!AQ67 -> 3,427 | DD41: ='GM-9Doc6-Annexe Q-4.2Modèle DaQ'!AR67 -> 3,018 | DE41: ='GM-9Doc6-Annexe Q-4.2Modèle DaQ'!AS67 -> 2,608 | DF41: ='GM-9Doc6-Annexe Q-4.2Modèle DaQ'!AT67 -> 2,199 | DG41: ='GM-9Doc6-Annexe Q-4.2Modèle DaQ'!AU67 -> 1,789
B42: Redevances | I42: ='GM-9Doc6-Annexe Q-4.2Modèle DaQ'!H68 -> 2,142 | J42: ='GM-9Doc6-Annexe Q-4.2Modèle DaQ'!I68 -> 2,142 | K42: ='GM-9Doc6-Annexe Q-4.2Modèle DaQ'!J68 -> 2,142 | L42: ='GM-9Doc6-Annexe Q-4.2Modèle DaQ'!K68 -> 2,142 | M42: ='GM-9Doc6-Annexe Q-4.2Modèle DaQ'!L68 -> 2,142 | P42: Redevances | V42: 2,142 | W42: ='GM-9Doc6-Annexe Q-4.2Modèle DaQ'!M68 -> 2,142 | X42: ='GM-9Doc6-Annexe Q-4.2Modèle DaQ'!N68 -> 2,142 | Y42: ='GM-9Doc6-Annexe Q-4.2Modèle DaQ'!O68 -> 2,142 | Z42: ='GM-9Doc6-Annexe Q-4.2Modèle DaQ'!P68 -> 2,142 | AA42: ='GM-9Doc6-Annexe Q-4.2Modèle DaQ'!Q68 -> 2,142 | AD42: Redevances | AJ42: 2,142 | AK42: ='GM-9Doc6-Annexe Q-4.2Modèle DaQ'!R68 -> 2,142 | AL42: ='GM-9Doc6-Annexe Q-4.2Modèle DaQ'!S68 -> 2,142 | AM42: ='GM-9Doc6-Annexe Q-4.2Modèle DaQ'!T68 -> 2,142 | AN42: ='GM-9Doc6-Annexe Q-4.2Modèle DaQ'!U68 -> 2,142 | AO42: ='GM-9Doc6-Annexe Q-4.2Modèle DaQ'!V68 -> 2,142 | AR42: Redevances | AX42: 2,142 | AY42: ='GM-9Doc6-Annexe Q-4.2Modèle DaQ'!W68 -> 2,142 | AZ42: ='GM-9Doc6-Annexe Q-4.2Modèle DaQ'!X68 -> 2,142 | BA42: ='GM-9Doc6-Annexe Q-4.2Modèle DaQ'!Y68 -> 2,142 | BB42: ='GM-9Doc6-Annexe Q-4.2Modèle DaQ'!Z68 -> 2,142 | BC42: ='GM-9Doc6-Annexe Q-4.2Modèle DaQ'!AA68 -> 2,142 | BF42: Redevances | BL42: 2,142 | BM42: ='GM-9Doc6-Annexe Q-4.2Modèle DaQ'!AB68 -> 2,142 | BN42: ='GM-9Doc6-Annexe Q-4.2Modèle DaQ'!AC68 -> 2,142 | BO42: ='GM-9Doc6-Annexe Q-4.2Modèle DaQ'!AD68 -> 2,142 | BP42: ='GM-9Doc6-Annexe Q-4.2Modèle DaQ'!AE68 -> 2,142 | BQ42: ='GM-9Doc6-Annexe Q-4.2Modèle DaQ'!AF68 -> 2,142 | BT42: Redevances | BZ42: 2,142 | CA42: ='GM-9Doc6-Annexe Q-4.2Modèle DaQ'!AG68 -> 2,142 | CB42: ='GM-9Doc6-Annexe Q-4.2Modèle DaQ'!AH68 -> 2,142 | CC42: ='GM-9Doc6-Annexe Q-4.2Modèle DaQ'!AI68 -> 2,142 | CD42: ='GM-9Doc6-Annexe Q-4.2Modèle DaQ'!AJ68 -> 2,142 | CE42: ='GM-9Doc6-Annexe Q-4.2Modèle DaQ'!AK68 -> 2,142 | CH42: Redevances | CN42: 2,142 | CO42: ='GM-9Doc6-Annexe Q-4.2Modèle DaQ'!AL68 -> 2,142 | CP42: ='GM-9Doc6-Annexe Q-4.2Modèle DaQ'!AM68 -> 2,142 | CQ42: ='GM-9Doc6-Annexe Q-4.2Modèle DaQ'!AN68 -> 2,142 | CR42: ='GM-9Doc6-Annexe Q-4.2Modèle DaQ'!AO68 -> 2,142 | CS42: ='GM-9Doc6-Annexe Q-4.2Modèle DaQ'!AP68 -> 2,142 | CV42: Redevances | DB42: 2,142 | DC42: ='GM-9Doc6-Annexe Q-4.2Modèle DaQ'!AQ68 -> 2,142 | DD42: ='GM-9Doc6-Annexe Q-4.2Modèle DaQ'!AR68 -> 2,142 | DE42: ='GM-9Doc6-Annexe Q-4.2Modèle DaQ'!AS68 -> 2,142 | DF42: ='GM-9Doc6-Annexe Q-4.2Modèle DaQ'!AT68 -> 2,142 | DG42: ='GM-9Doc6-Annexe Q-4.2Modèle DaQ'!AU68 -> 2,142
B43: Impôts | I43: ='GM-9Doc6-Annexe Q-4.2Modèle DaQ'!H70 -> 26,097 | J43: ='GM-9Doc6-Annexe Q-4.2Modèle DaQ'!I70 -> 6,037 | K43: ='GM-9Doc6-Annexe Q-4.2Modèle DaQ'!J70 -> 7,621 | L43: ='GM-9Doc6-Annexe Q-4.2Modèle DaQ'!K70 -> 9,061 | M43: ='GM-9Doc6-Annexe Q-4.2Modèle DaQ'!L70 -> 10,367 | P43: Impôts | V43: 10,367 | W43: ='GM-9Doc6-Annexe Q-4.2Modèle DaQ'!M70 -> 11,546 | X43: ='GM-9Doc6-Annexe Q-4.2Modèle DaQ'!N70 -> 12,607 | Y43: ='GM-9Doc6-Annexe Q-4.2Modèle DaQ'!O70 -> 13,556 | Z43: ='GM-9Doc6-Annexe Q-4.2Modèle DaQ'!P70 -> 14,400 | AA43: ='GM-9Doc6-Annexe Q-4.2Modèle DaQ'!Q70 -> 15,145 | AD43: Impôts | AJ43: 15,145 | AK43: ='GM-9Doc6-Annexe Q-4.2Modèle DaQ'!R70 -> 15,798 | AL43: ='GM-9Doc6-Annexe Q-4.2Modèle DaQ'!S70 -> 16,363 | AM43: ='GM-9Doc6-Annexe Q-4.2Modèle DaQ'!T70 -> 16,846 | AN43: ='GM-9Doc6-Annexe Q-4.2Modèle DaQ'!U70 -> 17,252 | AO43: ='GM-9Doc6-Annexe Q-4.2Modèle DaQ'!V70 -> 17,586 | AR43: Impôts | AX43: 17,586 | AY43: ='GM-9Doc6-Annexe Q-4.2Modèle DaQ'!W70 -> 17,851 | AZ43: ='GM-9Doc6-Annexe Q-4.2Modèle DaQ'!X70 -> 18,053 | BA43: ='GM-9Doc6-Annexe Q-4.2Modèle DaQ'!Y70 -> 18,194 | BB43: ='GM-9Doc6-Annexe Q-4.2Modèle DaQ'!Z70 -> 18,279 | BC43: ='GM-9Doc6-Annexe Q-4.2Modèle DaQ'!AA70 -> 18,311 | BF43: Impôts | BL43: 18,311 | BM43: ='GM-9Doc6-Annexe Q-4.2Modèle DaQ'!AB70 -> 18,293 | BN43: ='GM-9Doc6-Annexe Q-4.2Modèle DaQ'!AC70 -> 7,476 | BO43: ='GM-9Doc6-Annexe Q-4.2Modèle DaQ'!AD70 -> 7,460 | BP43: ='GM-9Doc6-Annexe Q-4.2Modèle DaQ'!AE70 -> 7,733 | BQ43: ='GM-9Doc6-Annexe Q-4.2Modèle DaQ'!AF70 -> 7,967 | BT43: Impôts | BZ43: 7,967 | CA43: ='GM-9Doc6-Annexe Q-4.2Modèle DaQ'!AG70 -> 8,164 | CB43: ='GM-9Doc6-Annexe Q-4.2Modèle DaQ'!AH70 -> 8,327 | CC43: ='GM-9Doc6-Annexe Q-4.2Modèle DaQ'!AI70 -> 8,457 | CD43: ='GM-9Doc6-Annexe Q-4.2Modèle DaQ'!AJ70 -> 8,557 | CE43: ='GM-9Doc6-Annexe Q-4.2Modèle DaQ'!AK70 -> 8,628 | CH43: Impôts | CN43: 8,628 | CO43: ='GM-9Doc6-Annexe Q-4.2Modèle DaQ'!AL70 -> 8,673 | CP43: ='GM-9Doc6-Annexe Q-4.2Modèle DaQ'!AM70 -> 8,692 | CQ43: ='GM-9Doc6-Annexe Q-4.2Modèle DaQ'!AN70 -> 8,687 | CR43: ='GM-9Doc6-Annexe Q-4.2Modèle DaQ'!AO70 -> 8,660 | CS43: ='GM-9Doc6-Annexe Q-4.2Modèle DaQ'!AP70 -> 8,612 | CV43: Impôts | DB43: 8,612 | DC43: ='GM-9Doc6-Annexe Q-4.2Modèle DaQ'!AQ70 -> 8,544 | DD43: ='GM-9Doc6-Annexe Q-4.2Modèle DaQ'!AR70 -> 8,457 | DE43: ='GM-9Doc6-Annexe Q-4.2Modèle DaQ'!AS70 -> 8,353 | DF43: ='GM-9Doc6-Annexe Q-4.2Modèle DaQ'!AT70 -> 8,233 | DG43: ='GM-9Doc6-Annexe Q-4.2Modèle DaQ'!AU70 -> 8,097
B44: Rendement | I44: ='GM-9Doc6-Annexe Q-4.2Modèle DaQ'!H71 -> 96,459 | J44: ='GM-9Doc6-Annexe Q-4.2Modèle DaQ'!I71 -> 93,399 | K44: ='GM-9Doc6-Annexe Q-4.2Modèle DaQ'!J71 -> 90,339 | L44: ='GM-9Doc6-Annexe Q-4.2Modèle DaQ'!K71 -> 87,279 | M44: ='GM-9Doc6-Annexe Q-4.2Modèle DaQ'!L71 -> 84,219 | P44: Rendement | V44: 84,219 | W44: ='GM-9Doc6-Annexe Q-4.2Modèle DaQ'!M71 -> 81,159 | X44: ='GM-9Doc6-Annexe Q-4.2Modèle DaQ'!N71 -> 78,099 | Y44: ='GM-9Doc6-Annexe Q-4.2Modèle DaQ'!O71 -> 75,039 | Z44: ='GM-9Doc6-Annexe Q-4.2Modèle DaQ'!P71 -> 71,979 | AA44: ='GM-9Doc6-Annexe Q-4.2Modèle DaQ'!Q71 -> 68,919 | AD44: Rendement | AJ44: 68,919 | AK44: ='GM-9Doc6-Annexe Q-4.2Modèle DaQ'!R71 -> 65,859 | AL44: ='GM-9Doc6-Annexe Q-4.2Modèle DaQ'!S71 -> 62,799 | AM44: ='GM-9Doc6-Annexe Q-4.2Modèle DaQ'!T71 -> 59,739 | AN44: ='GM-9Doc6-Annexe Q-4.2Modèle DaQ'!U71 -> 56,679 | AO44: ='GM-9Doc6-Annexe Q-4.2Modèle DaQ'!V71 -> 53,619 | AR44: Rendement | AX44: 53,619 | AY44: ='GM-9Doc6-Annexe Q-4.2Modèle DaQ'!W71 -> 50,559 | AZ44: ='GM-9Doc6-Annexe Q-4.2Modèle DaQ'!X71 -> 47,499 | BA44: ='GM-9Doc6-Annexe Q-4.2Modèle DaQ'!Y71 -> 44,439 | BB44: ='GM-9Doc6-Annexe Q-4.2Modèle DaQ'!Z71 -> 41,379 | BC44: ='GM-9Doc6-Annexe Q-4.2Modèle DaQ'!AA71 -> 38,319 | BF44: Rendement | BL44: 38,319 | BM44: ='GM-9Doc6-Annexe Q-4.2Modèle DaQ'!AB71 -> 35,259 | BN44: ='GM-9Doc6-Annexe Q-4.2Modèle DaQ'!AC71 -> 32,985 | BO44: ='GM-9Doc6-Annexe Q-4.2Modèle DaQ'!AD71 -> 31,521 | BP44: ='GM-9Doc6-Annexe Q-4.2Modèle DaQ'!AE71 -> 30,079 | BQ44: ='GM-9Doc6-Annexe Q-4.2Modèle DaQ'!AF71 -> 28,638 | BT44: Rendement | BZ44: 28,638 | CA44: ='GM-9Doc6-Annexe Q-4.2Modèle DaQ'!AG71 -> 27,197 | CB44: ='GM-9Doc6-Annexe Q-4.2Modèle DaQ'!AH71 -> 25,756 | CC44: ='GM-9Doc6-Annexe Q-4.2Modèle DaQ'!AI71 -> 24,314 | CD44: ='GM-9Doc6-Annexe Q-4.2Modèle DaQ'!AJ71 -> 22,873 | CE44: ='GM-9Doc6-Annexe Q-4.2Modèle DaQ'!AK71 -> 21,432 | CH44: Rendement | CN44: 21,432 | CO44: ='GM-9Doc6-Annexe Q-4.2Modèle DaQ'!AL71 -> 19,990 | CP44: ='GM-9Doc6-Annexe Q-4.2Modèle DaQ'!AM71 -> 18,549 | CQ44: ='GM-9Doc6-Annexe Q-4.2Modèle DaQ'!AN71 -> 17,108 | CR44: ='GM-9Doc6-Annexe Q-4.2Modèle DaQ'!AO71 -> 15,666 | CS44: ='GM-9Doc6-Annexe Q-4.2Modèle DaQ'!AP71 -> 14,225 | CV44: Rendement | DB44: 14,225 | DC44: ='GM-9Doc6-Annexe Q-4.2Modèle DaQ'!AQ71 -> 12,784 | DD44: ='GM-9Doc6-Annexe Q-4.2Modèle DaQ'!AR71 -> 11,342 | DE44: ='GM-9Doc6-Annexe Q-4.2Modèle DaQ'!AS71 -> 9,901 | DF44: ='GM-9Doc6-Annexe Q-4.2Modèle DaQ'!AT71 -> 8,460 | DG44: ='GM-9Doc6-Annexe Q-4.2Modèle DaQ'!AU71 -> 7,018
B45: Revenu requis | I45: =SUM(I39:I44) -> 209,778 | J45: =SUM(J39:J44) -> 185,788 | K45: =SUM(K39:K44) -> 183,443 | L45: =SUM(L39:L44) -> 180,954 | M45: =SUM(M39:M44) -> 178,330 | P45: Revenu requis | V45: 178,330 | W45: =SUM(W39:W44) -> 175,581 | X45: =SUM(X39:X44) -> 172,712 | Y45: =SUM(Y39:Y44) -> 169,732 | Z45: =SUM(Z39:Z44) -> 166,646 | AA45: =SUM(AA39:AA44) -> 163,462 | AD45: Revenu requis | AJ45: 163,462 | AK45: =SUM(AK39:AK44) -> 160,185 | AL45: =SUM(AL39:AL44) -> 156,821 | AM45: =SUM(AM39:AM44) -> 153,375 | AN45: =SUM(AN39:AN44) -> 149,852 | AO45: =SUM(AO39:AO44) -> 146,256 | AR45: Revenu requis | AX45: 146,256 | AY45: =SUM(AY39:AY44) -> 142,593 | AZ45: =SUM(AZ39:AZ44) -> 138,865 | BA45: =SUM(BA39:BA44) -> 135,077 | BB45: =SUM(BB39:BB44) -> 131,233 | BC45: =SUM(BC39:BC44) -> 127,335 | BF45: Revenu requis | BL45: 127,335 | BM45: =SUM(BM39:BM44) -> 123,387 | BN45: =SUM(BN39:BN44) -> 80,098 | BO45: =SUM(BO39:BO44) -> 77,328 | BP45: =SUM(BP39:BP44) -> 75,750 | BQ45: =SUM(BQ39:BQ44) -> 74,133 | BT45: Revenu requis | BZ45: 74,133 | CA45: =SUM(CA39:CA44) -> 72,480 | CB45: =SUM(CB39:CB44) -> 70,792 | CC45: =SUM(CC39:CC44) -> 69,071 | CD45: =SUM(CD39:CD44) -> 67,320 | CE45: =SUM(CE39:CE44) -> 65,541 | CH45: Revenu requis | CN45: 65,541 | CO45: =SUM(CO39:CO44) -> 63,734 | CP45: =SUM(CP39:CP44) -> 61,902 | CQ45: =SUM(CQ39:CQ44) -> 60,047 | CR45: =SUM(CR39:CR44) -> 58,169 | CS45: =SUM(CS39:CS44) -> 56,270 | CV45: Revenu requis | DB45: 56,270 | DC45: =SUM(DC39:DC44) -> 54,351 | DD45: =SUM(DD39:DD44) -> 52,414 | DE45: =SUM(DE39:DE44) -> 50,459 | DF45: =SUM(DF39:DF44) -> 48,488 | DG45: =SUM(DG39:DG44) -> 46,502
B47: Revenus | I47: 0 | J47: 0 | K47: 0 | L47: 0 | M47: 0 | P47: Revenus | V47: =M47 -> 0 | W47: 0 | X47: 0 | Y47: 0 | Z47: 0 | AA47: 0 | AD47: Revenus | AJ47: =AA47 -> 0 | AK47: 0 | AL47: 0 | AM47: 0 | AN47: 0 | AO47: 0 | AR47: Revenus | AX47: =AO47 -> 0 | AY47: 0 | AZ47: 0 | BA47: 0 | BB47: 0 | BC47: 0 | BF47: Revenus | BL47: =BC47 -> 0 | BM47: 0 | BN47: 0 | BO47: 0 | BP47: 0 | BQ47: 0 | BT47: Revenus | BZ47: =BQ47 -> 0 | CA47: 0 | CB47: 0 | CC47: 0 | CD47: 0 | CE47: 0 | CH47: Revenus | CN47: =CE47 -> 0 | CO47: 0 | CP47: 0 | CQ47: 0 | CR47: 0 | CS47: 0 | CV47: Revenus | DB47: =CS47 -> 0 | DC47: 0 | DD47: 0 | DE47: 0 | DF47: 0 | DG47: 0
B48: Taux de Distribution ( ¢/m³) | I48: ='GM-9Doc6-Annexe Q-4.2Modèle DaQ'!H31 -> 8.2380 | J48: ='GM-9Doc6-Annexe Q-4.2Modèle DaQ'!I31 -> 8.2380 | K48: ='GM-9Doc6-Annexe Q-4.2Modèle DaQ'!J31 -> 8.2380 | L48: ='GM-9Doc6-Annexe Q-4.2Modèle DaQ'!K31 -> 8.2380 | M48: ='GM-9Doc6-Annexe Q-4.2Modèle DaQ'!L31 -> 8.2380 | P48: Taux Distribution ( ¢/m³) | V48: =M48 -> 8 | W48: ='GM-9Doc6-Annexe Q-4.2Modèle DaQ'!M31 -> 8.2380 | X48: ='GM-9Doc6-Annexe Q-4.2Modèle DaQ'!N31 -> 8.2380 | Y48: ='GM-9Doc6-Annexe Q-4.2Modèle DaQ'!O31 -> 8.2380 | Z48: ='GM-9Doc6-Annexe Q-4.2Modèle DaQ'!P31 -> 8.2380 | AA48: ='GM-9Doc6-Annexe Q-4.2Modèle DaQ'!Q31 -> 8.2380 | AD48: Taux Distribution ( ¢/m³) | AJ48: =AA48 -> 8 | AK48: ='GM-9Doc6-Annexe Q-4.2Modèle DaQ'!R31 -> 8.2380 | AL48: ='GM-9Doc6-Annexe Q-4.2Modèle DaQ'!S31 -> 8.2380 | AM48: ='GM-9Doc6-Annexe Q-4.2Modèle DaQ'!T31 -> 8.2380 | AN48: ='GM-9Doc6-Annexe Q-4.2Modèle DaQ'!U31 -> 8.2380 | AO48: ='GM-9Doc6-Annexe Q-4.2Modèle DaQ'!V31 -> 8.2380 | AR48: Taux Distribution ( ¢/m³) | AX48: =AO48 -> 8 | AY48: ='GM-9Doc6-Annexe Q-4.2Modèle DaQ'!W31 -> 8.2380 | AZ48: ='GM-9Doc6-Annexe Q-4.2Modèle DaQ'!X31 -> 8.2380 | BA48: ='GM-9Doc6-Annexe Q-4.2Modèle DaQ'!Y31 -> 8.2380 | BB48: ='GM-9Doc6-Annexe Q-4.2Modèle DaQ'!Z31 -> 8.2380 | BC48: ='GM-9Doc6-Annexe Q-4.2Modèle DaQ'!AA31 -> 8.2380 | BF48: Taux Distribution ( ¢/m³) | BL48: =BC48 -> 8 | BM48: ='GM-9Doc6-Annexe Q-4.2Modèle DaQ'!AB31 -> 8.2380 | BN48: ='GM-9Doc6-Annexe Q-4.2Modèle DaQ'!AC31 -> 8.2380 | BO48: ='GM-9Doc6-Annexe Q-4.2Modèle DaQ'!AD31 -> 8.2380 | BP48: ='GM-9Doc6-Annexe Q-4.2Modèle DaQ'!AE31 -> 8.2380 | BQ48: ='GM-9Doc6-Annexe Q-4.2Modèle DaQ'!AF31 -> 8.2380 | BT48: Taux Distribution ( ¢/m³) | BZ48: =BQ48 -> 8 | CA48: ='GM-9Doc6-Annexe Q-4.2Modèle DaQ'!AG31 -> 8.2380 | CB48: ='GM-9Doc6-Annexe Q-4.2Modèle DaQ'!AH31 -> 8.2380 | CC48: ='GM-9Doc6-Annexe Q-4.2Modèle DaQ'!AI31 -> 8.2380 | CD48: ='GM-9Doc6-Annexe Q-4.2Modèle DaQ'!AJ31 -> 8.2380 | CE48: ='GM-9Doc6-Annexe Q-4.2Modèle DaQ'!AK31 -> 8.2380 | CH48: Taux Distribution ( ¢/m³) | CN48: =CE48 -> 8 | CO48: ='GM-9Doc6-Annexe Q-4.2Modèle DaQ'!AL31 -> 8.2380 | CP48: ='GM-9Doc6-Annexe Q-4.2Modèle DaQ'!AM31 -> 8.2380 | CQ48: ='GM-9Doc6-Annexe Q-4.2Modèle DaQ'!AN31 -> 8.2380 | CR48: ='GM-9Doc6-Annexe Q-4.2Modèle DaQ'!AO31 -> 8.2380 | CS48: ='GM-9Doc6-Annexe Q-4.2Modèle DaQ'!AP31 -> 8.2380 | CV48: Taux Distribution ( ¢/m³) | DB48: =CS48 -> 8 | DC48: ='GM-9Doc6-Annexe Q-4.2Modèle DaQ'!AQ31 -> 8.2380 | DD48: ='GM-9Doc6-Annexe Q-4.2Modèle DaQ'!AR31 -> 8.2380 | DE48: ='GM-9Doc6-Annexe Q-4.2Modèle DaQ'!AS31 -> 8.2380 | DF48: ='GM-9Doc6-Annexe Q-4.2Modèle DaQ'!AT31 -> 8.2380 | DG48: ='GM-9Doc6-Annexe Q-4.2Modèle DaQ'!AU31 -> 8.2380
B49: Taux Fonds vert ( ¢/m³) | I49: 0.0000 | J49: 0.0000 | K49: 0.0000 | L49: 0.0000 | M49: 0.0000 | P49: Taux Fonds vert ( ¢/m³) | V49: 0 | W49: 0.0000 | X49: 0.0000 | Y49: 0.0000 | Z49: 0.0000 | AA49: 0.0000 | AD49: Taux Fonds vert ( ¢/m³) | AJ49: =AA49 -> 0 | AK49: 0.0000 | AL49: 0.0000 | AM49: 0.0000 | AN49: 0.0000 | AO49: 0.0000 | AR49: Taux Fonds vert ( ¢/m³) | AX49: =AO49 -> 0 | AY49: 0.0000 | AZ49: 0.0000 | BA49: 0.0000 | BB49: 0.0000 | BC49: 0.0000 | BF49: Taux Fonds vert ( ¢/m³) | BL49: =BC49 -> 0 | BM49: 0.0000 | BN49: 0.0000 | BO49: 0.0000 | BP49: 0.0000 | BQ49: 0.0000 | BT49: Taux Fonds vert ( ¢/m³) | BZ49: =BQ49 -> 0 | CA49: 0.0000 | CB49: 0.0000 | CC49: 0.0000 | CD49: 0.0000 | CE49: 0.0000 | CH49: Taux Fonds vert ( ¢/m³) | CN49: =CE49 -> 0 | CO49: 0.0000 | CP49: 0.0000 | CQ49: 0.0000 | CR49: 0.0000 | CS49: 0.0000 | CV49: Taux Fonds vert ( ¢/m³) | DB49: =CS49 -> 0 | DC49: 0.0000 | DD49: 0.0000 | DE49: 0.0000 | DF49: 0.0000 | DG49: 0.0000
B50: Revenu de distribution ( ¢/m³) | I50: =I48 -> 8.2380 | J50: =J48 -> 8.2380 | K50: 8.2380 | L50: 8.2380 | M50: 8.2380 | P50: Revenu de distribution ( ¢/m³) | V50: =M50 -> 8 | W50: =W48 -> 8.2380 | X50: 8.2380 | Y50: 8.2380 | Z50: 8.2380 | AA50: 8.2380 | AD50: Revenu de distribution ( ¢/m³) | AJ50: =AA50 -> 8 | AK50: =AK48 -> 8.2380 | AL50: 8.2380 | AM50: 8.2380 | AN50: 8.2380 | AO50: 8.2380 | AR50: Revenu de distribution ( ¢/m³) | AX50: =AO50 -> 8 | AY50: =AY48 -> 8.2380 | AZ50: 8.2380 | BA50: 8.2380 | BB50: 8.2380 | BC50: 8.2380 | BF50: Revenu de distribution ( ¢/m³) | BL50: =BC50 -> 8 | BM50: =BM48 -> 8.2380 | BN50: 8.2380 | BO50: 8.2380 | BP50: 8.2380 | BQ50: 8.2380 | BT50: Revenu de distribution ( ¢/m³) | BZ50: =BQ50 -> 8 | CA50: =CA48 -> 8.2380 | CB50: 8.2380 | CC50: 8.2380 | CD50: 8.2380 | CE50: 8.2380 | CH50: Revenu de distribution ( ¢/m³) | CN50: =CE50 -> 8 | CO50: =CO48 -> 8.2380 | CP50: 8.2380 | CQ50: 8.2380 | CR50: 8.2380 | CS50: 8.2380 | CV50: Revenu de distribution ( ¢/m³) | DB50: =CS50 -> 8 | DC50: =DC48 -> 8.2380 | DD50: 8.2380 | DE50: 8.2380 | DF50: 8.2380 | DG50: 8.2380
B51: Revenu de distribution ($) | I51: ='GM-9Doc6-Annexe Q-4.2Modèle DaQ'!H32 -> 166,408 | J51: ='GM-9Doc6-Annexe Q-4.2Modèle DaQ'!I32 -> 166,408 | K51: ='GM-9Doc6-Annexe Q-4.2Modèle DaQ'!J32 -> 166,408 | L51: ='GM-9Doc6-Annexe Q-4.2Modèle DaQ'!K32 -> 166,408 | M51: ='GM-9Doc6-Annexe Q-4.2Modèle DaQ'!L32 -> 166,408 | P51: Revenu de distribution ($) | V51: =M51 -> 166,408 | W51: ='GM-9Doc6-Annexe Q-4.2Modèle DaQ'!M32 -> 166,408 | X51: ='GM-9Doc6-Annexe Q-4.2Modèle DaQ'!N32 -> 166,408 | Y51: ='GM-9Doc6-Annexe Q-4.2Modèle DaQ'!O32 -> 166,408 | Z51: ='GM-9Doc6-Annexe Q-4.2Modèle DaQ'!P32 -> 166,408 | AA51: ='GM-9Doc6-Annexe Q-4.2Modèle DaQ'!Q32 -> 166,408 | AD51: Revenu de distribution ($) | AJ51: =AA51 -> 166,408 | AK51: ='GM-9Doc6-Annexe Q-4.2Modèle DaQ'!R32 -> 166,408 | AL51: ='GM-9Doc6-Annexe Q-4.2Modèle DaQ'!S32 -> 166,408 | AM51: ='GM-9Doc6-Annexe Q-4.2Modèle DaQ'!T32 -> 166,408 | AN51: ='GM-9Doc6-Annexe Q-4.2Modèle DaQ'!U32 -> 166,408 | AO51: ='GM-9Doc6-Annexe Q-4.2Modèle DaQ'!V32 -> 166,408 | AR51: Revenu de distribution ($) | AX51: =AO51 -> 166,408 | AY51: ='GM-9Doc6-Annexe Q-4.2Modèle DaQ'!W32 -> 166,408 | AZ51: ='GM-9Doc6-Annexe Q-4.2Modèle DaQ'!X32 -> 166,408 | BA51: ='GM-9Doc6-Annexe Q-4.2Modèle DaQ'!Y32 -> 166,408 | BB51: ='GM-9Doc6-Annexe Q-4.2Modèle DaQ'!Z32 -> 166,408 | BC51: ='GM-9Doc6-Annexe Q-4.2Modèle DaQ'!AA32 -> 166,408 | BF51: Revenu de distribution ($) | BL51: =BC51 -> 166,408 | BM51: ='GM-9Doc6-Annexe Q-4.2Modèle DaQ'!AB32 -> 166,408 | BN51: ='GM-9Doc6-Annexe Q-4.2Modèle DaQ'!AC32 -> 166,408 | BO51: ='GM-9Doc6-Annexe Q-4.2Modèle DaQ'!AD32 -> 166,408 | BP51: ='GM-9Doc6-Annexe Q-4.2Modèle DaQ'!AE32 -> 166,408 | BQ51: ='GM-9Doc6-Annexe Q-4.2Modèle DaQ'!AF32 -> 166,408 | BT51: Revenu de distribution ($) | BZ51: =BQ51 -> 166,408 | CA51: ='GM-9Doc6-Annexe Q-4.2Modèle DaQ'!AG32 -> 166,408 | CB51: ='GM-9Doc6-Annexe Q-4.2Modèle DaQ'!AH32 -> 166,408 | CC51: ='GM-9Doc6-Annexe Q-4.2Modèle DaQ'!AI32 -> 166,408 | CD51: ='GM-9Doc6-Annexe Q-4.2Modèle DaQ'!AJ32 -> 166,408 | CE51: ='GM-9Doc6-Annexe Q-4.2Modèle DaQ'!AK32 -> 166,408 | CH51: Revenu de distribution ($) | CN51: =CE51 -> 166,408 | CO51: ='GM-9Doc6-Annexe Q-4.2Modèle DaQ'!AL32 -> 166,408 | CP51: ='GM-9Doc6-Annexe Q-4.2Modèle DaQ'!AM32 -> 166,408 | CQ51: ='GM-9Doc6-Annexe Q-4.2Modèle DaQ'!AN32 -> 166,408 | CR51: ='GM-9Doc6-Annexe Q-4.2Modèle DaQ'!AO32 -> 166,408 | CS51: ='GM-9Doc6-Annexe Q-4.2Modèle DaQ'!AP32 -> 166,408 | CV51: Revenu de distribution ($) | DB51: =CS51 -> 166,408 | DC51: ='GM-9Doc6-Annexe Q-4.2Modèle DaQ'!AQ32 -> 166,408 | DD51: ='GM-9Doc6-Annexe Q-4.2Modèle DaQ'!AR32 -> 166,408 | DE51: ='GM-9Doc6-Annexe Q-4.2Modèle DaQ'!AS32 -> 166,408 | DF51: ='GM-9Doc6-Annexe Q-4.2Modèle DaQ'!AT32 -> 166,408 | DG51: ='GM-9Doc6-Annexe Q-4.2Modèle DaQ'!AU32 -> 166,408
B53: Contribution tarifaire annuelle | I53: =I45-I51 -> 43,370 | J53: =J45-J51 -> 19,381 | K53: =K45-K51 -> 17,035 | L53: 14,546 | M53: 11,923 | P53: Contribution tarifaire annuelle | V53: =V45-V51 -> 11,923 | W53: 9,173 | X53: 6,304 | Y53: 3,324 | Z53: 239 | AA53: (2,945) | AD53: Contribution tarifaire annuelle | AJ53: =AJ45-AJ51 -> (2,945) | AK53: (6,222) | AL53: (9,586) | AM53: (13,033) | AN53: (16,556) | AO53: (20,151) | AR53: Contribution tarifaire annuelle | AX53: =AX45-AX51 -> (20,151) | AY53: (23,815) | AZ53: (27,543) | BA53: (31,331) | BB53: (35,175) | BC53: (39,073) | BF53: Contribution tarifaire annuelle | BL53: =BL45-BL51 -> (39,073) | BM53: (43,020) | BN53: (86,309) | BO53: (89,080) | BP53: (90,657) | BQ53: (92,274) | BT53: Contribution tarifaire annuelle | BZ53: =BZ45-BZ51 -> (92,274) | CA53: (93,928) | CB53: (95,616) | CC53: (97,336) | CD53: (99,087) | CE53: (100,867) | CH53: Contribution tarifaire annuelle | CN53: =CN45-CN51 -> (100,867) | CO53: (102,673) | CP53: (104,505) | CQ53: (106,361) | CR53: (108,239) | CS53: (110,138) | CV53: Contribution tarifaire annuelle | DB53: =DB45-DB51 -> (110,138) | DC53: (112,056) | DD53: (113,993) | DE53: (115,948) | DF53: (117,919) | DG53: (119,906)
I55: 6 | J55: 7 | K55: 8 | L55: 9 | M55: 10 | W55: 11 | X55: 12 | Y55: 13 | Z55: 14 | AA55: 15 | AK55: 16 | AL55: 17 | AM55: 18 | AN55: 19 | AO55: 20 | AY55: 21 | AZ55: 22 | BA55: 23 | BB55: 24 | BC55: 25 | BM55: 26 | BN55: 27 | BO55: 28 | BP55: 29 | BQ55: 30 | CA55: 31 | CB55: 32 | CC55: 33 | CD55: 34 | CE55: 35 | CO55: 36 | CP55: 37 | CQ55: 38 | CR55: 39 | CS55: 40
B56: Contribution tarifaire annuelle | I56: ='GM-9Doc6-Annexe Q-4.2Modèle DaQ'!M144 -> 9,173 | J56: ='GM-9Doc6-Annexe Q-4.2Modèle DaQ'!N144 -> 6,304 | K56: ='GM-9Doc6-Annexe Q-4.2Modèle DaQ'!O144 -> 3,324 | L56: ='GM-9Doc6-Annexe Q-4.2Modèle DaQ'!P144 -> 239 | M56: ='GM-9Doc6-Annexe Q-4.2Modèle DaQ'!Q144 -> (2,945) | P56: Contribution tarifaire annuelle | W56: ='GM-9Doc6-Annexe Q-4.2Modèle DaQ'!R144 -> (6,222) | X56: ='GM-9Doc6-Annexe Q-4.2Modèle DaQ'!S144 -> (9,586) | Y56: ='GM-9Doc6-Annexe Q-4.2Modèle DaQ'!T144 -> (13,033) | Z56: ='GM-9Doc6-Annexe Q-4.2Modèle DaQ'!U144 -> (16,556) | AA56: ='GM-9Doc6-Annexe Q-4.2Modèle DaQ'!V144 -> (20,151) | AD56: Contribution tarifaire annuelle | AK56: ='GM-9Doc6-Annexe Q-4.2Modèle DaQ'!W144 -> (23,815) | AL56: ='GM-9Doc6-Annexe Q-4.2Modèle DaQ'!X144 -> (27,543) | AM56: ='GM-9Doc6-Annexe Q-4.2Modèle DaQ'!Y144 -> (31,331) | AN56: ='GM-9Doc6-Annexe Q-4.2Modèle DaQ'!Z144 -> (35,175) | AO56: ='GM-9Doc6-Annexe Q-4.2Modèle DaQ'!AA144 -> (39,073) | AR56: Contribution tarifaire annuelle | AY56: ='GM-9Doc6-Annexe Q-4.2Modèle DaQ'!AB144 -> (43,020) | AZ56: ='GM-9Doc6-Annexe Q-4.2Modèle DaQ'!AC144 -> (86,309) | BA56: ='GM-9Doc6-Annexe Q-4.2Modèle DaQ'!AD144 -> (89,080) | BB56: ='GM-9Doc6-Annexe Q-4.2Modèle DaQ'!AE144 -> (90,657) | BC56: ='GM-9Doc6-Annexe Q-4.2Modèle DaQ'!AF144 -> (92,274) | BF56: Contribution tarifaire annuelle | BM56: ='GM-9Doc6-Annexe Q-4.2Modèle DaQ'!AG144 -> (93,928) | BN56: ='GM-9Doc6-Annexe Q-4.2Modèle DaQ'!AH144 -> (95,616) | BO56: ='GM-9Doc6-Annexe Q-4.2Modèle DaQ'!AI144 -> (97,336) | BP56: ='GM-9Doc6-Annexe Q-4.2Modèle DaQ'!AJ144 -> (99,087) | BQ56: ='GM-9Doc6-Annexe Q-4.2Modèle DaQ'!AK144 -> (100,867) | BT56: Contribution tarifaire annuelle | CA56: ='GM-9Doc6-Annexe Q-4.2Modèle DaQ'!AL144 -> (102,673) | CB56: ='GM-9Doc6-Annexe Q-4.2Modèle DaQ'!AM144 -> (104,505) | CC56: ='GM-9Doc6-Annexe Q-4.2Modèle DaQ'!AN144 -> (106,361) | CD56: ='GM-9Doc6-Annexe Q-4.2Modèle DaQ'!AO144 -> (108,239) | CE56: ='GM-9Doc6-Annexe Q-4.2Modèle DaQ'!AP144 -> (110,138) | CH56: Contribution tarifaire annuelle | CO56: ='GM-9Doc6-Annexe Q-4.2Modèle DaQ'!AQ144 -> (112,056) | CP56: ='GM-9Doc6-Annexe Q-4.2Modèle DaQ'!AR144 -> (113,993) | CQ56: ='GM-9Doc6-Annexe Q-4.2Modèle DaQ'!AS144 -> (115,948) | CR56: ='GM-9Doc6-Annexe Q-4.2Modèle DaQ'!AT144 -> (117,919) | CS56: ='GM-9Doc6-Annexe Q-4.2Modèle DaQ'!AU144 -> (119,906) | CV56: Contribution tarifaire annuelle
B59: Contribution tarifaire ( 3 ans ) | E59: ='GM-9Doc6-Annexe Q-4.2Modèle DaQ'!J146 -> 73,279 | I59: Contribution tarifaire ( 15 ans ) | L59: ='GM-9Doc6-Annexe Q-4.2Modèle DaQ'!V146 -> 73,314 | P59: Contribution tarifaire ( 3 ans ) | S59: =$E$59 -> 73,279 | W59: Contribution tarifaire ( 15 ans ) | Z59: =$L$59 -> 73,314 | AD59: Contribution tarifaire ( 3 ans ) | AG59: =$E$59 -> 73,279 | AK59: Contribution tarifaire ( 15 ans ) | AN59: =$L$59 -> 73,314 | AR59: Contribution tarifaire ( 3 ans ) | AU59: =$E$59 -> 73,279 | AY59: Contribution tarifaire ( 15 ans ) | BB59: =$L$59 -> 73,314 | BF59: Contribution tarifaire ( 3 ans ) | BI59: =$E$59 -> 73,279 | BM59: Contribution tarifaire ( 15 ans ) | BP59: =$L$59 -> 73,314 | BT59: Contribution tarifaire ( 3 ans ) | BW59: =$E$59 -> 73,279 | CA59: Contribution tarifaire ( 15 ans ) | CD59: =$L$59 -> 73,314 | CH59: Contribution tarifaire ( 3 ans ) | CK59: =$E$59 -> 73,279 | CO59: Contribution tarifaire ( 15 ans ) | CR59: =$L$59 -> 73,314 | CV59: Contribution tarifaire ( 3 ans ) | CY59: =$E$59 -> 73,279 | DC59: Contribution tarifaire ( 15 ans ) | DF59: =$L$59 -> 73,314
B60: Contribution tarifaire ( 5 ans ) | E60: ='GM-9Doc6-Annexe Q-4.2Modèle DaQ'!L146 -> 94,337 | I60: Contribution tarifaire ( 20 ans ) | L60: ='GM-9Doc6-Annexe Q-4.2Modèle DaQ'!AA146 -> 11,770 | P60: Contribution tarifaire ( 5 ans ) | S60: =$E$60 -> 94,337 | W60: Contribution tarifaire ( 20 ans ) | Z60: =$L$60 -> 11,770 | AD60: Contribution tarifaire ( 5 ans ) | AG60: =$E$60 -> 94,337 | AK60: Contribution tarifaire ( 20 ans ) | AN60: =$L$60 -> 11,770 | AR60: Contribution tarifaire ( 5 ans ) | AU60: =$E$60 -> 94,337 | AY60: Contribution tarifaire ( 20 ans ) | BB60: =$L$60 -> 11,770 | BF60: Contribution tarifaire ( 5 ans ) | BI60: =$E$60 -> 94,337 | BM60: Contribution tarifaire ( 20 ans ) | BP60: =$L$60 -> 11,770 | BT60: Contribution tarifaire ( 5 ans ) | BW60: =$E$60 -> 94,337 | CA60: Contribution tarifaire ( 20 ans ) | CD60: =$L$60 -> 11,770 | CH60: Contribution tarifaire ( 5 ans ) | CK60: =$E$60 -> 94,337 | CO60: Contribution tarifaire ( 20 ans ) | CR60: =$L$60 -> 11,770 | CV60: Contribution tarifaire ( 5 ans ) | CY60: =$E$60 -> 94,337 | DC60: Contribution tarifaire ( 20 ans ) | DF60: =$L$60 -> 11,770
B61: Contribution tarifaire ( 10 ans ) | E61: ='GM-9Doc6-Annexe Q-4.2Modèle DaQ'!Q146 -> 106,063 | I61: Contribution tarifaire ( 40 ans ) | L61: ='GM-9Doc6-Annexe Q-4.2Modèle DaQ'!AU146 -> (404,749) | P61: Contribution tarifaire ( 10 ans ) | S61: =$E$61 -> 106,063 | W61: Contribution tarifaire ( 40 ans ) | Z61: =$L$61 -> (404,749) | AD61: Contribution tarifaire ( 10 ans ) | AG61: =$E$61 -> 106,063 | AK61: Contribution tarifaire ( 40 ans ) | AN61: =$L$61 -> (404,749) | AR61: Contribution tarifaire ( 10 ans ) | AU61: =$E$61 -> 106,063 | AY61: Contribution tarifaire ( 40 ans ) | BB61: =$L$61 -> (404,749) | BF61: Contribution tarifaire ( 10 ans ) | BI61: =$E$61 -> 106,063 | BM61: Contribution tarifaire ( 40 ans ) | BP61: =$L$61 -> (404,749) | BT61: Contribution tarifaire ( 10 ans ) | BW61: =$E$61 -> 106,063 | CA61: Contribution tarifaire ( 40 ans ) | CD61: =$L$61 -> (404,749) | CH61: Contribution tarifaire ( 10 ans ) | CK61: =$E$61 -> 106,063 | CO61: Contribution tarifaire ( 40 ans ) | CR61: =$L$61 -> (404,749) | CV61: Contribution tarifaire ( 10 ans ) | CY61: =$E$61 -> 106,063 | DC61: Contribution tarifaire ( 40 ans ) | DF61: =$L$61 -> (404,749)
B63: Point mort tarifaire (années) | E63: ='GM-9Doc6-Annexe Q-4.2Modèle DaQ'!$E$147 -> 20.81 | P63: Point mort tarifaire (années) | S63: =$E$63 -> 20.81 | AD63: Point mort tarifaire (années) | AG63: =$E$63 -> 20.81 | AR63: Point mort tarifaire (années) | AU63: =$E$63 -> 20.81 | BF63: Point mort tarifaire (années) | BI63: =$E$63 -> 20.81 | BT63: Point mort tarifaire (années) | BW63: =$E$63 -> 20.81 | CH63: Point mort tarifaire (années) | CK63: =$E$63 -> 20.81 | CV63: Point mort tarifaire (années) | CY63: =$E$63 -> 20.81
B65: Taux de rendement interne ( TRI 40 ans ) | E65: ='GM-9Doc6-Annexe Q-4.2Modèle DaQ'!$E$140 -> 6.01% | P65: Taux de rendement interne ( TRI 40 ans ) | S65: =$E$65 -> 6.01% | AD65: Taux de rendement interne ( TRI 40 ans ) | AG65: =$E$65 -> 6.01% | AR65: =$B$65 -> Taux de rendement interne ( TRI 40 ans ) | AU65: =$E$65 -> 6.01% | BF65: =$B$65 -> Taux de rendement interne ( TRI 40 ans ) | BI65: =$E$65 -> 6.01% | BT65: =$B$65 -> Taux de rendement interne ( TRI 40 ans ) | BW65: =$E$65 -> 6.01% | CH65: =$B$65 -> Taux de rendement interne ( TRI 40 ans ) | CK65: =$E$65 -> 6.01% | CV65: =$B$65 -> Taux de rendement interne ( TRI 40 ans ) | CY65: =$E$65 -> 6.01%
B70: VENTES | P70: VENTES | AD70: VENTES | AR70: VENTES | BF70: VENTES | BT70: VENTES | CH70: VENTES | CV70: VENTES
B75: Représentant | E75: Date ____/____/____ | G75: Directeur Ventes | J75: Date ____/____/____ | K75: Cadre de direction Ventes | M75: Date ____/____/____ | P75: Représentant | S75: Date ____/____/____ | U75: Directeur Ventes | X75: Date ____/____/____ | Y75: Cadre de direction Ventes | AA75: Date ____/____/____ | AD75: Représentant | AG75: Date ____/____/____ | AI75: Directeur Ventes | AL75: Date ____/____/____ | AM75: Cadre de direction Ventes | AO75: Date ____/____/____ | AR75: Représentant | AU75: Date ____/____/____ | AW75: Directeur Ventes | AZ75: Date ____/____/____ | BA75: Cadre de direction Ventes | BC75: Date ____/____/____ | BF75: Représentant | BI75: Date ____/____/____ | BK75: Directeur Ventes | BN75: Date ____/____/____ | BO75: Cadre de direction Ventes | BQ75: Date ____/____/____ | BT75: Représentant | BW75: Date ____/____/____ | BY75: Directeur Ventes | CB75: Date ____/____/____ | CC75: Cadre de direction Ventes | CE75: Date ____/____/____ | CH75: Représentant | CK75: Date ____/____/____ | CM75: Directeur Ventes | CP75: Date ____/____/____ | CQ75: Cadre de direction Ventes | CS75: Date ____/____/____ | CV75: Représentant | CY75: Date ____/____/____ | DA75: Directeur Ventes | DD75: Date ____/____/____ | DE75: Cadre de direction Ventes | DG75: Date ____/____/____
B82: Vice-président Commercialisation | E82: Date ____/____/____ | G82: Présidente | J82: Date ____/____/____ | K82: 0 | P82: Vice-président Commercialisation | S82: Date ____/____/____ | U82: Présidente | X82: Date ____/____/____ | Y82: 0 | AD82: Vice-président Commercialisation | AG82: Date ____/____/____ | AI82: Présidente | AL82: Date ____/____/____ | AM82: 0 | AR82: Vice-président Commercialisation | AU82: Date ____/____/____ | AW82: Présidente | AZ82: Date ____/____/____ | BA82: 0 | BF82: Vice-président Commercialisation | BI82: Date ____/____/____ | BK82: Présidente | BN82: Date ____/____/____ | BO82: 0 | BT82: Vice-président Commercialisation | BW82: Date ____/____/____ | BY82: Présidente | CB82: Date ____/____/____ | CC82: 0 | CH82: Vice-président Commercialisation | CK82: Date ____/____/____ | CM82: Présidente | CP82: Date ____/____/____ | CQ82: 0 | CV82: Vice-président Commercialisation | CY82: Date ____/____/____ | DA82: Présidente | DD82: Date ____/____/____ | DE82: 0
B87: CONDITIONS DE RÉALISATION | P87: CONDITIONS DE RÉALISATION | AD87: CONDITIONS DE RÉALISATION | AR87: CONDITIONS DE RÉALISATION | BF87: CONDITIONS DE RÉALISATION | BT87: CONDITIONS DE RÉALISATION | CH87: CONDITIONS DE RÉALISATION | CV87: CONDITIONS DE RÉALISATION
